Workbook

Sheet Main
B2: Transaction and Custodian Fee | H2: *Please fill in the parameters
A3: 1.
H4: Journal Code | I4: Debit | K4: Credit | M4: Percentage (%) | N4: Omnibus (Max)
I5: GL Code | J5: Asset Type | K5: GL Code | L5: Asset Type
A6: 2. | B6: Parameters | H6: Transaction Fee | I6: 710117 | J6: 000 | K6: 500000 | L6: 000 | M6: 0.1 | N6: 200
H7: Custodian Fee | I7: 700302 | J7: 000 | K7: 500000 | L7: 000 | M7: 0.03
B8: Start Date | C8: 2019-05-01
H9: Steps:
B10: End Date | C10: 2019-05-31 | H10: 1. Connect.
H11: 2. Fill in the details and parameters, "Import SDF" for fund group list if neccesary.
B12: Fund Group 1 | C12: OMNIT | H12: 3. List down the Fund & Broker List to be excluded in FundList and BrokerList sheet if neccesary.
H13: 4. Import
B14: Fund Group 2 | C14: OMNIT2 | H14: 5. Fill in the "Remarks" (Column H) in "Update" sheet if any and Press "Update" to differentiate remisier.
H15: 6. Import again.
B16: Export Path | C16: thisworkbook.path | H16: 7. Export the Journal
A18: 3./5. | H18: *Please fill in the Remarks(Column H) in "Update" sheet before updating to database
H19: *Key in "thisworkbook.path" to export the Journal into the same folder as report
A21: 4. | H21: Note:
H22: *Custodian fee report date follow End date (End of Month) only
H23: *Fund Group 1 for Transaction and Custodian report only
A24: 6 | H24: *Fund Group 1 and Fund Group 2 for Summary report.
H25: *Summary report follow End Date month and year

Sheet Update
A1: qStockCode | B1: StockDesc | C1: TradeDate | D1: qFundCode | E1: Trans | F1: Amount | G1: qCPCode | H1: Remarks | I1: qEventTrxID | J1: BrokerageFee | K1: qFundGrpCode | L1: SettCurrency
A2: SG2D63974620 | B2: AIMS APAC REIT | C2: 2019-05-02 | D2: VL-LNH | E2: Purchase | F2: 2167.28 | G2: TASEC | I2: EQT*190500052 | J2: 1.06 | K2: OMNIT | L2: SGD
A3: SG2D63974620 | B3: AIMS APAC REIT | C3: 2019-05-02 | D3: VL-YCM | E3: Purchase | F3: 2167.31 | G3: TASEC | I3: EQT*190500062 | J3: 1.07 | K3: OMNIT | L3: SGD
A4: SG2D63974620 | B4: AIMS APAC REIT | C4: 2019-05-02 | D4: VL-ANU | E4: Purchase | F4: 2600.77 | G4: TASEC | I4: EQT*190500047 | J4: 1.28 | K4: OMNIT | L4: SGD
A5: SG2D63974620 | B5: AIMS APAC REIT | C5: 2019-05-02 | D5: VL-CSY | E5: Purchase | F5: 4768.04 | G5: TASEC | I5: EQT*190500051 | J5: 2.34 | K5: OMNIT | L5: SGD
A6: SG2D63974620 | B6: AIMS APAC REIT | C6: 2019-05-02 | D6: VL-WPI | E6: Purchase | F6: 5201.57 | G6: TASEC | I6: EQT*190500061 | J6: 2.56 | K6: OMNIT | L6: SGD
A7: SG2D63974620 | B7: AIMS APAC REIT | C7: 2019-05-02 | D7: VL-YHN | E7: Purchase | F7: 5635 | G7: TASEC | I7: EQT*190500063 | J7: 2.77 | K7: OMNIT | L7: SGD
A8: SG2D63974620 | B8: AIMS APAC REIT | C8: 2019-05-02 | D8: VL-MAA | E8: Purchase | F8: 5635 | G8: TASEC | I8: EQT*190500053 | J8: 2.77 | K8: OMNIT | L8: SGD
A9: SG2D63974620 | B9: AIMS APAC REIT | C9: 2019-05-02 | D9: VL-NCM | E9: Purchase | F9: 6068.46 | G9: TASEC | I9: EQT*190500056 | J9: 2.98 | K9: OMNIT | L9: SGD
A10: SG2D63974620 | B10: AIMS APAC REIT | C10: 2019-05-02 | D10: VL-WKM | E10: Purchase | F10: 6501.89 | G10: TASEC | I10: EQT*190500060 | J10: 3.19 | K10: OMNIT | L10: SGD
A11: SG2D63974620 | B11: AIMS APAC REIT | C11: 2019-05-02 | D11: VL-CSK | E11: Purchase | F11: 7368.84 | G11: TASEC | I11: EQT*190500050 | J11: 3.62 | K11: OMNIT | L11: SGD
A12: SG2D63974620 | B12: AIMS APAC REIT | C12: 2019-05-02 | D12: VL-CFK | E12: Purchase | F12: 7368.84 | G12: TASEC | I12: EQT*190500048 | J12: 3.62 | K12: OMNIT | L12: SGD
A13: SG2D63974620 | B13: AIMS APAC REIT | C13: 2019-05-02 | D13: VL-ZUL | E13: Purchase | F13: 9969.61 | G13: TASEC | I13: EQT*190500064 | J13: 4.91 | K13: OMNIT | L13: SGD
A14: SG2D63974620 | B14: AIMS APAC REIT | C14: 2019-05-02 | D14: VL-CMC | E14: Purchase | F14: 10836.5 | G14: TASEC | I14: EQT*190500049 | J14: 5.32 | K14: OMNIT | L14: SGD
A15: SG2D63974620 | B15: AIMS APAC REIT | C15: 2019-05-02 | D15: VL-NAN | E15: Purchase | F15: 10836.5 | G15: TASEC | I15: EQT*190500055 | J15: 5.32 | K15: OMNIT | L15: SGD
A16: SG2D63974620 | B16: AIMS APAC REIT | C16: 2019-05-02 | D16: VL-WFR | E16: Purchase | F16: 11703.42 | G16: TASEC | I16: EQT*190500059 | J16: 5.75 | K16: OMNIT | L16: SGD
A17: SG2D63974620 | B17: AIMS APAC REIT | C17: 2019-05-02 | D17: VL-TAAM | E17: Purchase | F17: 22106.46 | G17: TASEC | I17: EQT*190500058 | J17: 10.86 | K17: OMNIT | L17: SGD
A18: SG2D63974620 | B18: AIMS APAC REIT | C18: 2019-05-02 | D18: DTKF | E18: Purchase | F18: 31209.15 | G18: TASEC | I18: EQT*190500046 | J18: 15.34 | K18: OMNIT | L18: SGD
A19: SG2D63974620 | B19: AIMS APAC REIT | C19: 2019-05-02 | D19: VL-MSG | E19: Purchase | F19: 37711 | G19: TASEC | I19: EQT*190500054 | J19: 18.53 | K19: OMNIT | L19: SGD
A20: SG2D63974620 | B20: AIMS APAC REIT | C20: 2019-05-02 | D20: VL-SIC | E20: Purchase | F20: 54615.96 | G20: TASEC | I20: EQT*190500057 | J20: 26.84 | K20: OMNIT | L20: SGD
A21: 0128 | B21: FRONTKEN CORP BHD | C21: 2019-05-02 | D21: VL-RAD | E21: Sales | F21: 4230.13 | G21: TASEC | I21: EQT*190500045 | J21: 14.87 | K21: OMNIT | L21: MYR
A22: 0128 | B22: FRONTKEN CORP BHD | C22: 2019-05-02 | D22: VL-CCK | E22: Sales | F22: 8869.62 | G22: TASEC | I22: EQT*190500043 | J22: 31.17 | K22: OMNIT | L22: MYR
A23: 0128 | B23: FRONTKEN CORP BHD | C23: 2019-05-02 | D23: VL-IMJ | E23: Sales | F23: 41209.59 | G23: TASEC | I23: EQT*190500044 | J23: 144.82 | K23: OMNIT | L23: MYR
A24: 8877 | B24: EKOVEST BHD | C24: 2019-05-03 | D24: AG-JOS | E24: Purchase | F24: 5818.74 | G24: KLCS | I24: EQT*190500097 | J24: 20.28 | K24: OMNIT | L24: MYR
A25: 8877 | B25: EKOVEST BHD | C25: 2019-05-03 | D25: AG-TJK1 | E25: Purchase | F25: 6339.82 | G25: KLCS | I25: EQT*190500099 | J25: 22.1 | K25: OMNIT | L25: MYR
A26: 8877 | B26: EKOVEST BHD | C26: 2019-05-03 | D26: AG-SKS | E26: Purchase | F26: 22580.19 | G26: KLCS | I26: EQT*190500098 | J26: 78.72 | K26: OMNIT | L26: MYR
A27: 8877 | B27: EKOVEST BHD | C27: 2019-05-03 | D27: WFL2 | E27: Purchase | F27: 26922.52 | G27: KLCS | I27: EQT*190500100 | J27: 93.85 | K27: OMNIT | L27: MYR
A28: 8877 | B28: EKOVEST BHD | C28: 2019-05-03 | D28: VM-WAS | E28: Purchase | F28: 60792.81 | G28: KLCS | I28: EQT*190500102 | J28: 211.93 | K28: OMNIT | L28: MYR
A29: 8877 | B29: EKOVEST BHD | C29: 2019-05-03 | D29: AG-JOS | E29: Sales | F29: 6139.29 | G29: KLCS | I29: EQT*190500103 | J29: 21.57 | K29: OMNIT | L29: MYR
A30: 8877 | B30: EKOVEST BHD | C30: 2019-05-03 | D30: AG-TJK1 | E30: Sales | F30: 6689.07 | G30: KLCS | I30: EQT*190500105 | J30: 23.51 | K30: OMNIT | L30: MYR
A31: 8877 | B31: EKOVEST BHD | C31: 2019-05-03 | D31: AG-SKS | E31: Sales | F31: 23824.08 | G31: KLCS | I31: EQT*190500104 | J31: 83.72 | K31: OMNIT | L31: MYR
A32: 8877 | B32: EKOVEST BHD | C32: 2019-05-03 | D32: WFL2 | E32: Sales | F32: 28405.63 | G32: KLCS | I32: EQT*190500106 | J32: 99.82 | K32: OMNIT | L32: MYR
A33: 8877 | B33: EKOVEST BHD | C33: 2019-05-03 | D33: VM-WAS | E33: Sales | F33: 64141.75 | G33: KLCS | I33: EQT*190500108 | J33: 225.4 | K33: OMNIT | L33: MYR
A34: SG1CI1000004 | B34: MANULIFE US REAL ESTATE INVESTMENT TRUST | C34: 2019-05-03 | D34: VL-RAD | E34: Purchase | F34: 15927.79 | G34: TASEC(F) | I34: EQT*190500125 | J34: 5.74 | K34: OMNIT | L34: USD
A35: SG1CI1000004 | B35: MANULIFE US REAL ESTATE INVESTMENT TRUST | C35: 2019-05-03 | D35: VL-CCK | E35: Purchase | F35: 107512.31 | G35: TASEC(F) | I35: EQT*190500123 | J35: 38.76 | K35: OMNIT | L35: USD
A36: SG1CI1000004 | B36: MANULIFE US REAL ESTATE INVESTMENT TRUST | C36: 2019-05-03 | D36: VL-IMJ | E36: Purchase | F36: 110770.23 | G36: TASEC(F) | I36: EQT*190500124 | J36: 39.93 | K36: OMNIT | L36: USD
A37: SG1CI1000004 | B37: MANULIFE US REAL ESTATE INVESTMENT TRUST | C37: 2019-05-06 | D37: VL-LNH | E37: Purchase | F37: 2186.27 | G37: TASEC | I37: EQT*190500177 | J37: 0.79 | K37: OMNIT | L37: USD
A38: SG1CI1000004 | B38: MANULIFE US REAL ESTATE INVESTMENT TRUST | C38: 2019-05-06 | D38: VL-YCM | E38: Purchase | F38: 2186.31 | G38: TASEC | I38: EQT*190500185 | J38: 0.79 | K38: OMNIT | L38: USD
A39: SG1CI1000004 | B39: MANULIFE US REAL ESTATE INVESTMENT TRUST | C39: 2019-05-06 | D39: VL-ANU | E39: Purchase | F39: 2550.66 | G39: TASEC | I39: EQT*190500172 | J39: 0.92 | K39: OMNIT | L39: USD
A40: SG1CI1000004 | B40: MANULIFE US REAL ESTATE INVESTMENT TRUST | C40: 2019-05-06 | D40: VL-CSY | E40: Purchase | F40: 4736.89 | G40: TASEC | I40: EQT*190500176 | J40: 1.71 | K40: OMNIT | L40: USD
A41: SG1CI1000004 | B41: MANULIFE US REAL ESTATE INVESTMENT TRUST | C41: 2019-05-06 | D41: VL-WPI | E41: Purchase | F41: 5101.28 | G41: TASEC | I41: EQT*190500184 | J41: 1.84 | K41: OMNIT | L41: USD
A42: SG1CI1000004 | B42: MANULIFE US REAL ESTATE INVESTMENT TRUST | C42: 2019-05-06 | D42: VL-YHN | E42: Purchase | F42: 5465.59 | G42: TASEC | I42: EQT*190500186 | J42: 1.97 | K42: OMNIT | L42: USD
A43: SG1CI1000004 | B43: MANULIFE US REAL ESTATE INVESTMENT TRUST | C43: 2019-05-06 | D43: VL-NCM | E43: Purchase | F43: 5829.98 | G43: TASEC | I43: EQT*190500180 | J43: 2.1 | K43: OMNIT | L43: USD
A44: SG1CI1000004 | B44: MANULIFE US REAL ESTATE INVESTMENT TRUST | C44: 2019-05-06 | D44: VL-MAA | E44: Purchase | F44: 5829.98 | G44: TASEC | I44: EQT*190500178 | J44: 2.1 | K44: OMNIT | L44: USD
A45: SG1CI1000004 | B45: MANULIFE US REAL ESTATE INVESTMENT TRUST | C45: 2019-05-06 | D45: VL-WKM | E45: Purchase | F45: 6558.72 | G45: TASEC | I45: EQT*190500183 | J45: 2.36 | K45: OMNIT | L45: USD
A46: SG1CI1000004 | B46: MANULIFE US REAL ESTATE INVESTMENT TRUST | C46: 2019-05-06 | D46: VL-CSK | E46: Purchase | F46: 7287.47 | G46: TASEC | I46: EQT*190500175 | J46: 2.63 | K46: OMNIT | L46: USD
A47: SG1CI1000004 | B47: MANULIFE US REAL ESTATE INVESTMENT TRUST | C47: 2019-05-06 | D47: VL-CFK | E47: Purchase | F47: 7287.51 | G47: TASEC | I47: EQT*190500173 | J47: 2.63 | K47: OMNIT | L47: USD
A48: SG1CI1000004 | B48: MANULIFE US REAL ESTATE INVESTMENT TRUST | C48: 2019-05-06 | D48: VL-ZUL | E48: Purchase | F48: 10202.48 | G48: TASEC | I48: EQT*190500187 | J48: 3.68 | K48: OMNIT | L48: USD
A49: SG1CI1000004 | B49: MANULIFE US REAL ESTATE INVESTMENT TRUST | C49: 2019-05-06 | D49: VL-NAN | E49: Purchase | F49: 10566.87 | G49: TASEC | I49: EQT*190500179 | J49: 3.81 | K49: OMNIT | L49: USD
A50: SG1CI1000004 | B50: MANULIFE US REAL ESTATE INVESTMENT TRUST | C50: 2019-05-06 | D50: VL-CMC | E50: Purchase | F50: 10931.22 | G50: TASEC | I50: EQT*190500174 | J50: 3.93 | K50: OMNIT | L50: USD
A51: SG1CI1000004 | B51: MANULIFE US REAL ESTATE INVESTMENT TRUST | C51: 2019-05-06 | D51: VL-TAAM | E51: Purchase | F51: 22226.83 | G51: TASEC | I51: EQT*190500182 | J51: 8 | K51: OMNIT | L51: USD
A52: SG1CI1000004 | B52: MANULIFE US REAL ESTATE INVESTMENT TRUST | C52: 2019-05-06 | D52: DTKF | E52: Purchase | F52: 31336.17 | G52: TASEC | I52: EQT*190500171 | J52: 11.28 | K52: OMNIT | L52: USD
A53: SG1CI1000004 | B53: MANULIFE US REAL ESTATE INVESTMENT TRUST | C53: 2019-05-06 | D53: VL-SIC | E53: Purchase | F53: 54656.1 | G53: TASEC | I53: EQT*190500181 | J53: 19.68 | K53: OMNIT | L53: USD
A54: 5253 | B54: ECONPILE HOLDINGS BHD | C54: 2019-05-07 | D54: VL-RAD | E54: Sales | F54: 812.73 | G54: TASEC | I54: EQT*190500228 | J54: 2.86 | K54: OMNIT | L54: MYR
A55: 5253 | B55: ECONPILE HOLDINGS BHD | C55: 2019-05-07 | D55: VL-CCK | E55: Sales | F55: 5418.19 | G55: TASEC | I55: EQT*190500225 | J55: 19.04 | K55: OMNIT | L55: MYR
A56: 5253 | B56: ECONPILE HOLDINGS BHD | C56: 2019-05-07 | D56: VL-IMJ | E56: Sales | F56: 5418.19 | G56: TASEC | I56: EQT*190500226 | J56: 19.04 | K56: OMNIT | L56: MYR
A57: 5253 | B57: ECONPILE HOLDINGS BHD | C57: 2019-05-07 | D57: PRSB | E57: Sales | F57: 6434.09 | G57: TASEC | I57: EQT*190500223 | J57: 22.61 | K57: OMNIT | L57: MYR
A58: 5253 | B58: ECONPILE HOLDINGS BHD | C58: 2019-05-07 | D58: YS | E58: Sales | F58: 11039.55 | G58: TASEC | I58: EQT*190500229 | J58: 38.79 | K58: OMNIT | L58: MYR
A59: 5253 | B59: ECONPILE HOLDINGS BHD | C59: 2019-05-07 | D59: TAYS2 | E59: Sales | F59: 14222.74 | G59: TASEC | I59: EQT*190500224 | J59: 49.98 | K59: OMNIT | L59: MYR
A60: 5253 | B60: ECONPILE HOLDINGS BHD | C60: 2019-05-07 | D60: YSIF | E60: Sales | F60: 21740.47 | G60: TASEC | I60: EQT*190500230 | J60: 76.4 | K60: OMNIT | L60: MYR
A61: 5253 | B61: ECONPILE HOLDINGS BHD | C61: 2019-05-07 | D61: VL-LKS | E61: Sales | F61: 41110.49 | G61: TASEC | I61: EQT*190500227 | J61: 144.46 | K61: OMNIT | L61: MYR
A62: 0180 | B62: KIM TECK CHEONG BHD | C62: 2019-05-08 | D62: VL-YCM | E62: Purchase | F62: 1066.42 | G62: TASEC | I62: EQT*190500291 | J62: 3.71 | K62: OMNIT | L62: MYR
A63: 0180 | B63: KIM TECK CHEONG BHD | C63: 2019-05-08 | D63: VL-LNH | E63: Purchase | F63: 1119.74 | G63: TASEC | I63: EQT*190500283 | J63: 3.9 | K63: OMNIT | L63: MYR
A64: 0180 | B64: KIM TECK CHEONG BHD | C64: 2019-05-08 | D64: VL-ANU | E64: Purchase | F64: 1421.9 | G64: TASEC | I64: EQT*190500278 | J64: 4.95 | K64: OMNIT | L64: MYR
A65: 0180 | B65: KIM TECK CHEONG BHD | C65: 2019-05-08 | D65: VL-CSY | E65: Purchase | F65: 2488.33 | G65: TASEC | I65: EQT*190500282 | J65: 8.67 | K65: OMNIT | L65: MYR
A66: 0180 | B66: KIM TECK CHEONG BHD | C66: 2019-05-08 | D66: VL-WPI | E66: Purchase | F66: 2843.81 | G66: TASEC | I66: EQT*190500290 | J66: 9.91 | K66: OMNIT | L66: MYR
A67: 0180 | B67: KIM TECK CHEONG BHD | C67: 2019-05-08 | D67: VL-YHN | E67: Purchase | F67: 3021.55 | G67: TASEC | I67: EQT*190500292 | J67: 10.53 | K67: OMNIT | L67: MYR
A68: 0180 | B68: KIM TECK CHEONG BHD | C68: 2019-05-08 | D68: VL-MAA | E68: Purchase | F68: 3021.55 | G68: TASEC | I68: EQT*190500284 | J68: 10.53 | K68: OMNIT | L68: MYR
A69: 0180 | B69: KIM TECK CHEONG BHD | C69: 2019-05-08 | D69: VL-NCM | E69: Purchase | F69: 3199.28 | G69: TASEC | I69: EQT*190500286 | J69: 11.14 | K69: OMNIT | L69: MYR
A70: 0180 | B70: KIM TECK CHEONG BHD | C70: 2019-05-08 | D70: VL-WKM | E70: Purchase | F70: 3554.75 | G70: TASEC | I70: EQT*190500289 | J70: 12.38 | K70: OMNIT | L70: MYR
A71: 0180 | B71: KIM TECK CHEONG BHD | C71: 2019-05-08 | D71: VL-CSK | E71: Purchase | F71: 3910.24 | G71: TASEC | I71: EQT*190500281 | J71: 13.62 | K71: OMNIT | L71: MYR
A72: 0180 | B72: KIM TECK CHEONG BHD | C72: 2019-05-08 | D72: VL-CFK | E72: Purchase | F72: 3910.24 | G72: TASEC | I72: EQT*190500279 | J72: 13.62 | K72: OMNIT | L72: MYR
A73: 0180 | B73: KIM TECK CHEONG BHD | C73: 2019-05-08 | D73: VL-ZUL | E73: Purchase | F73: 5509.88 | G73: TASEC | I73: EQT*190500293 | J73: 19.19 | K73: OMNIT | L73: MYR
A74: 0180 | B74: KIM TECK CHEONG BHD | C74: 2019-05-08 | D74: VL-NAN | E74: Purchase | F74: 5865.35 | G74: TASEC | I74: EQT*190500285 | J74: 20.43 | K74: OMNIT | L74: MYR
A75: 0180 | B75: KIM TECK CHEONG BHD | C75: 2019-05-08 | D75: VL-CMC | E75: Purchase | F75: 6043.08 | G75: TASEC | I75: EQT*190500280 | J75: 21.05 | K75: OMNIT | L75: MYR
A76: 0180 | B76: KIM TECK CHEONG BHD | C76: 2019-05-08 | D76: VL-TAAM | E76: Purchase | F76: 9775.58 | G76: TASEC | I76: EQT*190500288 | J76: 34.05 | K76: OMNIT | L76: MYR
A77: 0180 | B77: KIM TECK CHEONG BHD | C77: 2019-05-08 | D77: DTKF | E77: Purchase | F77: 13330.35 | G77: TASEC | I77: EQT*190500277 | J77: 46.44 | K77: OMNIT | L77: MYR
A78: 0180 | B78: KIM TECK CHEONG BHD | C78: 2019-05-08 | D78: VL-SIC | E78: Purchase | F78: 28615.8 | G78: TASEC | I78: EQT*190500287 | J78: 99.68 | K78: OMNIT | L78: MYR
A79: 0180 | B79: KIM TECK CHEONG BHD | C79: 2019-05-08 | D79: VL-LWD | E79: Purchase | F79: 177737.96 | G79: TASEC | I79: EQT*190500276 | J79: 619.15 | K79: OMNIT | L79: MYR
A80: 0128 | B80: FRONTKEN CORP BHD | C80: 2019-05-10 | D80: VL-RAD | E80: Sales | F80: 2091.58 | G80: TASEC | I80: EQT*190500329 | J80: 7.35 | K80: OMNIT | L80: MYR
A81: 0128 | B81: FRONTKEN CORP BHD | C81: 2019-05-10 | D81: VL-IMJ | E81: Sales | F81: 12828.36 | G81: TASEC | I81: EQT*190500328 | J81: 45.08 | K81: OMNIT | L81: MYR
A82: 0128 | B82: FRONTKEN CORP BHD | C82: 2019-05-10 | D82: VL-CCK | E82: Sales | F82: 12828.36 | G82: TASEC | I82: EQT*190500327 | J82: 45.08 | K82: OMNIT | L82: MYR
A83: 5253 | B83: ECONPILE HOLDINGS BHD | C83: 2019-05-13 | D83: MF | E83: Sales | F83: 6175.14 | G83: TASEC | I83: EQT*190500349 | J83: 21.7 | K83: OMNIT | L83: MYR
A84: 5253 | B84: ECONPILE HOLDINGS BHD | C84: 2019-05-13 | D84: SIA | E84: Sales | F84: 8027.68 | G84: TASEC | I84: EQT*190500351 | J84: 28.21 | K84: OMNIT | L84: MYR
A85: 5253 | B85: ECONPILE HOLDINGS BHD | C85: 2019-05-13 | D85: LFS | E85: Sales | F85: 8027.68 | G85: TASEC | I85: EQT*190500347 | J85: 28.21 | K85: OMNIT | L85: MYR
A86: 5253 | B86: ECONPILE HOLDINGS BHD | C86: 2019-05-13 | D86: RTMOEY | E86: Sales | F86: 19760.44 | G86: TASEC | I86: EQT*190500350 | J86: 69.44 | K86: OMNIT | L86: MYR
A87: 7164 | B87: KNM GROUP BHD | C87: 2019-05-13 | D87: AG-TJK1 | E87: Sales | F87: 3627.5 | G87: TASEC | I87: EQT*190500354 | J87: 40 | K87: OMNIT | L87: MYR
A88: SG2F05983695 | B88: ASCENDAS HOSPITALITY TRUST | C88: 2019-05-14 | D88: SIA2 | E88: Purchase | F88: 8663.31 | G88: TASEC(F) | I88: EQT*190500424 | J88: 13.07 | K88: OMNIT | L88: SGD
A89: SG2F05983695 | B89: ASCENDAS HOSPITALITY TRUST | C89: 2019-05-14 | D89: VL-LKS | E89: Purchase | F89: 171735.33 | G89: TASEC(F) | I89: EQT*190500423 | J89: 84.15 | K89: OMNIT | L89: SGD
A90: 8877 | B90: EKOVEST BHD | C90: 2019-05-14 | D90: AG-TJK1 | E90: Purchase | F90: 4862.42 | G90: TASEC | I90: EQT*190500379 | J90: 16.95 | K90: OMNIT | L90: MYR
A91: 8877 | B91: EKOVEST BHD | C91: 2019-05-14 | D91: AG-JOS | E91: Purchase | F91: 5533.1 | G91: TASEC | I91: EQT*190500377 | J91: 19.29 | K91: OMNIT | L91: MYR
A92: 8877 | B92: EKOVEST BHD | C92: 2019-05-14 | D92: AG-SKS | E92: Purchase | F92: 20958.7 | G92: TASEC | I92: EQT*190500378 | J92: 73.06 | K92: OMNIT | L92: MYR
A93: 8877 | B93: EKOVEST BHD | C93: 2019-05-14 | D93: WFL2 | E93: Purchase | F93: 24815.11 | G93: TASEC | I93: EQT*190500380 | J93: 86.51 | K93: OMNIT | L93: MYR
A94: 8877 | B94: EKOVEST BHD | C94: 2019-05-14 | D94: VM-WAS | E94: Purchase | F94: 57007.68 | G94: TASEC | I94: EQT*190500381 | J94: 198.73 | K94: OMNIT | L94: MYR
A95: 5249 | B95: IOI PROPERTIES GROUP BHD | C95: 2019-05-15 | D95: MF | E95: Purchase | F95: 6231.21 | G95: TASEC | I95: EQT*190500486 | J95: 21.7 | K95: OMNIT | L95: MYR
A96: 5249 | B96: IOI PROPERTIES GROUP BHD | C96: 2019-05-15 | D96: SIA | E96: Purchase | F96: 7975.95 | G96: TASEC | I96: EQT*190500487 | J96: 27.78 | K96: OMNIT | L96: MYR
A97: 5249 | B97: IOI PROPERTIES GROUP BHD | C97: 2019-05-15 | D97: LFS | E97: Purchase | F97: 10343.8 | G97: TASEC | I97: EQT*190500484 | J97: 36.02 | K97: OMNIT | L97: MYR
A98: 3069 | B98: MEGA FIRST CORP BHD | C98: 2019-05-15 | D98: VL-LNH | E98: Purchase | F98: 1413.65 | G98: PIBB | I98: EQT*190500512 | J98: 4.93 | K98: OMNIT | L98: MYR
A99: 3069 | B99: MEGA FIRST CORP BHD | C99: 2019-05-15 | D99: VL-YCM | E99: Purchase | F99: 1413.65 | G99: PIBB | I99: EQT*190500523 | J99: 4.93 | K99: OMNIT | L99: MYR
A100: 3069 | B100: MEGA FIRST CORP BHD | C100: 2019-05-15 | D100: VL-ANU | E100: Purchase | F100: 1767.06 | G100: PIBB | I100: EQT*190500507 | J100: 6.16 | K100: OMNIT | L100: MYR
A101: 3069 | B101: MEGA FIRST CORP BHD | C101: 2019-05-15 | D101: VL-CSY | E101: Purchase | F101: 3180.71 | G101: PIBB | I101: EQT*190500511 | J101: 11.09 | K101: OMNIT | L101: MYR
A102: 3069 | B102: MEGA FIRST CORP BHD | C102: 2019-05-15 | D102: VL-WPI | E102: Purchase | F102: 3534.12 | G102: PIBB | I102: EQT*190500522 | J102: 12.32 | K102: OMNIT | L102: MYR
A103: 3069 | B103: MEGA FIRST CORP BHD | C103: 2019-05-15 | D103: VL-YHN | E103: Purchase | F103: 3887.53 | G103: PIBB | I103: EQT*190500524 | J103: 13.55 | K103: OMNIT | L103: MYR
A104: 3069 | B104: MEGA FIRST CORP BHD | C104: 2019-05-15 | D104: VL-MAA | E104: Purchase | F104: 3887.53 | G104: PIBB | I104: EQT*190500514 | J104: 13.55 | K104: OMNIT | L104: MYR
A105: 3069 | B105: MEGA FIRST CORP BHD | C105: 2019-05-15 | D105: VL-NCM | E105: Purchase | F105: 4240.94 | G105: PIBB | I105: EQT*190500517 | J105: 14.78 | K105: OMNIT | L105: MYR
A106: 3069 | B106: MEGA FIRST CORP BHD | C106: 2019-05-15 | D106: VL-WKM | E106: Purchase | F106: 4594.35 | G106: PIBB | I106: EQT*190500521 | J106: 16.02 | K106: OMNIT | L106: MYR
A107: 3069 | B107: MEGA FIRST CORP BHD | C107: 2019-05-15 | D107: VL-CFK | E107: Purchase | F107: 4947.77 | G107: PIBB | I107: EQT*190500508 | J107: 17.25 | K107: OMNIT | L107: MYR
A108: 3069 | B108: MEGA FIRST CORP BHD | C108: 2019-05-15 | D108: VL-CSK | E108: Purchase | F108: 5301.17 | G108: PIBB | I108: EQT*190500510 | J108: 18.48 | K108: OMNIT | L108: MYR
A109: 3069 | B109: MEGA FIRST CORP BHD | C109: 2019-05-15 | D109: VL-ZUL | E109: Purchase | F109: 7421.64 | G109: PIBB | I109: EQT*190500525 | J109: 25.87 | K109: OMNIT | L109: MYR
A110: 3069 | B110: MEGA FIRST CORP BHD | C110: 2019-05-15 | D110: VL-CMC | E110: Purchase | F110: 7775.05 | G110: PIBB | I110: EQT*190500509 | J110: 27.1 | K110: OMNIT | L110: MYR
A111: 3069 | B111: MEGA FIRST CORP BHD | C111: 2019-05-15 | D111: VL-NAN | E111: Purchase | F111: 7775.05 | G111: PIBB | I111: EQT*190500516 | J111: 27.1 | K111: OMNIT | L111: MYR
A112: 3069 | B112: MEGA FIRST CORP BHD | C112: 2019-05-15 | D112: VL-WFR | E112: Purchase | F112: 8481.87 | G112: PIBB | I112: EQT*190500520 | J112: 29.57 | K112: OMNIT | L112: MYR
A113: 3069 | B113: MEGA FIRST CORP BHD | C113: 2019-05-15 | D113: VL-TAAM | E113: Purchase | F113: 15903.52 | G113: PIBB | I113: EQT*190500519 | J113: 55.44 | K113: OMNIT | L113: MYR
A114: 3069 | B114: MEGA FIRST CORP BHD | C114: 2019-05-15 | D114: VL-LWD | E114: Purchase | F114: 18023.99 | G114: PIBB | I114: EQT*190500513 | J114: 62.83 | K114: OMNIT | L114: MYR
A115: 3069 | B115: MEGA FIRST CORP BHD | C115: 2019-05-15 | D115: DTKF | E115: Purchase | F115: 22618.34 | G115: PIBB | I115: EQT*190500504 | J115: 78.85 | K115: OMNIT | L115: MYR
A116: 3069 | B116: MEGA FIRST CORP BHD | C116: 2019-05-15 | D116: VL-MSG | E116: Purchase | F116: 25799.05 | G116: PIBB | I116: EQT*190500515 | J116: 89.94 | K116: OMNIT | L116: MYR
A117: 3069 | B117: MEGA FIRST CORP BHD | C117: 2019-05-15 | D117: VL-SIC | E117: Purchase | F117: 39582.08 | G117: PIBB | I117: EQT*190500518 | J117: 137.98 | K117: OMNIT | L117: MYR
A118: 3069 | B118: MEGA FIRST CORP BHD | C118: 2019-05-15 | D118: VL-MAK | E118: Purchase | F118: 1768.3 | G118: TASEC | I118: EQT*190500533 | J118: 6.16 | K118: OMNIT | L118: MYR
A119: 3069 | B119: MEGA FIRST CORP BHD | C119: 2019-05-15 | D119: VL-RAD | E119: Purchase | F119: 4597.53 | G119: TASEC | I119: EQT*190500534 | J119: 16.03 | K119: OMNIT | L119: MYR
A120: 3069 | B120: MEGA FIRST CORP BHD | C120: 2019-05-15 | D120: VL-IMJ | E120: Purchase | F120: 31829.07 | G120: TASEC | I120: EQT*190500531 | J120: 110.96 | K120: OMNIT | L120: MYR
A121: 3069 | B121: MEGA FIRST CORP BHD | C121: 2019-05-15 | D121: VL-CCK | E121: Purchase | F121: 31829.07 | G121: TASEC | I121: EQT*190500530 | J121: 110.96 | K121: OMNIT | L121: MYR
A122: 3069 | B122: MEGA FIRST CORP BHD | C122: 2019-05-15 | D122: PRSB | E122: Purchase | F122: 36072.95 | G122: TASEC | I122: EQT*190500528 | J122: 125.75 | K122: OMNIT | L122: MYR
A123: 3069 | B123: MEGA FIRST CORP BHD | C123: 2019-05-15 | D123: YS | E123: Purchase | F123: 63658.12 | G123: TASEC | I123: EQT*190500535 | J123: 221.91 | K123: OMNIT | L123: MYR
A124: 3069 | B124: MEGA FIRST CORP BHD | C124: 2019-05-15 | D124: YSIF | E124: Purchase | F124: 81340.94 | G124: TASEC | I124: EQT*190500536 | J124: 283.56 | K124: OMNIT | L124: MYR
A125: 3069 | B125: MEGA FIRST CORP BHD | C125: 2019-05-15 | D125: TAYS2 | E125: Purchase | F125: 81340.94 | G125: TASEC | I125: EQT*190500529 | J125: 283.56 | K125: OMNIT | L125: MYR
A126: 3069 | B126: MEGA FIRST CORP BHD | C126: 2019-05-15 | D126: VL-LKS | E126: Purchase | F126: 233413.16 | G126: TASEC | I126: EQT*190500532 | J126: 813.69 | K126: OMNIT | L126: MYR
A127: 7106 | B127: SUPERMAX CORP BHD | C127: 2019-05-15 | D127: MF | E127: Sales | F127: 4805.72 | G127: TASEC | I127: EQT*190500500 | J127: 16.91 | K127: OMNIT | L127: MYR
A128: 7106 | B128: SUPERMAX CORP BHD | C128: 2019-05-15 | D128: SIA | E128: Sales | F128: 6407.63 | G128: TASEC | I128: EQT*190500502 | J128: 22.54 | K128: OMNIT | L128: MYR
A129: 7106 | B129: SUPERMAX CORP BHD | C129: 2019-05-15 | D129: LFS | E129: Sales | F129: 6407.63 | G129: TASEC | I129: EQT*190500498 | J129: 22.54 | K129: OMNIT | L129: MYR
A130: 7106 | B130: SUPERMAX CORP BHD | C130: 2019-05-15 | D130: RTMOEY | E130: Sales | F130: 17620.98 | G130: TASEC | I130: EQT*190500501 | J130: 61.99 | K130: OMNIT | L130: MYR
A131: SG1T60930966 | B131: FRASERS CENTREPOINT TRUST | C131: 2019-05-17 | D131: WFL3 | E131: Sales | F131: 28996.47 | G131: TASEC | I131: EQT*190500573 | J131: 14.4 | K131: OMNIT | L131: SGD
A132: 5168 | B132: HARTALEGA HOLDINGS BHD | C132: 2019-05-21 | D132: VL-RAD | E132: Sales | F132: 1552.18 | G132: TASEC | I132: EQT*190500589 | J132: 5.46 | K132: OMNIT | L132: MYR
A133: 5168 | B133: HARTALEGA HOLDINGS BHD | C133: 2019-05-21 | D133: VL-CCK | E133: Sales | F133: 13452.22 | G133: TASEC | I133: EQT*190500586 | J133: 47.32 | K133: OMNIT | L133: MYR
A134: 5168 | B134: HARTALEGA HOLDINGS BHD | C134: 2019-05-21 | D134: VL-IMJ | E134: Sales | F134: 13969.62 | G134: TASEC | I134: EQT*190500587 | J134: 49.14 | K134: OMNIT | L134: MYR
A135: 5168 | B135: HARTALEGA HOLDINGS BHD | C135: 2019-05-21 | D135: VL-LKS | E135: Sales | F135: 103996.07 | G135: TASEC | I135: EQT*190500588 | J135: 365.82 | K135: OMNIT | L135: MYR
A136: 0079 | B136: ORION IXL BHD | C136: 2019-05-21 | D136: LWL | E136: Sales | F136: 23879.76 | G136: TASEC | I136: EQT*190500585 | J136: 84 | K136: OMNIT | L136: MYR
A137: 0180 | B137: KIM TECK CHEONG BHD | C137: 2019-05-24 | D137: VL-YCM | E137: Purchase | F137: 205.02 | G137: TASEC | I137: EQT*190500684 | J137: 0.71 | K137: OMNIT | L137: MYR
A138: 0180 | B138: KIM TECK CHEONG BHD | C138: 2019-05-24 | D138: VL-ANU | E138: Purchase | F138: 273.36 | G138: TASEC | I138: EQT*190500670 | J138: 0.95 | K138: OMNIT | L138: MYR
A139: 0180 | B139: KIM TECK CHEONG BHD | C139: 2019-05-24 | D139: VL-LNH | E139: Purchase | F139: 273.36 | G139: TASEC | I139: EQT*190500675 | J139: 0.95 | K139: OMNIT | L139: MYR
A140: 0180 | B140: KIM TECK CHEONG BHD | C140: 2019-05-24 | D140: VL-CSY | E140: Purchase | F140: 512.55 | G140: TASEC | I140: EQT*190500674 | J140: 1.78 | K140: OMNIT | L140: MYR
A141: 0180 | B141: KIM TECK CHEONG BHD | C141: 2019-05-24 | D141: VL-WPI | E141: Purchase | F141: 563.81 | G141: TASEC | I141: EQT*190500683 | J141: 1.96 | K141: OMNIT | L141: MYR
A142: 0180 | B142: KIM TECK CHEONG BHD | C142: 2019-05-24 | D142: VL-YHN | E142: Purchase | F142: 649.24 | G142: TASEC | I142: EQT*190500685 | J142: 2.26 | K142: OMNIT | L142: MYR
A143: 0180 | B143: KIM TECK CHEONG BHD | C143: 2019-05-24 | D143: VL-NCM | E143: Purchase | F143: 700.5 | G143: TASEC | I143: EQT*190500679 | J143: 2.44 | K143: OMNIT | L143: MYR
A144: 0180 | B144: KIM TECK CHEONG BHD | C144: 2019-05-24 | D144: VL-MAA | E144: Purchase | F144: 751.75 | G144: TASEC | I144: EQT*190500677 | J144: 2.62 | K144: OMNIT | L144: MYR
A145: 0180 | B145: KIM TECK CHEONG BHD | C145: 2019-05-24 | D145: VL-WKM | E145: Purchase | F145: 803.01 | G145: TASEC | I145: EQT*190500682 | J145: 2.8 | K145: OMNIT | L145: MYR
A146: 0180 | B146: KIM TECK CHEONG BHD | C146: 2019-05-24 | D146: VL-CSK | E146: Purchase | F146: 854.27 | G146: TASEC | I146: EQT*190500673 | J146: 2.97 | K146: OMNIT | L146: MYR
A147: 0180 | B147: KIM TECK CHEONG BHD | C147: 2019-05-24 | D147: VL-CFK | E147: Purchase | F147: 888.44 | G147: TASEC | I147: EQT*190500671 | J147: 3.09 | K147: OMNIT | L147: MYR
A148: 0180 | B148: KIM TECK CHEONG BHD | C148: 2019-05-24 | D148: VL-ZUL | E148: Purchase | F148: 1213.05 | G148: TASEC | I148: EQT*190500686 | J148: 4.22 | K148: OMNIT | L148: MYR
A149: 0180 | B149: KIM TECK CHEONG BHD | C149: 2019-05-24 | D149: VL-NAN | E149: Purchase | F149: 1315.56 | G149: TASEC | I149: EQT*190500678 | J149: 4.58 | K149: OMNIT | L149: MYR
A150: 0180 | B150: KIM TECK CHEONG BHD | C150: 2019-05-24 | D150: VL-CMC | E150: Purchase | F150: 1400.99 | G150: TASEC | I150: EQT*190500672 | J150: 4.88 | K150: OMNIT | L150: MYR
A151: 0180 | B151: KIM TECK CHEONG BHD | C151: 2019-05-24 | D151: VL-TAAM | E151: Purchase | F151: 4442.18 | G151: TASEC | I151: EQT*190500681 | J151: 15.47 | K151: OMNIT | L151: MYR
A152: 0180 | B152: KIM TECK CHEONG BHD | C152: 2019-05-24 | D152: DTKF | E152: Purchase | F152: 6492.42 | G152: TASEC | I152: EQT*190500669 | J152: 22.61 | K152: OMNIT | L152: MYR
A153: 0180 | B153: KIM TECK CHEONG BHD | C153: 2019-05-24 | D153: VL-SIC | E153: Purchase | F153: 7688.38 | G153: TASEC | I153: EQT*190500680 | J153: 26.77 | K153: OMNIT | L153: MYR
A154: 0180 | B154: KIM TECK CHEONG BHD | C154: 2019-05-24 | D154: VL-LWD | E154: Purchase | F154: 59798.52 | G154: TASEC | I154: EQT*190500676 | J154: 208.25 | K154: OMNIT | L154: MYR
A155: 7164 | B155: KNM GROUP BHD | C155: 2019-05-24 | D155: AG-TJK1 | E155: Purchase | F155: 4640 | G155: PRIVATE PLACEMENT | I155: EQT*190500601 | J155: 0 | K155: OMNIT | L155: MYR
A156: 7164 | B156: KNM GROUP BHD | C156: 2019-05-24 | D156: AG-SKS | E156: Purchase | F156: 20640 | G156: PRIVATE PLACEMENT | I156: EQT*190500600 | J156: 0 | K156: OMNIT | L156: MYR
A157: 7164 | B157: KNM GROUP BHD | C157: 2019-05-24 | D157: LWL | E157: Purchase | F157: 22400 | G157: PRIVATE PLACEMENT | I157: EQT*190500602 | J157: 0 | K157: OMNIT | L157: MYR
A158: 7164 | B158: KNM GROUP BHD | C158: 2019-05-24 | D158: WFL2 | E158: Purchase | F158: 24320 | G158: PRIVATE PLACEMENT | I158: EQT*190500603 | J158: 0 | K158: OMNIT | L158: MYR
A159: 7164 | B159: KNM GROUP BHD | C159: 2019-05-24 | D159: VM-WAS | E159: Purchase | F159: 56000 | G159: PRIVATE PLACEMENT | I159: EQT*190500604 | J159: 0 | K159: OMNIT | L159: MYR
A160: 0007 | B160: PUC BHD | C160: 2019-05-24 | D160: PRSB | E160: Sales | F160: 10358.3 | G160: TASEC | I160: EQT*190500695 | J160: 36.4 | K160: OMNIT | L160: MYR
A161: 0007 | B161: PUC BHD | C161: 2019-05-24 | D161: YS | E161: Sales | F161: 18326.22 | G161: TASEC | I161: EQT*190500698 | J161: 64.4 | K161: OMNIT | L161: MYR
A162: 0007 | B162: PUC BHD | C162: 2019-05-24 | D162: TAYS2 | E162: Sales | F162: 23106.97 | G162: TASEC | I162: EQT*190500696 | J162: 81.2 | K162: OMNIT | L162: MYR
A163: 0007 | B163: PUC BHD | C163: 2019-05-24 | D163: YSIF | E163: Sales | F163: 38246.02 | G163: TASEC | I163: EQT*190500699 | J163: 134.4 | K163: OMNIT | L163: MYR
A164: 0007 | B164: PUC BHD | C164: 2019-05-24 | D164: VL-LKS | E164: Sales | F164: 77288.82 | G164: TASEC | I164: EQT*190500697 | J164: 271.6 | K164: OMNIT | L164: MYR
A165: 5347 | B165: TENAGA NASIONAL BHD | C165: 2019-05-24 | D165: PRSB | E165: Purchase | F165: 3516.35 | G165: TASEC | I165: EQT*190500692 | J165: 12.25 | K165: OMNIT | L165: MYR
A166: 5347 | B166: TENAGA NASIONAL BHD | C166: 2019-05-24 | D166: VL-IMJ | E166: Purchase | F166: 11721.15 | G166: TASEC | I166: EQT*190500694 | J166: 40.82 | K166: OMNIT | L166: MYR
A167: 5347 | B167: TENAGA NASIONAL BHD | C167: 2019-05-24 | D167: TAYS2 | E167: Purchase | F167: 25786.53 | G167: TASEC | I167: EQT*190500693 | J167: 89.8 | K167: OMNIT | L167: MYR
A168: SG2G52000004 | B168: FRASERS PROPERTY LTD | C168: 2019-05-27 | D168: WWK | E168: Sales | F168: 13558.37 | G168: TASEC | I168: EQT*190500720 | J168: 6.71 | K168: OMNIT | L168: SGD
A169: SG2G52000004 | B169: FRASERS PROPERTY LTD | C169: 2019-05-27 | D169: CWK2 | E169: Sales | F169: 17897.04 | G169: TASEC | I169: EQT*190500717 | J169: 8.85 | K169: OMNIT | L169: SGD
A170: SG2G52000004 | B170: FRASERS PROPERTY LTD | C170: 2019-05-27 | D170: CYT | E170: Sales | F170: 31997.74 | G170: TASEC | I170: EQT*190500718 | J170: 15.83 | K170: OMNIT | L170: SGD
A171: SG2G52000004 | B171: FRASERS PROPERTY LTD | C171: 2019-05-27 | D171: WFL3 | E171: Sales | F171: 34167.09 | G171: TASEC | I171: EQT*190500719 | J171: 16.9 | K171: OMNIT | L171: SGD
A172: 0151 | B172: KELINGTON GROUP BHD | C172: 2019-05-27 | D172: AG-SKS | E172: Sales | F172: 21036.1 | G172: KLCS | I172: EQT*190500721 | J172: 73.92 | K172: OMNIT | L172: MYR
A173: 0151 | B173: KELINGTON GROUP BHD | C173: 2019-05-27 | D173: WFL2 | E173: Sales | F173: 23510.94 | G173: KLCS | I173: EQT*190500723 | J173: 82.62 | K173: OMNIT | L173: MYR
A174: 0151 | B174: KELINGTON GROUP BHD | C174: 2019-05-27 | D174: VM-WAS | E174: Sales | F174: 56921.22 | G174: KLCS | I174: EQT*190500722 | J174: 200.03 | K174: OMNIT | L174: MYR
A175: GB0004082847 | B175: STANDARD CHARTERED PLC | C175: 2019-05-27 | D175: AG-TJK1 | E175: Sales | F175: 4657.22 | G175: TASEC | I175: EQT*190500715 | J175: 13.16 | K175: OMNIT | L175: HKD
A176: GB0004082847 | B176: STANDARD CHARTERED PLC | C176: 2019-05-27 | D176: AG-SKS | E176: Sales | F176: 24002.61 | G176: TASEC | I176: EQT*190500714 | J176: 67.84 | K176: OMNIT | L176: HKD
A177: GB0004082847 | B177: STANDARD CHARTERED PLC | C177: 2019-05-27 | D177: WFL2 | E177: Sales | F177: 25077.35 | G177: TASEC | I177: EQT*190500716 | J177: 70.88 | K177: OMNIT | L177: HKD
A178: 8877 | B178: EKOVEST BHD | C178: 2019-05-28 | D178: AG-TJK1 | E178: Sales | F178: 4164 | G178: TASEC | I178: EQT*190500751 | J178: 14.63 | K178: OMNIT | L178: MYR
A179: 8877 | B179: EKOVEST BHD | C179: 2019-05-28 | D179: AG-JOS | E179: Sales | F179: 4738.34 | G179: TASEC | I179: EQT*190500749 | J179: 16.65 | K179: OMNIT | L179: MYR
A180: 8877 | B180: EKOVEST BHD | C180: 2019-05-28 | D180: AG-SKS | E180: Sales | F180: 17948.27 | G180: TASEC | I180: EQT*190500750 | J180: 63.07 | K180: OMNIT | L180: MYR
A181: 8877 | B181: EKOVEST BHD | C181: 2019-05-28 | D181: WFL2 | E181: Sales | F181: 21250.74 | G181: TASEC | I181: EQT*190500752 | J181: 74.68 | K181: OMNIT | L181: MYR
A182: 8877 | B182: EKOVEST BHD | C182: 2019-05-28 | D182: VM-WAS | E182: Sales | F182: 48819.28 | G182: TASEC | I182: EQT*190500757 | J182: 171.56 | K182: OMNIT | L182: MYR
A183: 8877WB | B183: EKOVEST-WB | C183: 2019-05-28 | D183: AG-TJK1 | E183: Purchase | F183: 1154.65 | G183: TASEC | I183: EQT*190500765 | J183: 4.02 | K183: OMNIT | L183: MYR
A184: 8877WB | B184: EKOVEST-WB | C184: 2019-05-28 | D184: AG-JOS | E184: Purchase | F184: 1313.92 | G184: TASEC | I184: EQT*190500763 | J184: 4.58 | K184: OMNIT | L184: MYR
A185: 8877WB | B185: EKOVEST-WB | C185: 2019-05-28 | D185: AG-SKS | E185: Purchase | F185: 4976.99 | G185: TASEC | I185: EQT*190500764 | J185: 17.33 | K185: OMNIT | L185: MYR
A186: 8877WB | B186: EKOVEST-WB | C186: 2019-05-28 | D186: WFL2 | E186: Purchase | F186: 5892.75 | G186: TASEC | I186: EQT*190500766 | J186: 20.52 | K186: OMNIT | L186: MYR
A187: 8877WB | B187: EKOVEST-WB | C187: 2019-05-28 | D187: VM-WAS | E187: Purchase | F187: 13537.42 | G187: TASEC | I187: EQT*190500767 | J187: 47.16 | K187: OMNIT | L187: MYR
A188: 1818 | B188: BURSA MALAYSIA BHD | C188: 2019-05-29 | D188: MF | E188: Purchase | F188: 11405.81 | G188: TASEC | I188: EQT*190500814 | J188: 39.72 | K188: OMNIT | L188: MYR
A189: 1818 | B189: BURSA MALAYSIA BHD | C189: 2019-05-29 | D189: LFS | E189: Purchase | F189: 13807.03 | G189: TASEC | I189: EQT*190500812 | J189: 48.08 | K189: OMNIT | L189: MYR
A190: 1818 | B190: BURSA MALAYSIA BHD | C190: 2019-05-29 | D190: SIA | E190: Purchase | F190: 13807.03 | G190: TASEC | I190: EQT*190500816 | J190: 48.08 | K190: OMNIT | L190: MYR
A191: 1818 | B191: BURSA MALAYSIA BHD | C191: 2019-05-29 | D191: RTMOEY | E191: Purchase | F191: 23412 | G191: TASEC | I191: EQT*190500824 | J191: 81.58 | K191: OMNIT | L191: MYR
A192: 1023 | B192: CIMB GROUP HOLDINGS BHD | C192: 2019-05-29 | D192: VL-CCK | E192: Purchase | F192: 19169.9 | G192: TASEC | I192: EQT*190500821 | J192: 66.76 | K192: OMNIT | L192: MYR
A193: 1023 | B193: CIMB GROUP HOLDINGS BHD | C193: 2019-05-29 | D193: VL-IMJ | E193: Purchase | F193: 19688 | G193: TASEC | I193: EQT*190500822 | J193: 68.56 | K193: OMNIT | L193: MYR
A194: 9261 | B194: GADANG HOLDINGS BHD | C194: 2019-05-30 | D194: VL-LNH | E194: Purchase | F194: 1540 | G194: PRIVATE PLACEMENT | I194: EQT*190500850 | J194: 0 | K194: OMNIT | L194: MYR
A195: 9261 | B195: GADANG HOLDINGS BHD | C195: 2019-05-30 | D195: VL-ANU | E195: Purchase | F195: 1771 | G195: PRIVATE PLACEMENT | I195: EQT*190500844 | J195: 0 | K195: OMNIT | L195: MYR
A196: 9261 | B196: GADANG HOLDINGS BHD | C196: 2019-05-30 | D196: VL-YCM | E196: Purchase | F196: 1848 | G196: PRIVATE PLACEMENT | I196: EQT*190500858 | J196: 0 | K196: OMNIT | L196: MYR
A197: 9261 | B197: GADANG HOLDINGS BHD | C197: 2019-05-30 | D197: VL-CSY | E197: Purchase | F197: 3157 | G197: PRIVATE PLACEMENT | I197: EQT*190500848 | J197: 0 | K197: OMNIT | L197: MYR
A198: 9261 | B198: GADANG HOLDINGS BHD | C198: 2019-05-30 | D198: VL-WPI | E198: Purchase | F198: 3542 | G198: PRIVATE PLACEMENT | I198: EQT*190500857 | J198: 0 | K198: OMNIT | L198: MYR
A199: 9261 | B199: GADANG HOLDINGS BHD | C199: 2019-05-30 | D199: VL-YHN | E199: Purchase | F199: 3773 | G199: PRIVATE PLACEMENT | I199: EQT*190500859 | J199: 0 | K199: OMNIT | L199: MYR
A200: 9261 | B200: GADANG HOLDINGS BHD | C200: 2019-05-30 | D200: VL-NCM | E200: Purchase | F200: 4081 | G200: PRIVATE PLACEMENT | I200: EQT*190500852 | J200: 0 | K200: OMNIT | L200: MYR
... 13 more rows

Sheet FundGroup
B1: CYT
A2: +
A3: AG-ALK | B3: AG-ALK
A4: AG-BAY | B4: AG-BAY
A5: AG-BCK | B5: AG-BCK
A6: AG-CEH | B6: AG-CEH
A7: AG-CHAR | B7: AG-CHAR
A8: AG-CHM | B8: AG-CHM
A9: AG-CHS | B9: AG-CHS
A10: AG-CKC | B10: AG-CKC
A11: AG-CL | B11: AG-CL
A12: AG-CLM | B12: AG-CLM
A13: AG-CML | B13: AG-CML
A14: AG-CSK | B14: AG-CSK
A15: AG-CSM | B15: AG-CSM
A16: AG-CSY | B16: AG-CSY
A17: AG-FHH | B17: AG-FHH
A18: AG-FLL | B18: AG-FLL
A19: AG-GERA | B19: AG-GERA
A20: AG-HCW | B20: AG-HCW
A21: AG-HMF | B21: AG-HMF
A22: AG-HPL | B22: AG-HPL
A23: AG-JABA | B23: AG-JABA
A24: AG-JIS | B24: AG-JIS
A25: AG-JMIL | B25: AG-JMIL
A26: AG-JOH | B26: AG-JOH
A27: AG-JOS | B27: AG-JOS
A28: AG-KAMA | B28: AG-KAMA
A29: AG-KJK | B29: AG-KJK
A30: AG-KPB | B30: AG-KPB
A31: AG-KYV | B31: AG-KYV
A32: AG-LCT | B32: AG-LCT
A33: AG-LGL | B33: AG-LGL
A34: AG-LHK | B34: AG-LHK
A35: AG-LHL | B35: AG-LHL
A36: AG-LHY | B36: AGLHY
A37: AG-LIZA | B37: AG-LIZA
A38: AG-LKH | B38: AG-LKH
A39: AG-LKS | B39: AG-LKS
A40: AG-LMS | B40: AGLMS
A41: AG-LSW | B41: AG-LSW
A42: AG-LYK | B42: AG-LYK
A43: AG-MST | B43: AG-MST
A44: AG-MYO | B44: AG-MYO
A45: AG-NCH | B45: AG-NCH
A46: AG-NIK | B46: AG-NIK
A47: AG-NMF | B47: AG-NMF
A48: AG-NSJ | B48: AG-NSJ
A49: AG-NSS | B49: AG-NSS
A50: AG-NTE | B50: AG-NTE
A51: AG-NWS | B51: AG-NWS
A52: AG-OAT | B52: AG-OAT
A53: AG-OHT | B53: AG-OHT
A54: AG-RAZ | B54: AG-RAZ
A55: AG-RIHN | B55: AG-RIHN
A56: AG-SALL | B56: AG-SALL
A57: AG-SBL | B57: AG-SBL
A58: AG-SBY | B58: AG-SBY
A59: AG-SCP | B59: AG-SCP
A60: AG-SCS | B60: AG-SCS
A61: AG-SHT | B61: AG-SHT
A62: AG-SKS | B62: AG-SKS
A63: AG-SLS | B63: AG-SLS
A64: AG-SMC | B64: AG-SMC
A65: AG-SSW | B65: AG-SSW
A66: AG-SSY | B66: AG-SSY
A67: AG-SWL | B67: AG-SWL
A68: AG-TCK | B68: AG-TCK
A69: AG-TGN | B69: AG-TGN
A70: AG-THT | B70: AG-THT
A71: AG-TJK | B71: AG-TJK
A72: AG-TJK1 | B72: AG-TJK1
A73: AG-TKY | B73: AG-TKY
A74: AG-TMC | B74: AG-TMC
A75: AG-TPE | B75: AG-TPE
A76: AG-TSF | B76: AG-TSF
A77: AG-TSH | B77: AG-TSH
A78: AG-TSI | B78: AG-TSI
A79: AG-TSP | B79: AG-TSP
A80: AG-TYM | B80: TAN YUEN MUN
A81: AG-WAN | B81: AG-WAN
A82: AG-WAS | B82: AG-WAS
A83: AG-WAT | B83: AG-WAT
A84: AG-WSF | B84: AG-WSF
A85: AG-YCM | B85: AG-YCM
A86: AG-YPM | B86: AG-YPM
A87: AG-YSK1 | B87: AG-YSK1
A88: AG-YSP | B88: AG-YSP
A89: AG-YTC | B89: AG-YTC
A90: AKC2 | B90: AKC2
A91: AKS | B91: AKS
A92: All Funds | B92: All Funds
A93: ALLFUNDS | B93: All Funds
A94: ALT | B94: ALT
A95: AT | B95: AT
A96: AZI | B96: AZI
A97: BHLB | B97: BHLB Trustee berhad
A98: BS | B98: BS
A99: BTASS | B99: BTASS
A100: BTCTW | B100: BTCTW
A101: BTDJS | B101: BTDJS
A102: BTGLS | B102: BTGLS
A103: BTHAH | B103: BTHAH
A104: BTKSH | B104: BTKSH
A105: BTLAI | B105: BTLAI
A106: BTLSL | B106: BTLSL
A107: BTOKS | B107: BTOKS
A108: BTSLH | B108: BTSLH
A109: BTSS | B109: BTSS
A110: BTTAY | B110: BTTAY
A111: BTTBS | B111: BTTBS
A112: BTTMJ | B112: BTTMJ
A113: BTTSC | B113: BTTSC
A114: BTWT | B114: BTWT
A115: BTYCK | B115: BTYCK
A116: CALV | B116: CALV
A117: CARE | B117: CARE
A118: CCL | B118: CCL
A119: CFK | B119: CFK
A120: CIS | B120: CIS
A121: CKH | B121: CKH
A122: CKL | B122: CKL
A123: CLA1 | B123: CLA1
A124: CLK | B124: CLK
A125: CLL | B125: CLL
A126: CMC | B126: CMC
A127: CMC2 | B127: CMC2
A128: CP | B128: CORPORATE BODIES
A129: CPK | B129: CPK
A130: CP-RELATED | B130: CORPORATE BODIES - RELATED PARTIES
A131: CSJ | B131: CSJ
A132: CWK | B132: CWK
A133: CWK2 | B133: CWK2
A134: CWL | B134: CWL
A135: CYT | B135: CYT
A136: CYY | B136: CYY
A137: DAILY_UT_FUND | B137: Daily Unit Trust Funds
A138: DH | B138: DH
A139: DISC | B139: Discretionary Client
A140: DTKF | B140: DTKF
A141: DTTK | B141: DTTK
A142: DUMMY | B142: DUMMY
A143: DUMMY1 | B143: DUMMY1
A144: ED | B144: ED
A145: EL | B145: EL
A146: EPF | B146: EPF
A147: EYC1 | B147: EYC1
A148: FTEC | B148: FTEC
A149: FUNDA3 | B149: FUNDA3
A150: GATB | B150: GLOBAL ASSET TRUSTEE (M) BERHAD
A151: GBH | B151: GOH BOON HEONG & NG WHAI TECK
A152: GNS | B152: GNS
A153: GPH | B153: GPH
A154: GSK | B154: GSK
A155: HAF | B155: HAF
A156: HARRI | B156: HARRI
A157: HAS | B157: HAS
A158: HCC | B158: HCC
A159: HHN | B159: HHN
A160: HSBC | B160: HSBC TRUSTEE (M)BHD
A161: HUANG | B161: HUANG
A162: HYH | B162: HYH
A163: JC | B163: JC
A164: KHANG | B164: KHANG
A165: KHC | B165: KHC
A166: KKK | B166: KKK
A167: KSA | B167: KSA
A168: KUDA | B168: KUDA
A169: LAM | B169: LAM
A170: LAU | B170: LAU
A171: LC | B171: LC
A172: LCY | B172: LCY
A173: LFS | B173: LFS
A174: LGY | B174: LGY
A175: LHB | B175: LHB
A176: LHC | B176: LHC
A177: LHL | B177: LHL
A178: LKW | B178: LKW
A179: LKYH | B179: LKYH
A180: LLB2 | B180: LLB2
A181: LMH | B181: LMH
A182: LMM | B182: LMM
A183: LMT2 | B183: LMT2
A184: LOB | B184: LOB
A185: LP | B185: LP
A186: LSH | B186: LSH
A187: LSK | B187: LSK
A188: LWC | B188: LEOW WEI CHIN
A189: LWF | B189: LWF
A190: LWL | B190: LWL
A191: LWW | B191: LWW
A192: MACEY1 | B192: MACEY1
A193: MAPTB | B193: MAPTB
A194: MARI | B194: MARI
A195: MATT | B195: MATT
A196: MAYBANK TRUSTEE | B196: MAYBANK TRUSTEE
A197: MC | B197: MC
A198: MCC | B198: MCC
A199: MF | B199: MF
A200: MFM | B200: MFM
... 451 more rows

Sheet FundList
A1: 0800EA | D1: =COUNTA(A:A) -> 93
A2: 3603
A3: 4952
A4: 5111
A5: 6696
A6: AHCGF
A7: AHJGP
A8: AHSDVF
A9: GB0033737767
A10: HK2800008867
A11: HLBOND
A12: HLHKOP
A13: HWABOND
A14: HWACOME
A15: HWAEDEP
A16: IE00B1LHWR71
A17: KAPINCF
A18: KENAATTRF
A19: KNAPTRF
A20: KNGBOND
A21: KNGCPF
A22: KNGF
A23: KNKAPOF
A24: KNKBF
A25: KNKCASH
A26: KNKSGF
A27: LU0011889846
A28: LU0046217351
A29: LU0070992663
A30: LU0072814717
A31: LU0072816332
A32: LU0080608945
A33: LU0085493897
A34: LU0085494788
A35: LU0085495322
A36: LU0103371943
A37: LU0111491469
A38: LU0138822159
A39: LU0195061857
A40: LU0195951610
A41: LU0229951032
A42: LU0251431754
A43: LU0258659449
A44: LU0264605907
A45: LU0377127286
A46: LU0451950314
A47: LU0503932328
A48: LU0506197887
A49: LU0642271901
A50: LU0974284688
A51: LU1039938227
A52: LU1059379971
A53: LU1169991020
A54: LU1235249262
A55: PACAPIN
A56: PACCF
A57: PACIDAMU
A58: PACIFOCHI
A59: PACIGLO
A60: PACINCF
A61: PACINCOM
A62: PACROAR
A63: RHBBOND
A64: RHBGLTD
A65: RHBSBF
A66: SG1M51904654
A67: SG1P32918333
A68: SG1T66931158
A69: SG9999002331
A70: SG9999002356
A71: SG9999002463
A72: TAACCI
A73: TAADIF
A74: TABRIC
A75: TACF
A76: TACP
A77: TADA
A78: TADF
A79: TADO
A80: TAEURO
A81: TAGAAF
A82: TAGF
A83: TAGTF
A84: TAHGF
A85: TAIB
A86: TAICP
A87: TAIF
A88: TAINC
A89: TAREITS
A90: TASCAP
A91: TASEAEF
A92: TAUF
A93: TRFIF

Sheet BrokerList
A1: Alliance Bank(IS) | D1: =COUNTA(A:A) -> 16
A2: CSHINJECT
A3: CSHWITHDRAW
A4: DIV REINVESTMENT
A5: DIVIDEND REINVEST
A6: DIVREINVEST
A7: EXCESS APPLICATION
A8: INJECTION OF SHARE
A9: REINVESTMENT SHARE
A10: SUB. OF RIGHTS
A11: TAIM
A12: TAINT
A13: UNIT TRUST TRANSFER
A14: VOLUNTARY OFFER
A15: WARRANTS CONVERSION
A16: WITHDRAWAL OF SHARE

Sheet TranCost
A1: TA Investment Management Berhad
A2: TASEC Nominees (Tempatan) Sdn Bhd - Trust A/C for TA Investment' Clients
A3: Transaction Cost 0.1% on each OMNIBUS transaction to a maximum of RM 200
A5: Equity Transactions - May 2019
A7: AIMS APAC REIT
A8: Date | B8: Client | C8: Trans | D8: Amount(RM) | E8: Transaction Cost (0.1%) | F8: Omnibus (Max 200) | G8: SGD
A9: 2019-05-02 | B9: VL-LNH | C9: Purchase | D9: 2167.28 | E9: =ROUND(D9*0.1%, 2) -> 2.17 | F9: =IF(E28>200,ROUND(E9/E28*200, 2),E9) -> 1.78
A10: 2019-05-02 | B10: VL-YCM | C10: Purchase | D10: 2167.31 | E10: 2.17 | F10: =IF(E28>200,ROUND(E10/E28*200, 2),E10) -> 1.78
A11: 2019-05-02 | B11: VL-ANU | C11: Purchase | D11: 2600.77 | E11: 2.6 | F11: =IF(E28>200,ROUND(E11/E28*200, 2),E11) -> 2.13
A12: 2019-05-02 | B12: VL-CSY | C12: Purchase | D12: 4768.04 | E12: 4.77 | F12: =IF(E28>200,ROUND(E12/E28*200, 2),E12) -> 3.9
A13: 2019-05-02 | B13: VL-WPI | C13: Purchase | D13: 5201.57 | E13: 5.2 | F13: =IF(E28>200,ROUND(E13/E28*200, 2),E13) -> 4.25
A14: 2019-05-02 | B14: VL-YHN | C14: Purchase | D14: 5635 | E14: 5.64 | F14: =IF(E28>200,ROUND(E14/E28*200, 2),E14) -> 4.61
A15: 2019-05-02 | B15: VL-MAA | C15: Purchase | D15: 5635 | E15: 5.64 | F15: =IF(E28>200,ROUND(E15/E28*200, 2),E15) -> 4.61
A16: 2019-05-02 | B16: VL-NCM | C16: Purchase | D16: 6068.46 | E16: 6.07 | F16: =IF(E28>200,ROUND(E16/E28*200, 2),E16) -> 4.97
A17: 2019-05-02 | B17: VL-WKM | C17: Purchase | D17: 6501.89 | E17: 6.5 | F17: =IF(E28>200,ROUND(E17/E28*200, 2),E17) -> 5.32
A18: 2019-05-02 | B18: VL-CSK | C18: Purchase | D18: 7368.84 | E18: 7.37 | F18: =IF(E28>200,ROUND(E18/E28*200, 2),E18) -> 6.03
A19: 2019-05-02 | B19: VL-CFK | C19: Purchase | D19: 7368.84 | E19: 7.37 | F19: =IF(E28>200,ROUND(E19/E28*200, 2),E19) -> 6.03
A20: 2019-05-02 | B20: VL-ZUL | C20: Purchase | D20: 9969.61 | E20: 9.97 | F20: =IF(E28>200,ROUND(E20/E28*200, 2),E20) -> 8.16
A21: 2019-05-02 | B21: VL-CMC | C21: Purchase | D21: 10836.5 | E21: 10.84 | F21: =IF(E28>200,ROUND(E21/E28*200, 2),E21) -> 8.87
A22: 2019-05-02 | B22: VL-NAN | C22: Purchase | D22: 10836.5 | E22: 10.84 | F22: =IF(E28>200,ROUND(E22/E28*200, 2),E22) -> 8.87
A23: 2019-05-02 | B23: VL-WFR | C23: Purchase | D23: 11703.42 | E23: 11.7 | F23: =IF(E28>200,ROUND(E23/E28*200, 2),E23) -> 9.57
A24: 2019-05-02 | B24: VL-TAAM | C24: Purchase | D24: 22106.46 | E24: 22.11 | F24: =IF(E28>200,ROUND(E24/E28*200, 2),E24) -> 18.09
A25: 2019-05-02 | B25: DTKF | C25: Purchase | D25: 31209.15 | E25: 31.21 | F25: =IF(E28>200,ROUND(E25/E28*200, 2),E25) -> 25.53
A26: 2019-05-02 | B26: VL-MSG | C26: Purchase | D26: 37711 | E26: 37.71 | F26: =IF(E28>200,ROUND(E26/E28*200, 2),E26) -> 30.85
A27: 2019-05-02 | B27: VL-SIC | C27: Purchase | D27: 54615.96 | E27: 54.62 | F27: =IF(E28>200,200-SUM(F9:F26),E27) -> 44.65
D28: =SUM(D9:D27) -> 244471.6 | E28: =SUM(E9:E27) -> 244.5 | F28: =SUM(F9:F27) -> 200
A30: FRONTKEN CORP BHD
A31: Date | B31: Client | C31: Trans | D31: Amount(RM) | E31: Transaction Cost (0.1%) | F31: Omnibus (Max 200) | G31: MYR
A32: 2019-05-02 | B32: VL-RAD | C32: Sales | D32: 4230.13 | E32: =ROUND(D32*0.1%, 2) -> 4.23 | F32: =IF(E35>200,ROUND(E32/E35*200, 2),E32) -> 4.23
A33: 2019-05-02 | B33: VL-CCK | C33: Sales | D33: 8869.62 | E33: =ROUND(D33*0.1%, 2) -> 8.87 | F33: =IF(E35>200,ROUND(E33/E35*200, 2),E33) -> 8.87
A34: 2019-05-02 | B34: VL-IMJ | C34: Sales | D34: 41209.59 | E34: =ROUND(D34*0.1%, 2) -> 41.21 | F34: =IF(E35>200,200-SUM(F32:F33),E34) -> 41.21
D35: =SUM(D32:D34) -> 54309.34 | E35: =SUM(E32:E34) -> 54.31 | F35: =SUM(F32:F34) -> 54.31
A37: EKOVEST BHD
A38: Date | B38: Client | C38: Trans | D38: Amount(RM) | E38: Transaction Cost (0.1%) | F38: Omnibus (Max 200) | G38: MYR
A39: 2019-05-03 | B39: AG-JOS | C39: Purchase | D39: 5818.74 | E39: =ROUND(D39*0.1%, 2) -> 5.82 | F39: =IF(E44>200,ROUND(E39/E44*200, 2),E39) -> 5.82
A40: 2019-05-03 | B40: AG-TJK1 | C40: Purchase | D40: 6339.82 | E40: =ROUND(D40*0.1%, 2) -> 6.34 | F40: =IF(E44>200,ROUND(E40/E44*200, 2),E40) -> 6.34
A41: 2019-05-03 | B41: AG-SKS | C41: Purchase | D41: 22580.19 | E41: =ROUND(D41*0.1%, 2) -> 22.58 | F41: =IF(E44>200,ROUND(E41/E44*200, 2),E41) -> 22.58
A42: 2019-05-03 | B42: WFL2 | C42: Purchase | D42: 26922.52 | E42: =ROUND(D42*0.1%, 2) -> 26.92 | F42: =IF(E44>200,ROUND(E42/E44*200, 2),E42) -> 26.92
A43: 2019-05-03 | B43: VM-WAS | C43: Purchase | D43: 60792.81 | E43: =ROUND(D43*0.1%, 2) -> 60.79 | F43: =IF(E44>200,200-SUM(F39:F42),E43) -> 60.79
D44: =SUM(D39:D43) -> 122454.08 | E44: =SUM(E39:E43) -> 122.45 | F44: =SUM(F39:F43) -> 122.45
A46: EKOVEST BHD
A47: Date | B47: Client | C47: Trans | D47: Amount(RM) | E47: Transaction Cost (0.1%) | F47: Omnibus (Max 200) | G47: MYR
A48: 2019-05-03 | B48: AG-JOS | C48: Sales | D48: 6139.29 | E48: =ROUND(D48*0.1%, 2) -> 6.14 | F48: =IF(E53>200,ROUND(E48/E53*200, 2),E48) -> 6.14
A49: 2019-05-03 | B49: AG-TJK1 | C49: Sales | D49: 6689.07 | E49: =ROUND(D49*0.1%, 2) -> 6.69 | F49: =IF(E53>200,ROUND(E49/E53*200, 2),E49) -> 6.69
A50: 2019-05-03 | B50: AG-SKS | C50: Sales | D50: 23824.08 | E50: =ROUND(D50*0.1%, 2) -> 23.82 | F50: =IF(E53>200,ROUND(E50/E53*200, 2),E50) -> 23.82
A51: 2019-05-03 | B51: WFL2 | C51: Sales | D51: 28405.63 | E51: =ROUND(D51*0.1%, 2) -> 28.41 | F51: =IF(E53>200,ROUND(E51/E53*200, 2),E51) -> 28.41
A52: 2019-05-03 | B52: VM-WAS | C52: Sales | D52: 64141.75 | E52: =ROUND(D52*0.1%, 2) -> 64.14 | F52: =IF(E53>200,200-SUM(F48:F51),E52) -> 64.14
D53: =SUM(D48:D52) -> 129199.82 | E53: =SUM(E48:E52) -> 129.2 | F53: =SUM(F48:F52) -> 129.2
A55: MANULIFE US REAL ESTATE INVESTMENT TRUST
A56: Date | B56: Client | C56: Trans | D56: Amount(RM) | E56: Transaction Cost (0.1%) | F56: Omnibus (Max 200) | G56: USD
A57: 2019-05-03 | B57: VL-RAD | C57: Purchase | D57: 15927.79 | E57: =ROUND(D57*0.1%, 2) -> 15.93 | F57: =IF(E60>200,ROUND(E57/E60*200, 2),E57) -> 13.6
A58: 2019-05-03 | B58: VL-CCK | C58: Purchase | D58: 107512.31 | E58: =ROUND(D58*0.1%, 2) -> 107.51 | F58: =IF(E60>200,ROUND(E58/E60*200, 2),E58) -> 91.81
A59: 2019-05-03 | B59: VL-IMJ | C59: Purchase | D59: 110770.23 | E59: =ROUND(D59*0.1%, 2) -> 110.77 | F59: =IF(E60>200,200-SUM(F57:F58),E59) -> 94.59
D60: =SUM(D57:D59) -> 234210.33 | E60: =SUM(E57:E59) -> 234.21 | F60: =SUM(F57:F59) -> 200
A62: MANULIFE US REAL ESTATE INVESTMENT TRUST
A63: Date | B63: Client | C63: Trans | D63: Amount(RM) | E63: Transaction Cost (0.1%) | F63: Omnibus (Max 200) | G63: USD
A64: 2019-05-06 | B64: VL-LNH | C64: Purchase | D64: 2186.27 | E64: =ROUND(D64*0.1%, 2) -> 2.19 | F64: =IF(E81>200,ROUND(E64/E81*200, 2),E64) -> 2.19
A65: 2019-05-06 | B65: VL-YCM | C65: Purchase | D65: 2186.31 | E65: 2.19 | F65: =IF(E81>200,ROUND(E65/E81*200, 2),E65) -> 2.19
A66: 2019-05-06 | B66: VL-ANU | C66: Purchase | D66: 2550.66 | E66: 2.55 | F66: =IF(E81>200,ROUND(E66/E81*200, 2),E66) -> 2.55
A67: 2019-05-06 | B67: VL-CSY | C67: Purchase | D67: 4736.89 | E67: 4.74 | F67: =IF(E81>200,ROUND(E67/E81*200, 2),E67) -> 4.74
A68: 2019-05-06 | B68: VL-WPI | C68: Purchase | D68: 5101.28 | E68: 5.1 | F68: =IF(E81>200,ROUND(E68/E81*200, 2),E68) -> 5.1
A69: 2019-05-06 | B69: VL-YHN | C69: Purchase | D69: 5465.59 | E69: 5.47 | F69: =IF(E81>200,ROUND(E69/E81*200, 2),E69) -> 5.47
A70: 2019-05-06 | B70: VL-NCM | C70: Purchase | D70: 5829.98 | E70: 5.83 | F70: =IF(E81>200,ROUND(E70/E81*200, 2),E70) -> 5.83
A71: 2019-05-06 | B71: VL-MAA | C71: Purchase | D71: 5829.98 | E71: 5.83 | F71: =IF(E81>200,ROUND(E71/E81*200, 2),E71) -> 5.83
A72: 2019-05-06 | B72: VL-WKM | C72: Purchase | D72: 6558.72 | E72: 6.56 | F72: =IF(E81>200,ROUND(E72/E81*200, 2),E72) -> 6.56
A73: 2019-05-06 | B73: VL-CSK | C73: Purchase | D73: 7287.47 | E73: 7.29 | F73: =IF(E81>200,ROUND(E73/E81*200, 2),E73) -> 7.29
A74: 2019-05-06 | B74: VL-CFK | C74: Purchase | D74: 7287.51 | E74: 7.29 | F74: =IF(E81>200,ROUND(E74/E81*200, 2),E74) -> 7.29
A75: 2019-05-06 | B75: VL-ZUL | C75: Purchase | D75: 10202.48 | E75: 10.2 | F75: =IF(E81>200,ROUND(E75/E81*200, 2),E75) -> 10.2
A76: 2019-05-06 | B76: VL-NAN | C76: Purchase | D76: 10566.87 | E76: 10.57 | F76: =IF(E81>200,ROUND(E76/E81*200, 2),E76) -> 10.57
A77: 2019-05-06 | B77: VL-CMC | C77: Purchase | D77: 10931.22 | E77: 10.93 | F77: =IF(E81>200,ROUND(E77/E81*200, 2),E77) -> 10.93
A78: 2019-05-06 | B78: VL-TAAM | C78: Purchase | D78: 22226.83 | E78: 22.23 | F78: =IF(E81>200,ROUND(E78/E81*200, 2),E78) -> 22.23
A79: 2019-05-06 | B79: DTKF | C79: Purchase | D79: 31336.17 | E79: 31.34 | F79: =IF(E81>200,ROUND(E79/E81*200, 2),E79) -> 31.34
A80: 2019-05-06 | B80: VL-SIC | C80: Purchase | D80: 54656.1 | E80: 54.66 | F80: =IF(E81>200,200-SUM(F64:F79),E80) -> 54.66
D81: =SUM(D64:D80) -> 194940.33 | E81: =SUM(E64:E80) -> 194.97 | F81: =SUM(F64:F80) -> 194.97
A83: ECONPILE HOLDINGS BHD
A84: Date | B84: Client | C84: Trans | D84: Amount(RM) | E84: Transaction Cost (0.1%) | F84: Omnibus (Max 200) | G84: MYR
A85: 2019-05-07 | B85: VL-RAD | C85: Sales | D85: 812.73 | E85: =ROUND(D85*0.1%, 2) -> 0.81 | F85: =IF(E93>200,ROUND(E85/E93*200, 2),E85) -> 0.81
A86: 2019-05-07 | B86: VL-CCK | C86: Sales | D86: 5418.19 | E86: 5.42 | F86: =IF(E93>200,ROUND(E86/E93*200, 2),E86) -> 5.42
A87: 2019-05-07 | B87: VL-IMJ | C87: Sales | D87: 5418.19 | E87: 5.42 | F87: =IF(E93>200,ROUND(E87/E93*200, 2),E87) -> 5.42
A88: 2019-05-07 | B88: PRSB | C88: Sales | D88: 6434.09 | E88: 6.43 | F88: =IF(E93>200,ROUND(E88/E93*200, 2),E88) -> 6.43
A89: 2019-05-07 | B89: YS | C89: Sales | D89: 11039.55 | E89: 11.04 | F89: =IF(E93>200,ROUND(E89/E93*200, 2),E89) -> 11.04
A90: 2019-05-07 | B90: TAYS2 | C90: Sales | D90: 14222.74 | E90: 14.22 | F90: =IF(E93>200,ROUND(E90/E93*200, 2),E90) -> 14.22
A91: 2019-05-07 | B91: YSIF | C91: Sales | D91: 21740.47 | E91: 21.74 | F91: =IF(E93>200,ROUND(E91/E93*200, 2),E91) -> 21.74
A92: 2019-05-07 | B92: VL-LKS | C92: Sales | D92: 41110.49 | E92: 41.11 | F92: =IF(E93>200,200-SUM(F85:F91),E92) -> 41.11
D93: =SUM(D85:D92) -> 106196.45 | E93: =SUM(E85:E92) -> 106.19 | F93: =SUM(F85:F92) -> 106.19
A95: KIM TECK CHEONG BHD
A96: Date | B96: Client | C96: Trans | D96: Amount(RM) | E96: Transaction Cost (0.1%) | F96: Omnibus (Max 200) | G96: MYR
A97: 2019-05-08 | B97: VL-YCM | C97: Purchase | D97: 1066.42 | E97: =ROUND(D97*0.1%, 2) -> 1.07 | F97: =IF(E115>200,ROUND(E97/E115*200, 2),E97) -> 0.77
A98: 2019-05-08 | B98: VL-LNH | C98: Purchase | D98: 1119.74 | E98: 1.12 | F98: =IF(E115>200,ROUND(E98/E115*200, 2),E98) -> 0.81
A99: 2019-05-08 | B99: VL-ANU | C99: Purchase | D99: 1421.9 | E99: 1.42 | F99: =IF(E115>200,ROUND(E99/E115*200, 2),E99) -> 1.03
A100: 2019-05-08 | B100: VL-CSY | C100: Purchase | D100: 2488.33 | E100: 2.49 | F100: =IF(E115>200,ROUND(E100/E115*200, 2),E100) -> 1.8
A101: 2019-05-08 | B101: VL-WPI | C101: Purchase | D101: 2843.81 | E101: 2.84 | F101: =IF(E115>200,ROUND(E101/E115*200, 2),E101) -> 2.05
A102: 2019-05-08 | B102: VL-YHN | C102: Purchase | D102: 3021.55 | E102: 3.02 | F102: =IF(E115>200,ROUND(E102/E115*200, 2),E102) -> 2.18
A103: 2019-05-08 | B103: VL-MAA | C103: Purchase | D103: 3021.55 | E103: 3.02 | F103: =IF(E115>200,ROUND(E103/E115*200, 2),E103) -> 2.18
A104: 2019-05-08 | B104: VL-NCM | C104: Purchase | D104: 3199.28 | E104: 3.2 | F104: =IF(E115>200,ROUND(E104/E115*200, 2),E104) -> 2.32
A105: 2019-05-08 | B105: VL-WKM | C105: Purchase | D105: 3554.75 | E105: 3.55 | F105: =IF(E115>200,ROUND(E105/E115*200, 2),E105) -> 2.57
A106: 2019-05-08 | B106: VL-CFK | C106: Purchase | D106: 3910.24 | E106: 3.91 | F106: =IF(E115>200,ROUND(E106/E115*200, 2),E106) -> 2.83
A107: 2019-05-08 | B107: VL-CSK | C107: Purchase | D107: 3910.24 | E107: 3.91 | F107: =IF(E115>200,ROUND(E107/E115*200, 2),E107) -> 2.83
A108: 2019-05-08 | B108: VL-ZUL | C108: Purchase | D108: 5509.88 | E108: 5.51 | F108: =IF(E115>200,ROUND(E108/E115*200, 2),E108) -> 3.99
A109: 2019-05-08 | B109: VL-NAN | C109: Purchase | D109: 5865.35 | E109: 5.87 | F109: =IF(E115>200,ROUND(E109/E115*200, 2),E109) -> 4.25
A110: 2019-05-08 | B110: VL-CMC | C110: Purchase | D110: 6043.08 | E110: 6.04 | F110: =IF(E115>200,ROUND(E110/E115*200, 2),E110) -> 4.37
A111: 2019-05-08 | B111: VL-TAAM | C111: Purchase | D111: 9775.58 | E111: 9.78 | F111: =IF(E115>200,ROUND(E111/E115*200, 2),E111) -> 7.08
A112: 2019-05-08 | B112: DTKF | C112: Purchase | D112: 13330.35 | E112: 13.33 | F112: =IF(E115>200,ROUND(E112/E115*200, 2),E112) -> 9.64
A113: 2019-05-08 | B113: VL-SIC | C113: Purchase | D113: 28615.8 | E113: 28.62 | F113: =IF(E115>200,ROUND(E113/E115*200, 2),E113) -> 20.71
A114: 2019-05-08 | B114: VL-LWD | C114: Purchase | D114: 177737.96 | E114: 177.74 | F114: =IF(E115>200,200-SUM(F97:F113),E114) -> 128.59
D115: =SUM(D97:D114) -> 276435.81 | E115: =SUM(E97:E114) -> 276.44 | F115: =SUM(F97:F114) -> 200
A117: FRONTKEN CORP BHD
A118: Date | B118: Client | C118: Trans | D118: Amount(RM) | E118: Transaction Cost (0.1%) | F118: Omnibus (Max 200) | G118: MYR
A119: 2019-05-10 | B119: VL-RAD | C119: Sales | D119: 2091.58 | E119: =ROUND(D119*0.1%, 2) -> 2.09 | F119: =IF(E122>200,ROUND(E119/E122*200, 2),E119) -> 2.09
A120: 2019-05-10 | B120: VL-IMJ | C120: Sales | D120: 12828.36 | E120: =ROUND(D120*0.1%, 2) -> 12.83 | F120: =IF(E122>200,ROUND(E120/E122*200, 2),E120) -> 12.83
A121: 2019-05-10 | B121: VL-CCK | C121: Sales | D121: 12828.36 | E121: =ROUND(D121*0.1%, 2) -> 12.83 | F121: =IF(E122>200,200-SUM(F119:F120),E121) -> 12.83
D122: =SUM(D119:D121) -> 27748.3 | E122: =SUM(E119:E121) -> 27.75 | F122: =SUM(F119:F121) -> 27.75
A124: ECONPILE HOLDINGS BHD
A125: Date | B125: Client | C125: Trans | D125: Amount(RM) | E125: Transaction Cost (0.1%) | F125: Omnibus (Max 200) | G125: MYR
A126: 2019-05-13 | B126: MF | C126: Sales | D126: 6175.14 | E126: =ROUND(D126*0.1%, 2) -> 6.18 | F126: =IF(E130>200,ROUND(E126/E130*200, 2),E126) -> 6.18
A127: 2019-05-13 | B127: LFS | C127: Sales | D127: 8027.68 | E127: =ROUND(D127*0.1%, 2) -> 8.03 | F127: =IF(E130>200,ROUND(E127/E130*200, 2),E127) -> 8.03
A128: 2019-05-13 | B128: SIA | C128: Sales | D128: 8027.68 | E128: =ROUND(D128*0.1%, 2) -> 8.03 | F128: =IF(E130>200,ROUND(E128/E130*200, 2),E128) -> 8.03
A129: 2019-05-13 | B129: RTMOEY | C129: Sales | D129: 19760.44 | E129: =ROUND(D129*0.1%, 2) -> 19.76 | F129: =IF(E130>200,200-SUM(F126:F128),E129) -> 19.76
D130: =SUM(D126:D129) -> 41990.94 | E130: =SUM(E126:E129) -> 42 | F130: =SUM(F126:F129) -> 42
A132: KNM GROUP BHD
A133: Date | B133: Client | C133: Trans | D133: Amount(RM) | E133: Transaction Cost (0.1%) | F133: Omnibus (Max 200) | G133: MYR
A134: 2019-05-13 | B134: AG-TJK1 | C134: Sales | D134: 3627.5 | E134: =ROUND(D134*0.1%, 2) -> 3.63 | F134: =IF(E135>200,200-SUM(F133:F134),E134) -> 3.63
D135: =SUM(D134:D134) -> 3627.5 | E135: =SUM(E134:E134) -> 3.63 | F135: =SUM(F134:F134) -> 3.63
A137: ASCENDAS HOSPITALITY TRUST
A138: Date | B138: Client | C138: Trans | D138: Amount(RM) | E138: Transaction Cost (0.1%) | F138: Omnibus (Max 200) | G138: SGD
A139: 2019-05-14 | B139: SIA2 | C139: Purchase | D139: 8663.31 | E139: =ROUND(D139*0.1%, 2) -> 8.66 | F139: =IF(E141>200,ROUND(E139/E141*200, 2),E139) -> 8.66
A140: 2019-05-14 | B140: VL-LKS | C140: Purchase | D140: 171735.33 | E140: =ROUND(D140*0.1%, 2) -> 171.74 | F140: =IF(E141>200,200-SUM(F139:F139),E140) -> 171.74
D141: =SUM(D139:D140) -> 180398.64 | E141: =SUM(E139:E140) -> 180.4 | F141: =SUM(F139:F140) -> 180.4
A143: EKOVEST BHD
A144: Date | B144: Client | C144: Trans | D144: Amount(RM) | E144: Transaction Cost (0.1%) | F144: Omnibus (Max 200) | G144: MYR
A145: 2019-05-14 | B145: AG-TJK1 | C145: Purchase | D145: 4862.42 | E145: =ROUND(D145*0.1%, 2) -> 4.86 | F145: =IF(E150>200,ROUND(E145/E150*200, 2),E145) -> 4.86
A146: 2019-05-14 | B146: AG-JOS | C146: Purchase | D146: 5533.1 | E146: =ROUND(D146*0.1%, 2) -> 5.53 | F146: =IF(E150>200,ROUND(E146/E150*200, 2),E146) -> 5.53
A147: 2019-05-14 | B147: AG-SKS | C147: Purchase | D147: 20958.7 | E147: =ROUND(D147*0.1%, 2) -> 20.96 | F147: =IF(E150>200,ROUND(E147/E150*200, 2),E147) -> 20.96
A148: 2019-05-14 | B148: WFL2 | C148: Purchase | D148: 24815.11 | E148: =ROUND(D148*0.1%, 2) -> 24.82 | F148: =IF(E150>200,ROUND(E148/E150*200, 2),E148) -> 24.82
A149: 2019-05-14 | B149: VM-WAS | C149: Purchase | D149: 57007.68 | E149: =ROUND(D149*0.1%, 2) -> 57.01 | F149: =IF(E150>200,200-SUM(F145:F148),E149) -> 57.01
D150: =SUM(D145:D149) -> 113177.01 | E150: =SUM(E145:E149) -> 113.18 | F150: =SUM(F145:F149) -> 113.18
A152: IOI PROPERTIES GROUP BHD
A153: Date | B153: Client | C153: Trans | D153: Amount(RM) | E153: Transaction Cost (0.1%) | F153: Omnibus (Max 200) | G153: MYR
A154: 2019-05-15 | B154: MF | C154: Purchase | D154: 6231.21 | E154: =ROUND(D154*0.1%, 2) -> 6.23 | F154: =IF(E157>200,ROUND(E154/E157*200, 2),E154) -> 6.23
A155: 2019-05-15 | B155: SIA | C155: Purchase | D155: 7975.95 | E155: =ROUND(D155*0.1%, 2) -> 7.98 | F155: =IF(E157>200,ROUND(E155/E157*200, 2),E155) -> 7.98
A156: 2019-05-15 | B156: LFS | C156: Purchase | D156: 10343.8 | E156: =ROUND(D156*0.1%, 2) -> 10.34 | F156: =IF(E157>200,200-SUM(F154:F155),E156) -> 10.34
D157: =SUM(D154:D156) -> 24550.96 | E157: =SUM(E154:E156) -> 24.55 | F157: =SUM(F154:F156) -> 24.55
A159: MEGA FIRST CORP BHD
A160: Date | B160: Client | C160: Trans | D160: Amount(RM) | E160: Transaction Cost (0.1%) | F160: Omnibus (Max 200) | G160: MYR
A161: 2019-05-15 | B161: VL-LNH | C161: Purchase | D161: 1413.65 | E161: =ROUND(D161*0.1%, 2) -> 1.41 | F161: =IF(E181>200,ROUND(E161/E181*200, 2),E161) -> 1.41
A162: 2019-05-15 | B162: VL-YCM | C162: Purchase | D162: 1413.65 | E162: 1.41 | F162: =IF(E181>200,ROUND(E162/E181*200, 2),E162) -> 1.41
A163: 2019-05-15 | B163: VL-ANU | C163: Purchase | D163: 1767.06 | E163: 1.77 | F163: =IF(E181>200,ROUND(E163/E181*200, 2),E163) -> 1.77
A164: 2019-05-15 | B164: VL-CSY | C164: Purchase | D164: 3180.71 | E164: 3.18 | F164: =IF(E181>200,ROUND(E164/E181*200, 2),E164) -> 3.18
A165: 2019-05-15 | B165: VL-WPI | C165: Purchase | D165: 3534.12 | E165: 3.53 | F165: =IF(E181>200,ROUND(E165/E181*200, 2),E165) -> 3.53
A166: 2019-05-15 | B166: VL-YHN | C166: Purchase | D166: 3887.53 | E166: 3.89 | F166: =IF(E181>200,ROUND(E166/E181*200, 2),E166) -> 3.89
A167: 2019-05-15 | B167: VL-MAA | C167: Purchase | D167: 3887.53 | E167: 3.89 | F167: =IF(E181>200,ROUND(E167/E181*200, 2),E167) -> 3.89
A168: 2019-05-15 | B168: VL-NCM | C168: Purchase | D168: 4240.94 | E168: 4.24 | F168: =IF(E181>200,ROUND(E168/E181*200, 2),E168) -> 4.24
A169: 2019-05-15 | B169: VL-WKM | C169: Purchase | D169: 4594.35 | E169: 4.59 | F169: =IF(E181>200,ROUND(E169/E181*200, 2),E169) -> 4.59
A170: 2019-05-15 | B170: VL-CFK | C170: Purchase | D170: 4947.77 | E170: 4.95 | F170: =IF(E181>200,ROUND(E170/E181*200, 2),E170) -> 4.95
A171: 2019-05-15 | B171: VL-CSK | C171: Purchase | D171: 5301.17 | E171: 5.3 | F171: =IF(E181>200,ROUND(E171/E181*200, 2),E171) -> 5.3
A172: 2019-05-15 | B172: VL-ZUL | C172: Purchase | D172: 7421.64 | E172: 7.42 | F172: =IF(E181>200,ROUND(E172/E181*200, 2),E172) -> 7.42
A173: 2019-05-15 | B173: VL-CMC | C173: Purchase | D173: 7775.05 | E173: 7.78 | F173: =IF(E181>200,ROUND(E173/E181*200, 2),E173) -> 7.78
A174: 2019-05-15 | B174: VL-NAN | C174: Purchase | D174: 7775.05 | E174: 7.78 | F174: =IF(E181>200,ROUND(E174/E181*200, 2),E174) -> 7.78
A175: 2019-05-15 | B175: VL-WFR | C175: Purchase | D175: 8481.87 | E175: 8.48 | F175: =IF(E181>200,ROUND(E175/E181*200, 2),E175) -> 8.48
A176: 2019-05-15 | B176: VL-TAAM | C176: Purchase | D176: 15903.52 | E176: 15.9 | F176: =IF(E181>200,ROUND(E176/E181*200, 2),E176) -> 15.9
A177: 2019-05-15 | B177: VL-LWD | C177: Purchase | D177: 18023.99 | E177: 18.02 | F177: =IF(E181>200,ROUND(E177/E181*200, 2),E177) -> 18.02
A178: 2019-05-15 | B178: DTKF | C178: Purchase | D178: 22618.34 | E178: 22.62 | F178: =IF(E181>200,ROUND(E178/E181*200, 2),E178) -> 22.62
A179: 2019-05-15 | B179: VL-MSG | C179: Purchase | D179: 25799.05 | E179: 25.8 | F179: =IF(E181>200,ROUND(E179/E181*200, 2),E179) -> 25.8
A180: 2019-05-15 | B180: VL-SIC | C180: Purchase | D180: 39582.08 | E180: 39.58 | F180: =IF(E181>200,200-SUM(F161:F179),E180) -> 39.58
D181: =SUM(D161:D180) -> 191549.07 | E181: =SUM(E161:E180) -> 191.54 | F181: =SUM(F161:F180) -> 191.54
A183: MEGA FIRST CORP BHD
A184: Date | B184: Client | C184: Trans | D184: Amount(RM) | E184: Transaction Cost (0.1%) | F184: Omnibus (Max 200) | G184: MYR
A185: 2019-05-15 | B185: VL-MAK | C185: Purchase | D185: 1768.3 | E185: =ROUND(D185*0.1%, 2) -> 1.77 | F185: =IF(E194>200,ROUND(E185/E194*200, 2),E185) -> 0.63
A186: 2019-05-15 | B186: VL-RAD | C186: Purchase | D186: 4597.53 | E186: 4.6 | F186: =IF(E194>200,ROUND(E186/E194*200, 2),E186) -> 1.63
A187: 2019-05-15 | B187: VL-IMJ | C187: Purchase | D187: 31829.07 | E187: 31.83 | F187: =IF(E194>200,ROUND(E187/E194*200, 2),E187) -> 11.25
A188: 2019-05-15 | B188: VL-CCK | C188: Purchase | D188: 31829.07 | E188: 31.83 | F188: =IF(E194>200,ROUND(E188/E194*200, 2),E188) -> 11.25
A189: 2019-05-15 | B189: PRSB | C189: Purchase | D189: 36072.95 | E189: 36.07 | F189: =IF(E194>200,ROUND(E189/E194*200, 2),E189) -> 12.75
A190: 2019-05-15 | B190: YS | C190: Purchase | D190: 63658.12 | E190: 63.66 | F190: =IF(E194>200,ROUND(E190/E194*200, 2),E190) -> 22.5
A191: 2019-05-15 | B191: YSIF | C191: Purchase | D191: 81340.94 | E191: 81.34 | F191: =IF(E194>200,ROUND(E191/E194*200, 2),E191) -> 28.75
A192: 2019-05-15 | B192: TAYS2 | C192: Purchase | D192: 81340.94 | E192: 81.34 | F192: =IF(E194>200,ROUND(E192/E194*200, 2),E192) -> 28.75
A193: 2019-05-15 | B193: VL-LKS | C193: Purchase | D193: 233413.16 | E193: 233.41 | F193: =IF(E194>200,200-SUM(F185:F192),E193) -> 82.49
D194: =SUM(D185:D193) -> 565850.08 | E194: =SUM(E185:E193) -> 565.85 | F194: =SUM(F185:F193) -> 200
A196: SUPERMAX CORP BHD
A197: Date | B197: Client | C197: Trans | D197: Amount(RM) | E197: Transaction Cost (0.1%) | F197: Omnibus (Max 200) | G197: MYR
A198: 2019-05-15 | B198: MF | C198: Sales | D198: 4805.72 | E198: =ROUND(D198*0.1%, 2) -> 4.81 | F198: =IF(E202>200,ROUND(E198/E202*200, 2),E198) -> 4.81
A199: 2019-05-15 | B199: LFS | C199: Sales | D199: 6407.63 | E199: =ROUND(D199*0.1%, 2) -> 6.41 | F199: =IF(E202>200,ROUND(E199/E202*200, 2),E199) -> 6.41
A200: 2019-05-15 | B200: SIA | C200: Sales | D200: 6407.63 | E200: =ROUND(D200*0.1%, 2) -> 6.41 | F200: =IF(E202>200,ROUND(E200/E202*200, 2),E200) -> 6.41
A201: 2019-05-15 | B201: RTMOEY | C201: Sales | D201: 17620.98 | E201: =ROUND(D201*0.1%, 2) -> 17.62 | F201: =IF(E202>200,200-SUM(F198:F200),E201) -> 17.62
D202: =SUM(D198:D201) -> 35241.96 | E202: =SUM(E198:E201) -> 35.25 | F202: =SUM(F198:F201) -> 35.25
A204: FRASERS CENTREPOINT TRUST
A205: Date | B205: Client | C205: Trans | D205: Amount(RM) | E205: Transaction Cost (0.1%) | F205: Omnibus (Max 200) | G205: SGD
A206: 2019-05-17 | B206: WFL3 | C206: Sales | D206: 28996.47 | E206: =ROUND(D206*0.1%, 2) -> 29 | F206: =IF(E207>200,200-SUM(F205:F206),E206) -> 29
D207: =SUM(D206:D206) -> 28996.47 | E207: =SUM(E206:E206) -> 29 | F207: =SUM(F206:F206) -> 29
A209: HARTALEGA HOLDINGS BHD
A210: Date | B210: Client | C210: Trans | D210: Amount(RM) | E210: Transaction Cost (0.1%) | F210: Omnibus (Max 200) | G210: MYR
A211: 2019-05-21 | B211: VL-RAD | C211: Sales | D211: 1552.18 | E211: =ROUND(D211*0.1%, 2) -> 1.55 | F211: =IF(E215>200,ROUND(E211/E215*200, 2),E211) -> 1.55
A212: 2019-05-21 | B212: VL-CCK | C212: Sales | D212: 13452.22 | E212: =ROUND(D212*0.1%, 2) -> 13.45 | F212: =IF(E215>200,ROUND(E212/E215*200, 2),E212) -> 13.45
A213: 2019-05-21 | B213: VL-IMJ | C213: Sales | D213: 13969.62 | E213: =ROUND(D213*0.1%, 2) -> 13.97 | F213: =IF(E215>200,ROUND(E213/E215*200, 2),E213) -> 13.97
A214: 2019-05-21 | B214: VL-LKS | C214: Sales | D214: 103996.07 | E214: =ROUND(D214*0.1%, 2) -> 104 | F214: =IF(E215>200,200-SUM(F211:F213),E214) -> 104
D215: =SUM(D211:D214) -> 132970.09 | E215: =SUM(E211:E214) -> 132.97 | F215: =SUM(F211:F214) -> 132.97
A217: ORION IXL BHD
A218: Date | B218: Client | C218: Trans | D218: Amount(RM) | E218: Transaction Cost (0.1%) | F218: Omnibus (Max 200) | G218: MYR
A219: 2019-05-21 | B219: LWL | C219: Sales | D219: 23879.76 | E219: =ROUND(D219*0.1%, 2) -> 23.88 | F219: =IF(E220>200,200-SUM(F218:F219),E219) -> 23.88
D220: =SUM(D219:D219) -> 23879.76 | E220: =SUM(E219:E219) -> 23.88 | F220: =SUM(F219:F219) -> 23.88
A222: KIM TECK CHEONG BHD
... 117 more rows

Sheet CustFee
A1: TA Investment Management Berhad
A3: Private Mandate Fund Custodian Fee for the month of May 2019
A5: No | B5: Client Code | C5: Market Value | D5: Custodian fee (0.03% p.a)
A6: 1 | B6: AG-CHAR | C6: 115.63 | D6: =ROUND(C6*0.03%*31/365,2) -> 0 | K6: =SUMIFS(TranCost!F:F,TranCost!B:B,CustFee!B6) -> 0
A7: 2 | B7: AG-CHM | C7: 128.24 | D7: 0 | K7: =SUMIFS(TranCost!F:F,TranCost!B:B,CustFee!B7) -> 0
A8: 3 | B8: AG-CHS | C8: 116.17 | D8: 0 | K8: =SUMIFS(TranCost!F:F,TranCost!B:B,CustFee!B8) -> 0
A9: 4 | B9: AG-CSM | C9: 102.97 | D9: 0 | K9: =SUMIFS(TranCost!F:F,TranCost!B:B,CustFee!B9) -> 0
A10: 5 | B10: AG-JOS | C10: 109462.76 | D10: 2.79 | K10: =SUMIFS(TranCost!F:F,TranCost!B:B,CustFee!B10) -> 23.54
A11: 6 | B11: AG-KJK | C11: 555158.34 | D11: 14.15 | K11: =SUMIFS(TranCost!F:F,TranCost!B:B,CustFee!B11) -> 0
A12: 7 | B12: AG-LHL | C12: 116.68 | D12: 0 | K12: =SUMIFS(TranCost!F:F,TranCost!B:B,CustFee!B12) -> 0
A13: 8 | B13: AG-NCH | C13: 7102.72 | D13: 0.18 | K13: =SUMIFS(TranCost!F:F,TranCost!B:B,CustFee!B13) -> 0
A14: 9 | B14: AG-NWS | C14: 1136.48 | D14: 0.03 | K14: =SUMIFS(TranCost!F:F,TranCost!B:B,CustFee!B14) -> 0
A15: 10 | B15: AG-RAZ | C15: 413.06 | D15: 0.01 | F15: Manual Journal Code: | K15: =SUMIFS(TranCost!F:F,TranCost!B:B,CustFee!B15) -> 0
A16: 11 | B16: AG-RIHN | C16: 108.03 | D16: 0 | F16: Dt 700302 | K16: =SUMIFS(TranCost!F:F,TranCost!B:B,CustFee!B16) -> 0
A17: 12 | B17: AG-SBL | C17: 111.89 | D17: 0 | F17: Cr 500000 | K17: =SUMIFS(TranCost!F:F,TranCost!B:B,CustFee!B17) -> 0
A18: 13 | B18: AG-SBY | C18: 137.33 | D18: 0 | F18: Custodian Fee May 2019 | K18: =SUMIFS(TranCost!F:F,TranCost!B:B,CustFee!B18) -> 0
A19: 14 | B19: AG-SHT | C19: 165.78 | D19: 0 | K19: =SUMIFS(TranCost!F:F,TranCost!B:B,CustFee!B19) -> 0
A20: 15 | B20: AG-SKS | C20: 412685.6 | D20: 10.52 | F20: System | K20: =SUMIFS(TranCost!F:F,TranCost!B:B,CustFee!B20) -> 155.97
A21: 16 | B21: AG-SLS | C21: 58777.81 | D21: 1.5 | F21: Uploaded by, | G21: Checked by, | K21: =SUMIFS(TranCost!F:F,TranCost!B:B,CustFee!B21) -> 0
A22: 17 | B22: AG-SMC | C22: 101991.65 | D22: 2.6 | K22: =SUMIFS(TranCost!F:F,TranCost!B:B,CustFee!B22) -> 0
A23: 18 | B23: AG-SSY | C23: 143.68 | D23: 0 | K23: =SUMIFS(TranCost!F:F,TranCost!B:B,CustFee!B23) -> 0
A24: 19 | B24: AG-TGN | C24: 116723.47 | D24: 2.97 | K24: =SUMIFS(TranCost!F:F,TranCost!B:B,CustFee!B24) -> 0
A25: 20 | B25: AG-THT | C25: 810177.22 | D25: 20.64 | F25: Updated Cash Flow By, | K25: =SUMIFS(TranCost!F:F,TranCost!B:B,CustFee!B25) -> 0
A26: 21 | B26: AG-TJK1 | C26: 95132.98 | D26: 2.42 | K26: =SUMIFS(TranCost!F:F,TranCost!B:B,CustFee!B26) -> 36.13
A27: 22 | B27: AG-TKY | C27: 109.25 | D27: 0 | F27: ……………………… | K27: =SUMIFS(TranCost!F:F,TranCost!B:B,CustFee!B27) -> 0
A28: 23 | B28: AG-TSF | C28: 105.71 | D28: 0 | K28: =SUMIFS(TranCost!F:F,TranCost!B:B,CustFee!B28) -> 0
A29: 24 | B29: AG-TSH | C29: 89.66 | D29: 0 | K29: =SUMIFS(TranCost!F:F,TranCost!B:B,CustFee!B29) -> 0
A30: 25 | B30: AG-YCM | C30: 58785.78 | D30: 1.5 | K30: =SUMIFS(TranCost!F:F,TranCost!B:B,CustFee!B30) -> 0
A31: 26 | B31: AG-YSP | C31: 229.34 | D31: 0.01 | K31: =SUMIFS(TranCost!F:F,TranCost!B:B,CustFee!B31) -> 0
A32: 27 | B32: AG-YTC | C32: 457432.8 | D32: 11.66 | K32: =SUMIFS(TranCost!F:F,TranCost!B:B,CustFee!B32) -> 0
A33: 28 | B33: AZI | C33: 1357.78 | D33: 0.03 | K33: =SUMIFS(TranCost!F:F,TranCost!B:B,CustFee!B33) -> 0
A34: 29 | B34: CALV | C34: 103.23 | D34: 0 | K34: =SUMIFS(TranCost!F:F,TranCost!B:B,CustFee!B34) -> 0
A35: 30 | B35: CLL | C35: 104.7 | D35: 0 | K35: =SUMIFS(TranCost!F:F,TranCost!B:B,CustFee!B35) -> 0
A36: 31 | B36: CWK2 | C36: 496072.4 | D36: 12.64 | K36: =SUMIFS(TranCost!F:F,TranCost!B:B,CustFee!B36) -> 17.9
A37: 32 | B37: CYT | C37: 615114.65 | D37: 15.67 | K37: =SUMIFS(TranCost!F:F,TranCost!B:B,CustFee!B37) -> 32
A38: 33 | B38: DTKF | C38: 1492173.72 | D38: =ROUND(C38*0.03%*31/365,2) -> 38.02 | K38: =SUMIFS(TranCost!F:F,TranCost!B:B,CustFee!B38) -> 108.75
A39: 34 | B39: DTTK | C39: 481825557 | D39: 12276.65 | K39: =SUMIFS(TranCost!F:F,TranCost!B:B,CustFee!B39) -> 0
A40: 35 | B40: GBH | C40: 119.81 | D40: 0 | K40: =SUMIFS(TranCost!F:F,TranCost!B:B,CustFee!B40) -> 0
A41: 36 | B41: GPH | C41: 121.6 | D41: 0 | K41: =SUMIFS(TranCost!F:F,TranCost!B:B,CustFee!B41) -> 0
A42: 37 | B42: HYH | C42: 100.48 | D42: 0 | K42: =SUMIFS(TranCost!F:F,TranCost!B:B,CustFee!B42) -> 0
A43: 38 | B43: KHC | C43: 97.85 | D43: 0 | K43: =SUMIFS(TranCost!F:F,TranCost!B:B,CustFee!B43) -> 0
A44: 39 | B44: LAU | C44: 80.02 | D44: 0 | K44: =SUMIFS(TranCost!F:F,TranCost!B:B,CustFee!B44) -> 0
A45: 40 | B45: LFS | C45: 849357.85 | D45: 21.64 | K45: =SUMIFS(TranCost!F:F,TranCost!B:B,CustFee!B45) -> 38.59
A46: 41 | B46: LGY | C46: 83.78 | D46: 0 | K46: =SUMIFS(TranCost!F:F,TranCost!B:B,CustFee!B46) -> 0
A47: 42 | B47: LMH | C47: 368.22 | D47: 0.01 | K47: =SUMIFS(TranCost!F:F,TranCost!B:B,CustFee!B47) -> 0
A48: 43 | B48: LSK | C48: 97.85 | D48: 0 | K48: =SUMIFS(TranCost!F:F,TranCost!B:B,CustFee!B48) -> 0
A49: 44 | B49: LWC | C49: 55327.99 | D49: 1.41 | K49: =SUMIFS(TranCost!F:F,TranCost!B:B,CustFee!B49) -> 0
A50: 45 | B50: LWL | C50: 99881.25 | D50: 2.54 | K50: =SUMIFS(TranCost!F:F,TranCost!B:B,CustFee!B50) -> 46.28
A51: 46 | B51: MACEY1 | C51: 102646.01 | D51: 2.62 | K51: =SUMIFS(TranCost!F:F,TranCost!B:B,CustFee!B51) -> 0
A52: 47 | B52: MF | C52: 603360.75 | D52: 15.37 | K52: =SUMIFS(TranCost!F:F,TranCost!B:B,CustFee!B52) -> 28.63
A53: 48 | B53: PRSB | C53: 2418712.43 | D53: 61.63 | K53: =SUMIFS(TranCost!F:F,TranCost!B:B,CustFee!B53) -> 54.3
A54: 49 | B54: RB | C54: 0 | D54: 0 | K54: =SUMIFS(TranCost!F:F,TranCost!B:B,CustFee!B54) -> 0
A55: 50 | B55: RM-CAC | C55: 105.85 | D55: 0 | K55: =SUMIFS(TranCost!F:F,TranCost!B:B,CustFee!B55) -> 0
A56: 51 | B56: RM-CCH | C56: 122.19 | D56: 0 | K56: =SUMIFS(TranCost!F:F,TranCost!B:B,CustFee!B56) -> 0
A57: 52 | B57: RM-CFC | C57: 105.86 | D57: 0 | K57: =SUMIFS(TranCost!F:F,TranCost!B:B,CustFee!B57) -> 0
A58: 53 | B58: RM-CHOU | C58: 130.03 | D58: 0 | K58: =SUMIFS(TranCost!F:F,TranCost!B:B,CustFee!B58) -> 0
A59: 54 | B59: RM-CLY | C59: 690.5 | D59: 0.02 | K59: =SUMIFS(TranCost!F:F,TranCost!B:B,CustFee!B59) -> 0
A60: 55 | B60: RM-CMY | C60: 2669.53 | D60: 0.07 | K60: =SUMIFS(TranCost!F:F,TranCost!B:B,CustFee!B60) -> 0
A61: 56 | B61: RM-CNK | C61: 636.34 | D61: 0.02 | K61: =SUMIFS(TranCost!F:F,TranCost!B:B,CustFee!B61) -> 0
A62: 57 | B62: RM-CSM | C62: 105.86 | D62: 0 | K62: =SUMIFS(TranCost!F:F,TranCost!B:B,CustFee!B62) -> 0
A63: 58 | B63: RM-CSP | C63: 178.6 | D63: 0 | K63: =SUMIFS(TranCost!F:F,TranCost!B:B,CustFee!B63) -> 0
A64: 59 | B64: RM-CWC | C64: 110.66 | D64: 0 | K64: =SUMIFS(TranCost!F:F,TranCost!B:B,CustFee!B64) -> 0
A65: 60 | B65: RM-CWM | C65: 103.91 | D65: 0 | K65: =SUMIFS(TranCost!F:F,TranCost!B:B,CustFee!B65) -> 0
A66: 61 | B66: RM-CYL | C66: 695.27 | D66: 0.02 | K66: =SUMIFS(TranCost!F:F,TranCost!B:B,CustFee!B66) -> 0
A67: 62 | B67: RM-ESW | C67: 108.99 | D67: 0 | K67: =SUMIFS(TranCost!F:F,TranCost!B:B,CustFee!B67) -> 0
A68: 63 | B68: RM-FSB | C68: 244.21 | D68: 0.01 | K68: =SUMIFS(TranCost!F:F,TranCost!B:B,CustFee!B68) -> 0
A69: 64 | B69: RM-GUNA | C69: 258.42 | D69: 0.01 | K69: =SUMIFS(TranCost!F:F,TranCost!B:B,CustFee!B69) -> 0
A70: 65 | B70: RM-HKM | C70: 105.85 | D70: =ROUND(C70*0.03%*31/365,2) -> 0 | K70: =SUMIFS(TranCost!F:F,TranCost!B:B,CustFee!B70) -> 0
A71: 66 | B71: RM-HKT | C71: 106.14 | D71: 0 | K71: =SUMIFS(TranCost!F:F,TranCost!B:B,CustFee!B71) -> 0
A72: 67 | B72: RM-HOK | C72: 110.93 | D72: 0 | K72: =SUMIFS(TranCost!F:F,TranCost!B:B,CustFee!B72) -> 0
A73: 68 | B73: RM-IREN | C73: 106.13 | D73: 0 | K73: =SUMIFS(TranCost!F:F,TranCost!B:B,CustFee!B73) -> 0
A74: 69 | B74: RM-KSF | C74: 100.07 | D74: 0 | K74: =SUMIFS(TranCost!F:F,TranCost!B:B,CustFee!B74) -> 0
A75: 70 | B75: RM-KUMA | C75: 107.33 | D75: 0 | K75: =SUMIFS(TranCost!F:F,TranCost!B:B,CustFee!B75) -> 0
A76: 71 | B76: RM-LCM | C76: 112.38 | D76: 0 | K76: =SUMIFS(TranCost!F:F,TranCost!B:B,CustFee!B76) -> 0
A77: 72 | B77: RM-LHL | C77: 173.9 | D77: 0 | K77: =SUMIFS(TranCost!F:F,TranCost!B:B,CustFee!B77) -> 0
A78: 73 | B78: RM-LKH | C78: 103.33 | D78: 0 | K78: =SUMIFS(TranCost!F:F,TranCost!B:B,CustFee!B78) -> 0
A79: 74 | B79: RM-LKK | C79: 184.49 | D79: 0 | K79: =SUMIFS(TranCost!F:F,TranCost!B:B,CustFee!B79) -> 0
A80: 75 | B80: RM-LKS | C80: 108.02 | D80: 0 | K80: =SUMIFS(TranCost!F:F,TranCost!B:B,CustFee!B80) -> 0
A81: 76 | B81: RM-LKT | C81: 615.05 | D81: 0.02 | K81: =SUMIFS(TranCost!F:F,TranCost!B:B,CustFee!B81) -> 0
A82: 77 | B82: RM-LMK | C82: 108.03 | D82: 0 | K82: =SUMIFS(TranCost!F:F,TranCost!B:B,CustFee!B82) -> 0
A83: 78 | B83: RM-LPC | C83: 198.62 | D83: 0.01 | K83: =SUMIFS(TranCost!F:F,TranCost!B:B,CustFee!B83) -> 0
A84: 79 | B84: RM-LPT | C84: 124.9 | D84: 0 | K84: =SUMIFS(TranCost!F:F,TranCost!B:B,CustFee!B84) -> 0
A85: 80 | B85: RM-LSC | C85: 108.02 | D85: 0 | K85: =SUMIFS(TranCost!F:F,TranCost!B:B,CustFee!B85) -> 0
A86: 81 | B86: RM-LSK | C86: 105.85 | D86: 0 | K86: =SUMIFS(TranCost!F:F,TranCost!B:B,CustFee!B86) -> 0
A87: 82 | B87: RM-LYH | C87: 117.49 | D87: 0 | K87: =SUMIFS(TranCost!F:F,TranCost!B:B,CustFee!B87) -> 0
A88: 83 | B88: RM-LYL | C88: 7201.89 | D88: 0.18 | K88: =SUMIFS(TranCost!F:F,TranCost!B:B,CustFee!B88) -> 0
A89: 84 | B89: RM-NLH | C89: 111.55 | D89: 0 | K89: =SUMIFS(TranCost!F:F,TranCost!B:B,CustFee!B89) -> 0
A90: 85 | B90: RM-NLT | C90: 284.06 | D90: 0.01 | K90: =SUMIFS(TranCost!F:F,TranCost!B:B,CustFee!B90) -> 0
A91: 86 | B91: RM-NSL | C91: 246.59 | D91: 0.01 | K91: =SUMIFS(TranCost!F:F,TranCost!B:B,CustFee!B91) -> 0
A92: 87 | B92: RM-NZAM | C92: 172.55 | D92: 0 | K92: =SUMIFS(TranCost!F:F,TranCost!B:B,CustFee!B92) -> 0
A93: 88 | B93: RM-OKK | C93: 218.33 | D93: 0.01 | K93: =SUMIFS(TranCost!F:F,TranCost!B:B,CustFee!B93) -> 0
A94: 89 | B94: RM-OLH | C94: 107.09 | D94: 0 | K94: =SUMIFS(TranCost!F:F,TranCost!B:B,CustFee!B94) -> 0
A95: 90 | B95: RM-PKK | C95: 140.53 | D95: 0 | K95: =SUMIFS(TranCost!F:F,TranCost!B:B,CustFee!B95) -> 0
A96: 91 | B96: RM-PNB | C96: 107.09 | D96: 0 | K96: =SUMIFS(TranCost!F:F,TranCost!B:B,CustFee!B96) -> 0
A97: 92 | B97: RM-ROSLY | C97: 117.1 | D97: 0 | K97: =SUMIFS(TranCost!F:F,TranCost!B:B,CustFee!B97) -> 0
A98: 93 | B98: RM-SBC | C98: 61.71 | D98: 0 | K98: =SUMIFS(TranCost!F:F,TranCost!B:B,CustFee!B98) -> 0
A99: 94 | B99: RM-SMK | C99: 97431.19 | D99: 2.48 | K99: =SUMIFS(TranCost!F:F,TranCost!B:B,CustFee!B99) -> 0
A100: 95 | B100: RM-TCN | C100: 110.59 | D100: 0 | K100: =SUMIFS(TranCost!F:F,TranCost!B:B,CustFee!B100) -> 0
A101: 96 | B101: RM-TKF | C101: 5639.05 | D101: 0.14 | K101: =SUMIFS(TranCost!F:F,TranCost!B:B,CustFee!B101) -> 0
A102: 97 | B102: RM-TKS | C102: 113.12 | D102: =ROUND(C102*0.03%*31/365,2) -> 0 | K102: =SUMIFS(TranCost!F:F,TranCost!B:B,CustFee!B102) -> 0
A103: 98 | B103: RM-TMY | C103: 76023.22 | D103: 1.94 | K103: =SUMIFS(TranCost!F:F,TranCost!B:B,CustFee!B103) -> 0
A104: 99 | B104: RM-TPY | C104: 72891.76 | D104: 1.86 | K104: =SUMIFS(TranCost!F:F,TranCost!B:B,CustFee!B104) -> 0
A105: 100 | B105: RM-TSB | C105: 2882.3 | D105: 0.07 | K105: =SUMIFS(TranCost!F:F,TranCost!B:B,CustFee!B105) -> 0
A106: 101 | B106: RM-WKC | C106: 190.26 | D106: 0 | K106: =SUMIFS(TranCost!F:F,TranCost!B:B,CustFee!B106) -> 0
A107: 102 | B107: RM-WLH | C107: 107.09 | D107: 0 | K107: =SUMIFS(TranCost!F:F,TranCost!B:B,CustFee!B107) -> 0
A108: 103 | B108: RM-WNP | C108: 115.16 | D108: 0 | K108: =SUMIFS(TranCost!F:F,TranCost!B:B,CustFee!B108) -> 0
A109: 104 | B109: RM-YCC | C109: 107.11 | D109: 0 | K109: =SUMIFS(TranCost!F:F,TranCost!B:B,CustFee!B109) -> 0
A110: 105 | B110: RM-YCL | C110: 134.21 | D110: 0 | K110: =SUMIFS(TranCost!F:F,TranCost!B:B,CustFee!B110) -> 0
A111: 106 | B111: RM-YKT | C111: 107.14 | D111: 0 | K111: =SUMIFS(TranCost!F:F,TranCost!B:B,CustFee!B111) -> 0
A112: 107 | B112: RM-YLF | C112: 240.27 | D112: 0.01 | K112: =SUMIFS(TranCost!F:F,TranCost!B:B,CustFee!B112) -> 0
A113: 108 | B113: RM-YLY | C113: 143.43 | D113: 0 | K113: =SUMIFS(TranCost!F:F,TranCost!B:B,CustFee!B113) -> 0
A114: 109 | B114: RM-YPK | C114: 108.99 | D114: 0 | K114: =SUMIFS(TranCost!F:F,TranCost!B:B,CustFee!B114) -> 0
A115: 110 | B115: RM-YSL | C115: 327.84 | D115: 0.01 | K115: =SUMIFS(TranCost!F:F,TranCost!B:B,CustFee!B115) -> 0
A116: 111 | B116: RTMOEY | C116: 1719973.31 | D116: 43.82 | K116: =SUMIFS(TranCost!F:F,TranCost!B:B,CustFee!B116) -> 60.79
A117: 112 | B117: SFY | C117: -56.91 | D117: 0 | K117: =SUMIFS(TranCost!F:F,TranCost!B:B,CustFee!B117) -> 0
A118: 113 | B118: SIA | C118: 811089.88 | D118: =ROUND(C118*0.03%*31/365,2) -> 20.67 | K118: =SUMIFS(TranCost!F:F,TranCost!B:B,CustFee!B118) -> 36.23
A119: 114 | B119: SIA2 | C119: 260362.66 | D119: 6.63 | K119: =SUMIFS(TranCost!F:F,TranCost!B:B,CustFee!B119) -> 8.66
A120: 115 | B120: TAC-RBH | C120: 117.14 | D120: 0 | K120: =SUMIFS(TranCost!F:F,TranCost!B:B,CustFee!B120) -> 0
A121: 116 | B121: TAYS2 | C121: 5357327.14 | D121: 136.5 | K121: =SUMIFS(TranCost!F:F,TranCost!B:B,CustFee!B121) -> 138.93
A122: 117 | B122: TC-CBG | C122: 61666 | D122: 1.57 | K122: =SUMIFS(TranCost!F:F,TranCost!B:B,CustFee!B122) -> 0
A123: 118 | B123: TC-CKY | C123: 4836.48 | D123: 0.12 | K123: =SUMIFS(TranCost!F:F,TranCost!B:B,CustFee!B123) -> 0
A124: 119 | B124: TC-HWY | C124: 460501.69 | D124: 11.73 | K124: =SUMIFS(TranCost!F:F,TranCost!B:B,CustFee!B124) -> 0
A125: 120 | B125: TC-LBK | C125: 732.22 | D125: 0.02 | K125: =SUMIFS(TranCost!F:F,TranCost!B:B,CustFee!B125) -> 0
A126: 121 | B126: TC-LHG | C126: 126.13 | D126: 0 | K126: =SUMIFS(TranCost!F:F,TranCost!B:B,CustFee!B126) -> 0
A127: 122 | B127: TC-MARI | C127: 71556.23 | D127: 1.82 | K127: =SUMIFS(TranCost!F:F,TranCost!B:B,CustFee!B127) -> 0
A128: 123 | B128: TC-OKK | C128: 123.07 | D128: 0 | K128: =SUMIFS(TranCost!F:F,TranCost!B:B,CustFee!B128) -> 0
A129: 124 | B129: TCK | C129: 92.96 | D129: 0 | K129: =SUMIFS(TranCost!F:F,TranCost!B:B,CustFee!B129) -> 0
A130: 125 | B130: ULIN | C130: 18414.74 | D130: 0.47 | K130: =SUMIFS(TranCost!F:F,TranCost!B:B,CustFee!B130) -> 0
A131: 126 | B131: VL-ANU | C131: 118389.09 | D131: 3.02 | K131: =SUMIFS(TranCost!F:F,TranCost!B:B,CustFee!B131) -> 8.8
A132: 127 | B132: VL-CCK | C132: 2063965.89 | D132: 52.59 | K132: =SUMIFS(TranCost!F:F,TranCost!B:B,CustFee!B132) -> 187.05
A133: 128 | B133: VL-CFK | C133: 337583.46 | D133: 8.6 | K133: =SUMIFS(TranCost!F:F,TranCost!B:B,CustFee!B133) -> 25
A134: 129 | B134: VL-CMC | C134: 516697.25 | D134: 13.17 | K134: =SUMIFS(TranCost!F:F,TranCost!B:B,CustFee!B134) -> 33.35
A135: 130 | B135: VL-CSK | C135: 332553.87 | D135: 8.47 | K135: =SUMIFS(TranCost!F:F,TranCost!B:B,CustFee!B135) -> 25.27
A136: 131 | B136: VL-CSY | C136: 211623.08 | D136: 5.39 | K136: =SUMIFS(TranCost!F:F,TranCost!B:B,CustFee!B136) -> 16
A137: 132 | B137: VL-IMJ | C137: 2123521 | D137: 54.11 | K137: =SUMIFS(TranCost!F:F,TranCost!B:B,CustFee!B137) -> 235.57
A138: 133 | B138: VL-LKS | C138: 15288471.03 | D138: 389.54 | K138: =SUMIFS(TranCost!F:F,TranCost!B:B,CustFee!B138) -> 476.63
A139: 134 | B139: VL-LNH | C139: 99165.42 | D139: 2.53 | K139: =SUMIFS(TranCost!F:F,TranCost!B:B,CustFee!B139) -> 7.37
A140: 135 | B140: VL-LPS | C140: 3571.57 | D140: 0.09 | K140: =SUMIFS(TranCost!F:F,TranCost!B:B,CustFee!B140) -> 0
A141: 136 | B141: VL-LWD | C141: 1192103.86 | D141: 30.37 | K141: =SUMIFS(TranCost!F:F,TranCost!B:B,CustFee!B141) -> 206.41
A142: 137 | B142: VL-MAA | C142: 266999.27 | D142: 6.8 | K142: =SUMIFS(TranCost!F:F,TranCost!B:B,CustFee!B142) -> 17.26
A143: 138 | B143: VL-MAK | C143: 117475.69 | D143: 2.99 | K143: =SUMIFS(TranCost!F:F,TranCost!B:B,CustFee!B143) -> 0.63
A144: 139 | B144: VL-MSG | C144: 1688651.46 | D144: 43.03 | K144: =SUMIFS(TranCost!F:F,TranCost!B:B,CustFee!B144) -> 56.65
A145: 140 | B145: VL-NAN | C145: 499664.85 | D145: 12.73 | K145: =SUMIFS(TranCost!F:F,TranCost!B:B,CustFee!B145) -> 37.21
A146: 141 | B146: VL-NCM | C146: 272621.78 | D146: 6.95 | K146: =SUMIFS(TranCost!F:F,TranCost!B:B,CustFee!B146) -> 20.48
A147: 142 | B147: VL-RAD | C147: 302649.68 | D147: 7.71 | K147: =SUMIFS(TranCost!F:F,TranCost!B:B,CustFee!B147) -> 27.1
A148: 143 | B148: VL-SIC | C148: 2568687.09 | D148: 65.45 | K148: =SUMIFS(TranCost!F:F,TranCost!B:B,CustFee!B148) -> 194.5
A149: 144 | B149: VL-TAAM | C149: 1051146.61 | D149: 26.78 | K149: =SUMIFS(TranCost!F:F,TranCost!B:B,CustFee!B149) -> 76.99
A150: 145 | B150: VL-WFR | C150: 552079.11 | D150: 14.07 | K150: =SUMIFS(TranCost!F:F,TranCost!B:B,CustFee!B150) -> 18.05
A151: 146 | B151: VL-WKM | C151: 307386.67 | D151: 7.83 | K151: =SUMIFS(TranCost!F:F,TranCost!B:B,CustFee!B151) -> 23.44
A152: 147 | B152: VL-WPI | C152: 236968.91 | D152: 6.04 | K152: =SUMIFS(TranCost!F:F,TranCost!B:B,CustFee!B152) -> 17.59
A153: 148 | B153: VL-YCM | C153: 89721.29 | D153: 2.29 | K153: =SUMIFS(TranCost!F:F,TranCost!B:B,CustFee!B153) -> 7.46
A154: 149 | B154: VL-YHN | C154: 256837.82 | D154: 6.54 | K154: =SUMIFS(TranCost!F:F,TranCost!B:B,CustFee!B154) -> 19.03
A155: 150 | B155: VL-ZUL | C155: 474706.56 | D155: 12.1 | K155: =SUMIFS(TranCost!F:F,TranCost!B:B,CustFee!B155) -> 35.08
A156: 151 | B156: VM-WAS | C156: 1119075.85 | D156: 28.51 | K156: =SUMIFS(TranCost!F:F,TranCost!B:B,CustFee!B156) -> 357.22
A157: 152 | B157: WFL2 | C157: 483852.55 | D157: 12.33 | K157: =SUMIFS(TranCost!F:F,TranCost!B:B,CustFee!B157) -> 180.2
A158: 153 | B158: WFL3 | C158: 670831.98 | D158: 17.09 | K158: =SUMIFS(TranCost!F:F,TranCost!B:B,CustFee!B158) -> 63.17
A159: 154 | B159: WJM | C159: 133.56 | D159: 0 | K159: =SUMIFS(TranCost!F:F,TranCost!B:B,CustFee!B159) -> 0
A160: 155 | B160: WWK | C160: 252548.12 | D160: 6.43 | K160: =SUMIFS(TranCost!F:F,TranCost!B:B,CustFee!B160) -> 13.56
A161: 156 | B161: YS | C161: 4176108.99 | D161: 106.4 | K161: =SUMIFS(TranCost!F:F,TranCost!B:B,CustFee!B161) -> 51.87
A162: 157 | B162: YSIF | C162: 8539981.43 | D162: 217.59 | K162: =SUMIFS(TranCost!F:F,TranCost!B:B,CustFee!B162) -> 88.74
A163: 158 | B163: YST | C163: 144.21 | D163: 0 | K163: =SUMIFS(TranCost!F:F,TranCost!B:B,CustFee!B163) -> 0
B164: TOTAL (RM) | C164: =SUM(C6:C163) -> 546604786.1 | D164: =SUM(D6:D163) -> 13927
B169: Prepared By, | C169: Checked By, | D169: Verified By,
B172: .................... | C172: .................... | D172: ....................

Sheet Data (hidden)
A1: qStockCode | B1: StockDesc | C1: TradeDate | D1: qFundCode | E1: Trans | F1: Amount | G1: qCPCode | H1: Remarks | I1: qEventTrxID | J1: UniqCode | K1: BrokerageFee | L1: qFundGrpCode | M1: SettCurrency
A2: SG2D63974620 | B2: AIMS APAC REIT | C2: 2019-05-02 | D2: VL-LNH | E2: Purchase | F2: 2167.28 | G2: TASEC | I2: EQT*190500052 | J2: TASEC | K2: 1.06 | L2: OMNIT | M2: SGD | P2: 1 | Q2: =P2&LEFT(E2,1)&TEXT(C2,"ddmmyy")&J2&L2 -> 1P020519TASECOMNIT | R2: 1
A3: SG2D63974620 | B3: AIMS APAC REIT | C3: 2019-05-02 | D3: VL-YCM | E3: Purchase | F3: 2167.31 | G3: TASEC | I3: EQT*190500062 | J3: TASEC | K3: 1.07 | L3: OMNIT | M3: SGD | P3: =IF(A3=A2,P2,P2+1) -> 1 | Q3: =P3&LEFT(E3,1)&TEXT(C3,"ddmmyy")&J3&L3 -> 1P020519TASECOMNIT | R3: =IF(Q3=Q2,0,1) -> 0
A4: SG2D63974620 | B4: AIMS APAC REIT | C4: 2019-05-02 | D4: VL-ANU | E4: Purchase | F4: 2600.77 | G4: TASEC | I4: EQT*190500047 | J4: TASEC | K4: 1.28 | L4: OMNIT | M4: SGD | P4: =IF(A4=A3,P3,P3+1) -> 1 | Q4: 1P020519TASECOMNIT | R4: =IF(Q4=Q3,0,1) -> 0
A5: SG2D63974620 | B5: AIMS APAC REIT | C5: 2019-05-02 | D5: VL-CSY | E5: Purchase | F5: 4768.04 | G5: TASEC | I5: EQT*190500051 | J5: TASEC | K5: 2.34 | L5: OMNIT | M5: SGD | P5: 1 | Q5: 1P020519TASECOMNIT | R5: 0
A6: SG2D63974620 | B6: AIMS APAC REIT | C6: 2019-05-02 | D6: VL-WPI | E6: Purchase | F6: 5201.57 | G6: TASEC | I6: EQT*190500061 | J6: TASEC | K6: 2.56 | L6: OMNIT | M6: SGD | P6: 1 | Q6: 1P020519TASECOMNIT | R6: 0
A7: SG2D63974620 | B7: AIMS APAC REIT | C7: 2019-05-02 | D7: VL-YHN | E7: Purchase | F7: 5635 | G7: TASEC | I7: EQT*190500063 | J7: TASEC | K7: 2.77 | L7: OMNIT | M7: SGD | P7: 1 | Q7: 1P020519TASECOMNIT | R7: 0
A8: SG2D63974620 | B8: AIMS APAC REIT | C8: 2019-05-02 | D8: VL-MAA | E8: Purchase | F8: 5635 | G8: TASEC | I8: EQT*190500053 | J8: TASEC | K8: 2.77 | L8: OMNIT | M8: SGD | P8: 1 | Q8: 1P020519TASECOMNIT | R8: 0
A9: SG2D63974620 | B9: AIMS APAC REIT | C9: 2019-05-02 | D9: VL-NCM | E9: Purchase | F9: 6068.46 | G9: TASEC | I9: EQT*190500056 | J9: TASEC | K9: 2.98 | L9: OMNIT | M9: SGD | P9: 1 | Q9: 1P020519TASECOMNIT | R9: 0
A10: SG2D63974620 | B10: AIMS APAC REIT | C10: 2019-05-02 | D10: VL-WKM | E10: Purchase | F10: 6501.89 | G10: TASEC | I10: EQT*190500060 | J10: TASEC | K10: 3.19 | L10: OMNIT | M10: SGD | P10: 1 | Q10: 1P020519TASECOMNIT | R10: 0
A11: SG2D63974620 | B11: AIMS APAC REIT | C11: 2019-05-02 | D11: VL-CSK | E11: Purchase | F11: 7368.84 | G11: TASEC | I11: EQT*190500050 | J11: TASEC | K11: 3.62 | L11: OMNIT | M11: SGD | P11: 1 | Q11: 1P020519TASECOMNIT | R11: 0
A12: SG2D63974620 | B12: AIMS APAC REIT | C12: 2019-05-02 | D12: VL-CFK | E12: Purchase | F12: 7368.84 | G12: TASEC | I12: EQT*190500048 | J12: TASEC | K12: 3.62 | L12: OMNIT | M12: SGD | P12: 1 | Q12: 1P020519TASECOMNIT | R12: 0
A13: SG2D63974620 | B13: AIMS APAC REIT | C13: 2019-05-02 | D13: VL-ZUL | E13: Purchase | F13: 9969.61 | G13: TASEC | I13: EQT*190500064 | J13: TASEC | K13: 4.91 | L13: OMNIT | M13: SGD | P13: 1 | Q13: 1P020519TASECOMNIT | R13: 0
A14: SG2D63974620 | B14: AIMS APAC REIT | C14: 2019-05-02 | D14: VL-CMC | E14: Purchase | F14: 10836.5 | G14: TASEC | I14: EQT*190500049 | J14: TASEC | K14: 5.32 | L14: OMNIT | M14: SGD | P14: 1 | Q14: 1P020519TASECOMNIT | R14: 0
A15: SG2D63974620 | B15: AIMS APAC REIT | C15: 2019-05-02 | D15: VL-NAN | E15: Purchase | F15: 10836.5 | G15: TASEC | I15: EQT*190500055 | J15: TASEC | K15: 5.32 | L15: OMNIT | M15: SGD | P15: 1 | Q15: 1P020519TASECOMNIT | R15: 0
A16: SG2D63974620 | B16: AIMS APAC REIT | C16: 2019-05-02 | D16: VL-WFR | E16: Purchase | F16: 11703.42 | G16: TASEC | I16: EQT*190500059 | J16: TASEC | K16: 5.75 | L16: OMNIT | M16: SGD | P16: 1 | Q16: 1P020519TASECOMNIT | R16: 0
A17: SG2D63974620 | B17: AIMS APAC REIT | C17: 2019-05-02 | D17: VL-TAAM | E17: Purchase | F17: 22106.46 | G17: TASEC | I17: EQT*190500058 | J17: TASEC | K17: 10.86 | L17: OMNIT | M17: SGD | P17: 1 | Q17: 1P020519TASECOMNIT | R17: 0
A18: SG2D63974620 | B18: AIMS APAC REIT | C18: 2019-05-02 | D18: DTKF | E18: Purchase | F18: 31209.15 | G18: TASEC | I18: EQT*190500046 | J18: TASEC | K18: 15.34 | L18: OMNIT | M18: SGD | P18: 1 | Q18: 1P020519TASECOMNIT | R18: 0
A19: SG2D63974620 | B19: AIMS APAC REIT | C19: 2019-05-02 | D19: VL-MSG | E19: Purchase | F19: 37711 | G19: TASEC | I19: EQT*190500054 | J19: TASEC | K19: 18.53 | L19: OMNIT | M19: SGD | P19: 1 | Q19: 1P020519TASECOMNIT | R19: 0
A20: SG2D63974620 | B20: AIMS APAC REIT | C20: 2019-05-02 | D20: VL-SIC | E20: Purchase | F20: 54615.96 | G20: TASEC | I20: EQT*190500057 | J20: TASEC | K20: 26.84 | L20: OMNIT | M20: SGD | P20: 1 | Q20: 1P020519TASECOMNIT | R20: 0
A21: 0128 | B21: FRONTKEN CORP BHD | C21: 2019-05-02 | D21: VL-RAD | E21: Sales | F21: 4230.13 | G21: TASEC | I21: EQT*190500045 | J21: TASEC | K21: 14.87 | L21: OMNIT | M21: MYR | P21: 2 | Q21: 2S020519TASECOMNIT | R21: 1
A22: 0128 | B22: FRONTKEN CORP BHD | C22: 2019-05-02 | D22: VL-CCK | E22: Sales | F22: 8869.62 | G22: TASEC | I22: EQT*190500043 | J22: TASEC | K22: 31.17 | L22: OMNIT | M22: MYR | P22: 2 | Q22: 2S020519TASECOMNIT | R22: 0
A23: 0128 | B23: FRONTKEN CORP BHD | C23: 2019-05-02 | D23: VL-IMJ | E23: Sales | F23: 41209.59 | G23: TASEC | I23: EQT*190500044 | J23: TASEC | K23: 144.82 | L23: OMNIT | M23: MYR | P23: 2 | Q23: 2S020519TASECOMNIT | R23: 0
A24: 8877 | B24: EKOVEST BHD | C24: 2019-05-03 | D24: AG-JOS | E24: Purchase | F24: 5818.74 | G24: KLCS | I24: EQT*190500097 | J24: KLCS | K24: 20.28 | L24: OMNIT | M24: MYR | P24: 3 | Q24: 3P030519KLCSOMNIT | R24: 1
A25: 8877 | B25: EKOVEST BHD | C25: 2019-05-03 | D25: AG-TJK1 | E25: Purchase | F25: 6339.82 | G25: KLCS | I25: EQT*190500099 | J25: KLCS | K25: 22.1 | L25: OMNIT | M25: MYR | P25: 3 | Q25: 3P030519KLCSOMNIT | R25: 0
A26: 8877 | B26: EKOVEST BHD | C26: 2019-05-03 | D26: AG-SKS | E26: Purchase | F26: 22580.19 | G26: KLCS | I26: EQT*190500098 | J26: KLCS | K26: 78.72 | L26: OMNIT | M26: MYR | P26: 3 | Q26: 3P030519KLCSOMNIT | R26: 0
A27: 8877 | B27: EKOVEST BHD | C27: 2019-05-03 | D27: WFL2 | E27: Purchase | F27: 26922.52 | G27: KLCS | I27: EQT*190500100 | J27: KLCS | K27: 93.85 | L27: OMNIT | M27: MYR | P27: 3 | Q27: 3P030519KLCSOMNIT | R27: 0
A28: 8877 | B28: EKOVEST BHD | C28: 2019-05-03 | D28: VM-WAS | E28: Purchase | F28: 60792.81 | G28: KLCS | I28: EQT*190500102 | J28: KLCS | K28: 211.93 | L28: OMNIT | M28: MYR | P28: 3 | Q28: 3P030519KLCSOMNIT | R28: 0
A29: 8877 | B29: EKOVEST BHD | C29: 2019-05-03 | D29: AG-JOS | E29: Sales | F29: 6139.29 | G29: KLCS | I29: EQT*190500103 | J29: KLCS | K29: 21.57 | L29: OMNIT | M29: MYR | P29: 3 | Q29: 3S030519KLCSOMNIT | R29: 1
A30: 8877 | B30: EKOVEST BHD | C30: 2019-05-03 | D30: AG-TJK1 | E30: Sales | F30: 6689.07 | G30: KLCS | I30: EQT*190500105 | J30: KLCS | K30: 23.51 | L30: OMNIT | M30: MYR | P30: 3 | Q30: 3S030519KLCSOMNIT | R30: 0
A31: 8877 | B31: EKOVEST BHD | C31: 2019-05-03 | D31: AG-SKS | E31: Sales | F31: 23824.08 | G31: KLCS | I31: EQT*190500104 | J31: KLCS | K31: 83.72 | L31: OMNIT | M31: MYR | P31: 3 | Q31: 3S030519KLCSOMNIT | R31: 0
A32: 8877 | B32: EKOVEST BHD | C32: 2019-05-03 | D32: WFL2 | E32: Sales | F32: 28405.63 | G32: KLCS | I32: EQT*190500106 | J32: KLCS | K32: 99.82 | L32: OMNIT | M32: MYR | P32: 3 | Q32: 3S030519KLCSOMNIT | R32: 0
A33: 8877 | B33: EKOVEST BHD | C33: 2019-05-03 | D33: VM-WAS | E33: Sales | F33: 64141.75 | G33: KLCS | I33: EQT*190500108 | J33: KLCS | K33: 225.4 | L33: OMNIT | M33: MYR | P33: 3 | Q33: 3S030519KLCSOMNIT | R33: 0
A34: SG1CI1000004 | B34: MANULIFE US REAL ESTATE INVESTMENT TRUST | C34: 2019-05-03 | D34: VL-RAD | E34: Purchase | F34: 15927.79 | G34: TASEC(F) | I34: EQT*190500125 | J34: TASEC(F) | K34: 5.74 | L34: OMNIT | M34: USD | P34: 4 | Q34: 4P030519TASEC(F)OMNIT | R34: 1
A35: SG1CI1000004 | B35: MANULIFE US REAL ESTATE INVESTMENT TRUST | C35: 2019-05-03 | D35: VL-CCK | E35: Purchase | F35: 107512.31 | G35: TASEC(F) | I35: EQT*190500123 | J35: TASEC(F) | K35: 38.76 | L35: OMNIT | M35: USD | P35: 4 | Q35: 4P030519TASEC(F)OMNIT | R35: 0
A36: SG1CI1000004 | B36: MANULIFE US REAL ESTATE INVESTMENT TRUST | C36: 2019-05-03 | D36: VL-IMJ | E36: Purchase | F36: 110770.23 | G36: TASEC(F) | I36: EQT*190500124 | J36: TASEC(F) | K36: 39.93 | L36: OMNIT | M36: USD | P36: 4 | Q36: 4P030519TASEC(F)OMNIT | R36: 0
A37: SG1CI1000004 | B37: MANULIFE US REAL ESTATE INVESTMENT TRUST | C37: 2019-05-06 | D37: VL-LNH | E37: Purchase | F37: 2186.27 | G37: TASEC | I37: EQT*190500177 | J37: TASEC | K37: 0.79 | L37: OMNIT | M37: USD | P37: 4 | Q37: 4P060519TASECOMNIT | R37: 1
A38: SG1CI1000004 | B38: MANULIFE US REAL ESTATE INVESTMENT TRUST | C38: 2019-05-06 | D38: VL-YCM | E38: Purchase | F38: 2186.31 | G38: TASEC | I38: EQT*190500185 | J38: TASEC | K38: 0.79 | L38: OMNIT | M38: USD | P38: 4 | Q38: 4P060519TASECOMNIT | R38: 0
A39: SG1CI1000004 | B39: MANULIFE US REAL ESTATE INVESTMENT TRUST | C39: 2019-05-06 | D39: VL-ANU | E39: Purchase | F39: 2550.66 | G39: TASEC | I39: EQT*190500172 | J39: TASEC | K39: 0.92 | L39: OMNIT | M39: USD | P39: 4 | Q39: 4P060519TASECOMNIT | R39: 0
A40: SG1CI1000004 | B40: MANULIFE US REAL ESTATE INVESTMENT TRUST | C40: 2019-05-06 | D40: VL-CSY | E40: Purchase | F40: 4736.89 | G40: TASEC | I40: EQT*190500176 | J40: TASEC | K40: 1.71 | L40: OMNIT | M40: USD | P40: 4 | Q40: 4P060519TASECOMNIT | R40: 0
A41: SG1CI1000004 | B41: MANULIFE US REAL ESTATE INVESTMENT TRUST | C41: 2019-05-06 | D41: VL-WPI | E41: Purchase | F41: 5101.28 | G41: TASEC | I41: EQT*190500184 | J41: TASEC | K41: 1.84 | L41: OMNIT | M41: USD | P41: 4 | Q41: 4P060519TASECOMNIT | R41: 0
A42: SG1CI1000004 | B42: MANULIFE US REAL ESTATE INVESTMENT TRUST | C42: 2019-05-06 | D42: VL-YHN | E42: Purchase | F42: 5465.59 | G42: TASEC | I42: EQT*190500186 | J42: TASEC | K42: 1.97 | L42: OMNIT | M42: USD | P42: 4 | Q42: 4P060519TASECOMNIT | R42: 0
A43: SG1CI1000004 | B43: MANULIFE US REAL ESTATE INVESTMENT TRUST | C43: 2019-05-06 | D43: VL-NCM | E43: Purchase | F43: 5829.98 | G43: TASEC | I43: EQT*190500180 | J43: TASEC | K43: 2.1 | L43: OMNIT | M43: USD | P43: 4 | Q43: 4P060519TASECOMNIT | R43: 0
A44: SG1CI1000004 | B44: MANULIFE US REAL ESTATE INVESTMENT TRUST | C44: 2019-05-06 | D44: VL-MAA | E44: Purchase | F44: 5829.98 | G44: TASEC | I44: EQT*190500178 | J44: TASEC | K44: 2.1 | L44: OMNIT | M44: USD | P44: 4 | Q44: 4P060519TASECOMNIT | R44: 0
A45: SG1CI1000004 | B45: MANULIFE US REAL ESTATE INVESTMENT TRUST | C45: 2019-05-06 | D45: VL-WKM | E45: Purchase | F45: 6558.72 | G45: TASEC | I45: EQT*190500183 | J45: TASEC | K45: 2.36 | L45: OMNIT | M45: USD | P45: 4 | Q45: 4P060519TASECOMNIT | R45: 0
A46: SG1CI1000004 | B46: MANULIFE US REAL ESTATE INVESTMENT TRUST | C46: 2019-05-06 | D46: VL-CSK | E46: Purchase | F46: 7287.47 | G46: TASEC | I46: EQT*190500175 | J46: TASEC | K46: 2.63 | L46: OMNIT | M46: USD | P46: 4 | Q46: 4P060519TASECOMNIT | R46: 0
A47: SG1CI1000004 | B47: MANULIFE US REAL ESTATE INVESTMENT TRUST | C47: 2019-05-06 | D47: VL-CFK | E47: Purchase | F47: 7287.51 | G47: TASEC | I47: EQT*190500173 | J47: TASEC | K47: 2.63 | L47: OMNIT | M47: USD | P47: 4 | Q47: 4P060519TASECOMNIT | R47: 0
A48: SG1CI1000004 | B48: MANULIFE US REAL ESTATE INVESTMENT TRUST | C48: 2019-05-06 | D48: VL-ZUL | E48: Purchase | F48: 10202.48 | G48: TASEC | I48: EQT*190500187 | J48: TASEC | K48: 3.68 | L48: OMNIT | M48: USD | P48: 4 | Q48: 4P060519TASECOMNIT | R48: 0
A49: SG1CI1000004 | B49: MANULIFE US REAL ESTATE INVESTMENT TRUST | C49: 2019-05-06 | D49: VL-NAN | E49: Purchase | F49: 10566.87 | G49: TASEC | I49: EQT*190500179 | J49: TASEC | K49: 3.81 | L49: OMNIT | M49: USD | P49: 4 | Q49: 4P060519TASECOMNIT | R49: 0
A50: SG1CI1000004 | B50: MANULIFE US REAL ESTATE INVESTMENT TRUST | C50: 2019-05-06 | D50: VL-CMC | E50: Purchase | F50: 10931.22 | G50: TASEC | I50: EQT*190500174 | J50: TASEC | K50: 3.93 | L50: OMNIT | M50: USD | P50: 4 | Q50: 4P060519TASECOMNIT | R50: 0
A51: SG1CI1000004 | B51: MANULIFE US REAL ESTATE INVESTMENT TRUST | C51: 2019-05-06 | D51: VL-TAAM | E51: Purchase | F51: 22226.83 | G51: TASEC | I51: EQT*190500182 | J51: TASEC | K51: 8 | L51: OMNIT | M51: USD | P51: 4 | Q51: 4P060519TASECOMNIT | R51: 0
A52: SG1CI1000004 | B52: MANULIFE US REAL ESTATE INVESTMENT TRUST | C52: 2019-05-06 | D52: DTKF | E52: Purchase | F52: 31336.17 | G52: TASEC | I52: EQT*190500171 | J52: TASEC | K52: 11.28 | L52: OMNIT | M52: USD | P52: 4 | Q52: 4P060519TASECOMNIT | R52: 0
A53: SG1CI1000004 | B53: MANULIFE US REAL ESTATE INVESTMENT TRUST | C53: 2019-05-06 | D53: VL-SIC | E53: Purchase | F53: 54656.1 | G53: TASEC | I53: EQT*190500181 | J53: TASEC | K53: 19.68 | L53: OMNIT | M53: USD | P53: 4 | Q53: 4P060519TASECOMNIT | R53: 0
A54: 5253 | B54: ECONPILE HOLDINGS BHD | C54: 2019-05-07 | D54: VL-RAD | E54: Sales | F54: 812.73 | G54: TASEC | I54: EQT*190500228 | J54: TASEC | K54: 2.86 | L54: OMNIT | M54: MYR | P54: 5 | Q54: 5S070519TASECOMNIT | R54: 1
A55: 5253 | B55: ECONPILE HOLDINGS BHD | C55: 2019-05-07 | D55: VL-CCK | E55: Sales | F55: 5418.19 | G55: TASEC | I55: EQT*190500225 | J55: TASEC | K55: 19.04 | L55: OMNIT | M55: MYR | P55: 5 | Q55: 5S070519TASECOMNIT | R55: 0
A56: 5253 | B56: ECONPILE HOLDINGS BHD | C56: 2019-05-07 | D56: VL-IMJ | E56: Sales | F56: 5418.19 | G56: TASEC | I56: EQT*190500226 | J56: TASEC | K56: 19.04 | L56: OMNIT | M56: MYR | P56: 5 | Q56: 5S070519TASECOMNIT | R56: 0
A57: 5253 | B57: ECONPILE HOLDINGS BHD | C57: 2019-05-07 | D57: PRSB | E57: Sales | F57: 6434.09 | G57: TASEC | I57: EQT*190500223 | J57: TASEC | K57: 22.61 | L57: OMNIT | M57: MYR | P57: 5 | Q57: 5S070519TASECOMNIT | R57: 0
A58: 5253 | B58: ECONPILE HOLDINGS BHD | C58: 2019-05-07 | D58: YS | E58: Sales | F58: 11039.55 | G58: TASEC | I58: EQT*190500229 | J58: TASEC | K58: 38.79 | L58: OMNIT | M58: MYR | P58: 5 | Q58: 5S070519TASECOMNIT | R58: 0
A59: 5253 | B59: ECONPILE HOLDINGS BHD | C59: 2019-05-07 | D59: TAYS2 | E59: Sales | F59: 14222.74 | G59: TASEC | I59: EQT*190500224 | J59: TASEC | K59: 49.98 | L59: OMNIT | M59: MYR | P59: 5 | Q59: 5S070519TASECOMNIT | R59: 0
A60: 5253 | B60: ECONPILE HOLDINGS BHD | C60: 2019-05-07 | D60: YSIF | E60: Sales | F60: 21740.47 | G60: TASEC | I60: EQT*190500230 | J60: TASEC | K60: 76.4 | L60: OMNIT | M60: MYR | P60: 5 | Q60: 5S070519TASECOMNIT | R60: 0
A61: 5253 | B61: ECONPILE HOLDINGS BHD | C61: 2019-05-07 | D61: VL-LKS | E61: Sales | F61: 41110.49 | G61: TASEC | I61: EQT*190500227 | J61: TASEC | K61: 144.46 | L61: OMNIT | M61: MYR | P61: 5 | Q61: 5S070519TASECOMNIT | R61: 0
A62: 0180 | B62: KIM TECK CHEONG BHD | C62: 2019-05-08 | D62: VL-YCM | E62: Purchase | F62: 1066.42 | G62: TASEC | I62: EQT*190500291 | J62: TASEC | K62: 3.71 | L62: OMNIT | M62: MYR | P62: 6 | Q62: 6P080519TASECOMNIT | R62: 1
A63: 0180 | B63: KIM TECK CHEONG BHD | C63: 2019-05-08 | D63: VL-LNH | E63: Purchase | F63: 1119.74 | G63: TASEC | I63: EQT*190500283 | J63: TASEC | K63: 3.9 | L63: OMNIT | M63: MYR | P63: 6 | Q63: 6P080519TASECOMNIT | R63: 0
A64: 0180 | B64: KIM TECK CHEONG BHD | C64: 2019-05-08 | D64: VL-ANU | E64: Purchase | F64: 1421.9 | G64: TASEC | I64: EQT*190500278 | J64: TASEC | K64: 4.95 | L64: OMNIT | M64: MYR | P64: 6 | Q64: 6P080519TASECOMNIT | R64: 0
A65: 0180 | B65: KIM TECK CHEONG BHD | C65: 2019-05-08 | D65: VL-CSY | E65: Purchase | F65: 2488.33 | G65: TASEC | I65: EQT*190500282 | J65: TASEC | K65: 8.67 | L65: OMNIT | M65: MYR | P65: 6 | Q65: 6P080519TASECOMNIT | R65: 0
A66: 0180 | B66: KIM TECK CHEONG BHD | C66: 2019-05-08 | D66: VL-WPI | E66: Purchase | F66: 2843.81 | G66: TASEC | I66: EQT*190500290 | J66: TASEC | K66: 9.91 | L66: OMNIT | M66: MYR | P66: 6 | Q66: 6P080519TASECOMNIT | R66: 0
A67: 0180 | B67: KIM TECK CHEONG BHD | C67: 2019-05-08 | D67: VL-YHN | E67: Purchase | F67: 3021.55 | G67: TASEC | I67: EQT*190500292 | J67: TASEC | K67: 10.53 | L67: OMNIT | M67: MYR | P67: 6 | Q67: =P67&LEFT(E67,1)&TEXT(C67,"ddmmyy")&J67&L67 -> 6P080519TASECOMNIT | R67: 0
A68: 0180 | B68: KIM TECK CHEONG BHD | C68: 2019-05-08 | D68: VL-MAA | E68: Purchase | F68: 3021.55 | G68: TASEC | I68: EQT*190500284 | J68: TASEC | K68: 10.53 | L68: OMNIT | M68: MYR | P68: =IF(A68=A67,P67,P67+1) -> 6 | Q68: 6P080519TASECOMNIT | R68: =IF(Q68=Q67,0,1) -> 0
A69: 0180 | B69: KIM TECK CHEONG BHD | C69: 2019-05-08 | D69: VL-NCM | E69: Purchase | F69: 3199.28 | G69: TASEC | I69: EQT*190500286 | J69: TASEC | K69: 11.14 | L69: OMNIT | M69: MYR | P69: 6 | Q69: 6P080519TASECOMNIT | R69: 0
A70: 0180 | B70: KIM TECK CHEONG BHD | C70: 2019-05-08 | D70: VL-WKM | E70: Purchase | F70: 3554.75 | G70: TASEC | I70: EQT*190500289 | J70: TASEC | K70: 12.38 | L70: OMNIT | M70: MYR | P70: 6 | Q70: 6P080519TASECOMNIT | R70: 0
A71: 0180 | B71: KIM TECK CHEONG BHD | C71: 2019-05-08 | D71: VL-CFK | E71: Purchase | F71: 3910.24 | G71: TASEC | I71: EQT*190500279 | J71: TASEC | K71: 13.62 | L71: OMNIT | M71: MYR | P71: 6 | Q71: 6P080519TASECOMNIT | R71: 0
A72: 0180 | B72: KIM TECK CHEONG BHD | C72: 2019-05-08 | D72: VL-CSK | E72: Purchase | F72: 3910.24 | G72: TASEC | I72: EQT*190500281 | J72: TASEC | K72: 13.62 | L72: OMNIT | M72: MYR | P72: 6 | Q72: 6P080519TASECOMNIT | R72: 0
A73: 0180 | B73: KIM TECK CHEONG BHD | C73: 2019-05-08 | D73: VL-ZUL | E73: Purchase | F73: 5509.88 | G73: TASEC | I73: EQT*190500293 | J73: TASEC | K73: 19.19 | L73: OMNIT | M73: MYR | P73: 6 | Q73: 6P080519TASECOMNIT | R73: 0
A74: 0180 | B74: KIM TECK CHEONG BHD | C74: 2019-05-08 | D74: VL-NAN | E74: Purchase | F74: 5865.35 | G74: TASEC | I74: EQT*190500285 | J74: TASEC | K74: 20.43 | L74: OMNIT | M74: MYR | P74: 6 | Q74: 6P080519TASECOMNIT | R74: 0
A75: 0180 | B75: KIM TECK CHEONG BHD | C75: 2019-05-08 | D75: VL-CMC | E75: Purchase | F75: 6043.08 | G75: TASEC | I75: EQT*190500280 | J75: TASEC | K75: 21.05 | L75: OMNIT | M75: MYR | P75: 6 | Q75: 6P080519TASECOMNIT | R75: 0
A76: 0180 | B76: KIM TECK CHEONG BHD | C76: 2019-05-08 | D76: VL-TAAM | E76: Purchase | F76: 9775.58 | G76: TASEC | I76: EQT*190500288 | J76: TASEC | K76: 34.05 | L76: OMNIT | M76: MYR | P76: 6 | Q76: 6P080519TASECOMNIT | R76: 0
A77: 0180 | B77: KIM TECK CHEONG BHD | C77: 2019-05-08 | D77: DTKF | E77: Purchase | F77: 13330.35 | G77: TASEC | I77: EQT*190500277 | J77: TASEC | K77: 46.44 | L77: OMNIT | M77: MYR | P77: 6 | Q77: 6P080519TASECOMNIT | R77: 0
A78: 0180 | B78: KIM TECK CHEONG BHD | C78: 2019-05-08 | D78: VL-SIC | E78: Purchase | F78: 28615.8 | G78: TASEC | I78: EQT*190500287 | J78: TASEC | K78: 99.68 | L78: OMNIT | M78: MYR | P78: 6 | Q78: 6P080519TASECOMNIT | R78: 0
A79: 0180 | B79: KIM TECK CHEONG BHD | C79: 2019-05-08 | D79: VL-LWD | E79: Purchase | F79: 177737.96 | G79: TASEC | I79: EQT*190500276 | J79: TASEC | K79: 619.15 | L79: OMNIT | M79: MYR | P79: 6 | Q79: 6P080519TASECOMNIT | R79: 0
A80: 0128 | B80: FRONTKEN CORP BHD | C80: 2019-05-10 | D80: VL-RAD | E80: Sales | F80: 2091.58 | G80: TASEC | I80: EQT*190500329 | J80: TASEC | K80: 7.35 | L80: OMNIT | M80: MYR | P80: 7 | Q80: 7S100519TASECOMNIT | R80: 1
A81: 0128 | B81: FRONTKEN CORP BHD | C81: 2019-05-10 | D81: VL-IMJ | E81: Sales | F81: 12828.36 | G81: TASEC | I81: EQT*190500328 | J81: TASEC | K81: 45.08 | L81: OMNIT | M81: MYR | P81: 7 | Q81: 7S100519TASECOMNIT | R81: 0
A82: 0128 | B82: FRONTKEN CORP BHD | C82: 2019-05-10 | D82: VL-CCK | E82: Sales | F82: 12828.36 | G82: TASEC | I82: EQT*190500327 | J82: TASEC | K82: 45.08 | L82: OMNIT | M82: MYR | P82: 7 | Q82: 7S100519TASECOMNIT | R82: 0
A83: 5253 | B83: ECONPILE HOLDINGS BHD | C83: 2019-05-13 | D83: MF | E83: Sales | F83: 6175.14 | G83: TASEC | I83: EQT*190500349 | J83: TASEC | K83: 21.7 | L83: OMNIT | M83: MYR | P83: 8 | Q83: 8S130519TASECOMNIT | R83: 1
A84: 5253 | B84: ECONPILE HOLDINGS BHD | C84: 2019-05-13 | D84: LFS | E84: Sales | F84: 8027.68 | G84: TASEC | I84: EQT*190500347 | J84: TASEC | K84: 28.21 | L84: OMNIT | M84: MYR | P84: 8 | Q84: 8S130519TASECOMNIT | R84: 0
A85: 5253 | B85: ECONPILE HOLDINGS BHD | C85: 2019-05-13 | D85: SIA | E85: Sales | F85: 8027.68 | G85: TASEC | I85: EQT*190500351 | J85: TASEC | K85: 28.21 | L85: OMNIT | M85: MYR | P85: 8 | Q85: 8S130519TASECOMNIT | R85: 0
A86: 5253 | B86: ECONPILE HOLDINGS BHD | C86: 2019-05-13 | D86: RTMOEY | E86: Sales | F86: 19760.44 | G86: TASEC | I86: EQT*190500350 | J86: TASEC | K86: 69.44 | L86: OMNIT | M86: MYR | P86: 8 | Q86: 8S130519TASECOMNIT | R86: 0
A87: 7164 | B87: KNM GROUP BHD | C87: 2019-05-13 | D87: AG-TJK1 | E87: Sales | F87: 3627.5 | G87: TASEC | I87: EQT*190500354 | J87: TASEC | K87: 40 | L87: OMNIT | M87: MYR | P87: 9 | Q87: 9S130519TASECOMNIT | R87: 1
A88: SG2F05983695 | B88: ASCENDAS HOSPITALITY TRUST | C88: 2019-05-14 | D88: SIA2 | E88: Purchase | F88: 8663.31 | G88: TASEC(F) | I88: EQT*190500424 | J88: TASEC(F) | K88: 13.07 | L88: OMNIT | M88: SGD | P88: 10 | Q88: 10P140519TASEC(F)OMNIT | R88: 1
A89: SG2F05983695 | B89: ASCENDAS HOSPITALITY TRUST | C89: 2019-05-14 | D89: VL-LKS | E89: Purchase | F89: 171735.33 | G89: TASEC(F) | I89: EQT*190500423 | J89: TASEC(F) | K89: 84.15 | L89: OMNIT | M89: SGD | P89: 10 | Q89: 10P140519TASEC(F)OMNIT | R89: 0
A90: 8877 | B90: EKOVEST BHD | C90: 2019-05-14 | D90: AG-TJK1 | E90: Purchase | F90: 4862.42 | G90: TASEC | I90: EQT*190500379 | J90: TASEC | K90: 16.95 | L90: OMNIT | M90: MYR | P90: 11 | Q90: 11P140519TASECOMNIT | R90: 1
A91: 8877 | B91: EKOVEST BHD | C91: 2019-05-14 | D91: AG-JOS | E91: Purchase | F91: 5533.1 | G91: TASEC | I91: EQT*190500377 | J91: TASEC | K91: 19.29 | L91: OMNIT | M91: MYR | P91: 11 | Q91: 11P140519TASECOMNIT | R91: 0
A92: 8877 | B92: EKOVEST BHD | C92: 2019-05-14 | D92: AG-SKS | E92: Purchase | F92: 20958.7 | G92: TASEC | I92: EQT*190500378 | J92: TASEC | K92: 73.06 | L92: OMNIT | M92: MYR | P92: 11 | Q92: 11P140519TASECOMNIT | R92: 0
A93: 8877 | B93: EKOVEST BHD | C93: 2019-05-14 | D93: WFL2 | E93: Purchase | F93: 24815.11 | G93: TASEC | I93: EQT*190500380 | J93: TASEC | K93: 86.51 | L93: OMNIT | M93: MYR | P93: 11 | Q93: 11P140519TASECOMNIT | R93: 0
A94: 8877 | B94: EKOVEST BHD | C94: 2019-05-14 | D94: VM-WAS | E94: Purchase | F94: 57007.68 | G94: TASEC | I94: EQT*190500381 | J94: TASEC | K94: 198.73 | L94: OMNIT | M94: MYR | P94: 11 | Q94: 11P140519TASECOMNIT | R94: 0
A95: 5249 | B95: IOI PROPERTIES GROUP BHD | C95: 2019-05-15 | D95: MF | E95: Purchase | F95: 6231.21 | G95: TASEC | I95: EQT*190500486 | J95: TASEC | K95: 21.7 | L95: OMNIT | M95: MYR | P95: 12 | Q95: 12P150519TASECOMNIT | R95: 1
A96: 5249 | B96: IOI PROPERTIES GROUP BHD | C96: 2019-05-15 | D96: SIA | E96: Purchase | F96: 7975.95 | G96: TASEC | I96: EQT*190500487 | J96: TASEC | K96: 27.78 | L96: OMNIT | M96: MYR | P96: 12 | Q96: 12P150519TASECOMNIT | R96: 0
A97: 5249 | B97: IOI PROPERTIES GROUP BHD | C97: 2019-05-15 | D97: LFS | E97: Purchase | F97: 10343.8 | G97: TASEC | I97: EQT*190500484 | J97: TASEC | K97: 36.02 | L97: OMNIT | M97: MYR | P97: 12 | Q97: 12P150519TASECOMNIT | R97: 0
A98: 3069 | B98: MEGA FIRST CORP BHD | C98: 2019-05-15 | D98: VL-LNH | E98: Purchase | F98: 1413.65 | G98: PIBB | I98: EQT*190500512 | J98: PIBB | K98: 4.93 | L98: OMNIT | M98: MYR | P98: 13 | Q98: 13P150519PIBBOMNIT | R98: 1
A99: 3069 | B99: MEGA FIRST CORP BHD | C99: 2019-05-15 | D99: VL-YCM | E99: Purchase | F99: 1413.65 | G99: PIBB | I99: EQT*190500523 | J99: PIBB | K99: 4.93 | L99: OMNIT | M99: MYR | P99: 13 | Q99: 13P150519PIBBOMNIT | R99: 0
A100: 3069 | B100: MEGA FIRST CORP BHD | C100: 2019-05-15 | D100: VL-ANU | E100: Purchase | F100: 1767.06 | G100: PIBB | I100: EQT*190500507 | J100: PIBB | K100: 6.16 | L100: OMNIT | M100: MYR | P100: 13 | Q100: 13P150519PIBBOMNIT | R100: 0
A101: 3069 | B101: MEGA FIRST CORP BHD | C101: 2019-05-15 | D101: VL-CSY | E101: Purchase | F101: 3180.71 | G101: PIBB | I101: EQT*190500511 | J101: PIBB | K101: 11.09 | L101: OMNIT | M101: MYR | P101: 13 | Q101: 13P150519PIBBOMNIT | R101: 0
A102: 3069 | B102: MEGA FIRST CORP BHD | C102: 2019-05-15 | D102: VL-WPI | E102: Purchase | F102: 3534.12 | G102: PIBB | I102: EQT*190500522 | J102: PIBB | K102: 12.32 | L102: OMNIT | M102: MYR | P102: 13 | Q102: 13P150519PIBBOMNIT | R102: 0
A103: 3069 | B103: MEGA FIRST CORP BHD | C103: 2019-05-15 | D103: VL-YHN | E103: Purchase | F103: 3887.53 | G103: PIBB | I103: EQT*190500524 | J103: PIBB | K103: 13.55 | L103: OMNIT | M103: MYR | P103: 13 | Q103: 13P150519PIBBOMNIT | R103: 0
A104: 3069 | B104: MEGA FIRST CORP BHD | C104: 2019-05-15 | D104: VL-MAA | E104: Purchase | F104: 3887.53 | G104: PIBB | I104: EQT*190500514 | J104: PIBB | K104: 13.55 | L104: OMNIT | M104: MYR | P104: 13 | Q104: 13P150519PIBBOMNIT | R104: 0
A105: 3069 | B105: MEGA FIRST CORP BHD | C105: 2019-05-15 | D105: VL-NCM | E105: Purchase | F105: 4240.94 | G105: PIBB | I105: EQT*190500517 | J105: PIBB | K105: 14.78 | L105: OMNIT | M105: MYR | P105: 13 | Q105: 13P150519PIBBOMNIT | R105: 0
A106: 3069 | B106: MEGA FIRST CORP BHD | C106: 2019-05-15 | D106: VL-WKM | E106: Purchase | F106: 4594.35 | G106: PIBB | I106: EQT*190500521 | J106: PIBB | K106: 16.02 | L106: OMNIT | M106: MYR | P106: 13 | Q106: 13P150519PIBBOMNIT | R106: 0
A107: 3069 | B107: MEGA FIRST CORP BHD | C107: 2019-05-15 | D107: VL-CFK | E107: Purchase | F107: 4947.77 | G107: PIBB | I107: EQT*190500508 | J107: PIBB | K107: 17.25 | L107: OMNIT | M107: MYR | P107: 13 | Q107: 13P150519PIBBOMNIT | R107: 0
A108: 3069 | B108: MEGA FIRST CORP BHD | C108: 2019-05-15 | D108: VL-CSK | E108: Purchase | F108: 5301.17 | G108: PIBB | I108: EQT*190500510 | J108: PIBB | K108: 18.48 | L108: OMNIT | M108: MYR | P108: 13 | Q108: 13P150519PIBBOMNIT | R108: 0
A109: 3069 | B109: MEGA FIRST CORP BHD | C109: 2019-05-15 | D109: VL-ZUL | E109: Purchase | F109: 7421.64 | G109: PIBB | I109: EQT*190500525 | J109: PIBB | K109: 25.87 | L109: OMNIT | M109: MYR | P109: 13 | Q109: 13P150519PIBBOMNIT | R109: 0
A110: 3069 | B110: MEGA FIRST CORP BHD | C110: 2019-05-15 | D110: VL-CMC | E110: Purchase | F110: 7775.05 | G110: PIBB | I110: EQT*190500509 | J110: PIBB | K110: 27.1 | L110: OMNIT | M110: MYR | P110: 13 | Q110: 13P150519PIBBOMNIT | R110: 0
A111: 3069 | B111: MEGA FIRST CORP BHD | C111: 2019-05-15 | D111: VL-NAN | E111: Purchase | F111: 7775.05 | G111: PIBB | I111: EQT*190500516 | J111: PIBB | K111: 27.1 | L111: OMNIT | M111: MYR | P111: 13 | Q111: 13P150519PIBBOMNIT | R111: 0
A112: 3069 | B112: MEGA FIRST CORP BHD | C112: 2019-05-15 | D112: VL-WFR | E112: Purchase | F112: 8481.87 | G112: PIBB | I112: EQT*190500520 | J112: PIBB | K112: 29.57 | L112: OMNIT | M112: MYR | P112: 13 | Q112: 13P150519PIBBOMNIT | R112: 0
A113: 3069 | B113: MEGA FIRST CORP BHD | C113: 2019-05-15 | D113: VL-TAAM | E113: Purchase | F113: 15903.52 | G113: PIBB | I113: EQT*190500519 | J113: PIBB | K113: 55.44 | L113: OMNIT | M113: MYR | P113: 13 | Q113: 13P150519PIBBOMNIT | R113: 0
A114: 3069 | B114: MEGA FIRST CORP BHD | C114: 2019-05-15 | D114: VL-LWD | E114: Purchase | F114: 18023.99 | G114: PIBB | I114: EQT*190500513 | J114: PIBB | K114: 62.83 | L114: OMNIT | M114: MYR | P114: 13 | Q114: 13P150519PIBBOMNIT | R114: 0
A115: 3069 | B115: MEGA FIRST CORP BHD | C115: 2019-05-15 | D115: DTKF | E115: Purchase | F115: 22618.34 | G115: PIBB | I115: EQT*190500504 | J115: PIBB | K115: 78.85 | L115: OMNIT | M115: MYR | P115: 13 | Q115: 13P150519PIBBOMNIT | R115: 0
A116: 3069 | B116: MEGA FIRST CORP BHD | C116: 2019-05-15 | D116: VL-MSG | E116: Purchase | F116: 25799.05 | G116: PIBB | I116: EQT*190500515 | J116: PIBB | K116: 89.94 | L116: OMNIT | M116: MYR | P116: 13 | Q116: 13P150519PIBBOMNIT | R116: 0
A117: 3069 | B117: MEGA FIRST CORP BHD | C117: 2019-05-15 | D117: VL-SIC | E117: Purchase | F117: 39582.08 | G117: PIBB | I117: EQT*190500518 | J117: PIBB | K117: 137.98 | L117: OMNIT | M117: MYR | P117: 13 | Q117: 13P150519PIBBOMNIT | R117: 0
A118: 3069 | B118: MEGA FIRST CORP BHD | C118: 2019-05-15 | D118: VL-MAK | E118: Purchase | F118: 1768.3 | G118: TASEC | I118: EQT*190500533 | J118: TASEC | K118: 6.16 | L118: OMNIT | M118: MYR | P118: 13 | Q118: 13P150519TASECOMNIT | R118: 1
A119: 3069 | B119: MEGA FIRST CORP BHD | C119: 2019-05-15 | D119: VL-RAD | E119: Purchase | F119: 4597.53 | G119: TASEC | I119: EQT*190500534 | J119: TASEC | K119: 16.03 | L119: OMNIT | M119: MYR | P119: 13 | Q119: 13P150519TASECOMNIT | R119: 0
A120: 3069 | B120: MEGA FIRST CORP BHD | C120: 2019-05-15 | D120: VL-IMJ | E120: Purchase | F120: 31829.07 | G120: TASEC | I120: EQT*190500531 | J120: TASEC | K120: 110.96 | L120: OMNIT | M120: MYR | P120: 13 | Q120: 13P150519TASECOMNIT | R120: 0
A121: 3069 | B121: MEGA FIRST CORP BHD | C121: 2019-05-15 | D121: VL-CCK | E121: Purchase | F121: 31829.07 | G121: TASEC | I121: EQT*190500530 | J121: TASEC | K121: 110.96 | L121: OMNIT | M121: MYR | P121: 13 | Q121: 13P150519TASECOMNIT | R121: 0
A122: 3069 | B122: MEGA FIRST CORP BHD | C122: 2019-05-15 | D122: PRSB | E122: Purchase | F122: 36072.95 | G122: TASEC | I122: EQT*190500528 | J122: TASEC | K122: 125.75 | L122: OMNIT | M122: MYR | P122: 13 | Q122: 13P150519TASECOMNIT | R122: 0
A123: 3069 | B123: MEGA FIRST CORP BHD | C123: 2019-05-15 | D123: YS | E123: Purchase | F123: 63658.12 | G123: TASEC | I123: EQT*190500535 | J123: TASEC | K123: 221.91 | L123: OMNIT | M123: MYR | P123: 13 | Q123: 13P150519TASECOMNIT | R123: 0
A124: 3069 | B124: MEGA FIRST CORP BHD | C124: 2019-05-15 | D124: YSIF | E124: Purchase | F124: 81340.94 | G124: TASEC | I124: EQT*190500536 | J124: TASEC | K124: 283.56 | L124: OMNIT | M124: MYR | P124: 13 | Q124: 13P150519TASECOMNIT | R124: 0
A125: 3069 | B125: MEGA FIRST CORP BHD | C125: 2019-05-15 | D125: TAYS2 | E125: Purchase | F125: 81340.94 | G125: TASEC | I125: EQT*190500529 | J125: TASEC | K125: 283.56 | L125: OMNIT | M125: MYR | P125: 13 | Q125: 13P150519TASECOMNIT | R125: 0
A126: 3069 | B126: MEGA FIRST CORP BHD | C126: 2019-05-15 | D126: VL-LKS | E126: Purchase | F126: 233413.16 | G126: TASEC | I126: EQT*190500532 | J126: TASEC | K126: 813.69 | L126: OMNIT | M126: MYR | P126: 13 | Q126: 13P150519TASECOMNIT | R126: 0
A127: 7106 | B127: SUPERMAX CORP BHD | C127: 2019-05-15 | D127: MF | E127: Sales | F127: 4805.72 | G127: TASEC | I127: EQT*190500500 | J127: TASEC | K127: 16.91 | L127: OMNIT | M127: MYR | P127: 14 | Q127: 14S150519TASECOMNIT | R127: 1
A128: 7106 | B128: SUPERMAX CORP BHD | C128: 2019-05-15 | D128: LFS | E128: Sales | F128: 6407.63 | G128: TASEC | I128: EQT*190500498 | J128: TASEC | K128: 22.54 | L128: OMNIT | M128: MYR | P128: 14 | Q128: 14S150519TASECOMNIT | R128: 0
A129: 7106 | B129: SUPERMAX CORP BHD | C129: 2019-05-15 | D129: SIA | E129: Sales | F129: 6407.63 | G129: TASEC | I129: EQT*190500502 | J129: TASEC | K129: 22.54 | L129: OMNIT | M129: MYR | P129: 14 | Q129: 14S150519TASECOMNIT | R129: 0
A130: 7106 | B130: SUPERMAX CORP BHD | C130: 2019-05-15 | D130: RTMOEY | E130: Sales | F130: 17620.98 | G130: TASEC | I130: EQT*190500501 | J130: TASEC | K130: 61.99 | L130: OMNIT | M130: MYR | P130: 14 | Q130: 14S150519TASECOMNIT | R130: 0
A131: SG1T60930966 | B131: FRASERS CENTREPOINT TRUST | C131: 2019-05-17 | D131: WFL3 | E131: Sales | F131: 28996.47 | G131: TASEC | I131: EQT*190500573 | J131: TASEC | K131: 14.4 | L131: OMNIT | M131: SGD | P131: 15 | Q131: =P131&LEFT(E131,1)&TEXT(C131,"ddmmyy")&J131&L131 -> 15S170519TASECOMNIT | R131: 1
A132: 5168 | B132: HARTALEGA HOLDINGS BHD | C132: 2019-05-21 | D132: VL-RAD | E132: Sales | F132: 1552.18 | G132: TASEC | I132: EQT*190500589 | J132: TASEC | K132: 5.46 | L132: OMNIT | M132: MYR | P132: =IF(A132=A131,P131,P131+1) -> 16 | Q132: 16S210519TASECOMNIT | R132: =IF(Q132=Q131,0,1) -> 1
A133: 5168 | B133: HARTALEGA HOLDINGS BHD | C133: 2019-05-21 | D133: VL-CCK | E133: Sales | F133: 13452.22 | G133: TASEC | I133: EQT*190500586 | J133: TASEC | K133: 47.32 | L133: OMNIT | M133: MYR | P133: 16 | Q133: 16S210519TASECOMNIT | R133: 0
A134: 5168 | B134: HARTALEGA HOLDINGS BHD | C134: 2019-05-21 | D134: VL-IMJ | E134: Sales | F134: 13969.62 | G134: TASEC | I134: EQT*190500587 | J134: TASEC | K134: 49.14 | L134: OMNIT | M134: MYR | P134: 16 | Q134: 16S210519TASECOMNIT | R134: 0
A135: 5168 | B135: HARTALEGA HOLDINGS BHD | C135: 2019-05-21 | D135: VL-LKS | E135: Sales | F135: 103996.07 | G135: TASEC | I135: EQT*190500588 | J135: TASEC | K135: 365.82 | L135: OMNIT | M135: MYR | P135: 16 | Q135: 16S210519TASECOMNIT | R135: 0
A136: 0079 | B136: ORION IXL BHD | C136: 2019-05-21 | D136: LWL | E136: Sales | F136: 23879.76 | G136: TASEC | I136: EQT*190500585 | J136: TASEC | K136: 84 | L136: OMNIT | M136: MYR | P136: 17 | Q136: 17S210519TASECOMNIT | R136: 1
A137: 0180 | B137: KIM TECK CHEONG BHD | C137: 2019-05-24 | D137: VL-YCM | E137: Purchase | F137: 205.02 | G137: TASEC | I137: EQT*190500684 | J137: TASEC | K137: 0.71 | L137: OMNIT | M137: MYR | P137: 18 | Q137: 18P240519TASECOMNIT | R137: 1
A138: 0180 | B138: KIM TECK CHEONG BHD | C138: 2019-05-24 | D138: VL-ANU | E138: Purchase | F138: 273.36 | G138: TASEC | I138: EQT*190500670 | J138: TASEC | K138: 0.95 | L138: OMNIT | M138: MYR | P138: 18 | Q138: 18P240519TASECOMNIT | R138: 0
A139: 0180 | B139: KIM TECK CHEONG BHD | C139: 2019-05-24 | D139: VL-LNH | E139: Purchase | F139: 273.36 | G139: TASEC | I139: EQT*190500675 | J139: TASEC | K139: 0.95 | L139: OMNIT | M139: MYR | P139: 18 | Q139: 18P240519TASECOMNIT | R139: 0
A140: 0180 | B140: KIM TECK CHEONG BHD | C140: 2019-05-24 | D140: VL-CSY | E140: Purchase | F140: 512.55 | G140: TASEC | I140: EQT*190500674 | J140: TASEC | K140: 1.78 | L140: OMNIT | M140: MYR | P140: 18 | Q140: 18P240519TASECOMNIT | R140: 0
A141: 0180 | B141: KIM TECK CHEONG BHD | C141: 2019-05-24 | D141: VL-WPI | E141: Purchase | F141: 563.81 | G141: TASEC | I141: EQT*190500683 | J141: TASEC | K141: 1.96 | L141: OMNIT | M141: MYR | P141: 18 | Q141: 18P240519TASECOMNIT | R141: 0
A142: 0180 | B142: KIM TECK CHEONG BHD | C142: 2019-05-24 | D142: VL-YHN | E142: Purchase | F142: 649.24 | G142: TASEC | I142: EQT*190500685 | J142: TASEC | K142: 2.26 | L142: OMNIT | M142: MYR | P142: 18 | Q142: 18P240519TASECOMNIT | R142: 0
A143: 0180 | B143: KIM TECK CHEONG BHD | C143: 2019-05-24 | D143: VL-NCM | E143: Purchase | F143: 700.5 | G143: TASEC | I143: EQT*190500679 | J143: TASEC | K143: 2.44 | L143: OMNIT | M143: MYR | P143: 18 | Q143: 18P240519TASECOMNIT | R143: 0
A144: 0180 | B144: KIM TECK CHEONG BHD | C144: 2019-05-24 | D144: VL-MAA | E144: Purchase | F144: 751.75 | G144: TASEC | I144: EQT*190500677 | J144: TASEC | K144: 2.62 | L144: OMNIT | M144: MYR | P144: 18 | Q144: 18P240519TASECOMNIT | R144: 0
A145: 0180 | B145: KIM TECK CHEONG BHD | C145: 2019-05-24 | D145: VL-WKM | E145: Purchase | F145: 803.01 | G145: TASEC | I145: EQT*190500682 | J145: TASEC | K145: 2.8 | L145: OMNIT | M145: MYR | P145: 18 | Q145: 18P240519TASECOMNIT | R145: 0
A146: 0180 | B146: KIM TECK CHEONG BHD | C146: 2019-05-24 | D146: VL-CSK | E146: Purchase | F146: 854.27 | G146: TASEC | I146: EQT*190500673 | J146: TASEC | K146: 2.97 | L146: OMNIT | M146: MYR | P146: 18 | Q146: 18P240519TASECOMNIT | R146: 0
A147: 0180 | B147: KIM TECK CHEONG BHD | C147: 2019-05-24 | D147: VL-CFK | E147: Purchase | F147: 888.44 | G147: TASEC | I147: EQT*190500671 | J147: TASEC | K147: 3.09 | L147: OMNIT | M147: MYR | P147: 18 | Q147: 18P240519TASECOMNIT | R147: 0
A148: 0180 | B148: KIM TECK CHEONG BHD | C148: 2019-05-24 | D148: VL-ZUL | E148: Purchase | F148: 1213.05 | G148: TASEC | I148: EQT*190500686 | J148: TASEC | K148: 4.22 | L148: OMNIT | M148: MYR | P148: 18 | Q148: 18P240519TASECOMNIT | R148: 0
A149: 0180 | B149: KIM TECK CHEONG BHD | C149: 2019-05-24 | D149: VL-NAN | E149: Purchase | F149: 1315.56 | G149: TASEC | I149: EQT*190500678 | J149: TASEC | K149: 4.58 | L149: OMNIT | M149: MYR | P149: 18 | Q149: 18P240519TASECOMNIT | R149: 0
A150: 0180 | B150: KIM TECK CHEONG BHD | C150: 2019-05-24 | D150: VL-CMC | E150: Purchase | F150: 1400.99 | G150: TASEC | I150: EQT*190500672 | J150: TASEC | K150: 4.88 | L150: OMNIT | M150: MYR | P150: 18 | Q150: 18P240519TASECOMNIT | R150: 0
A151: 0180 | B151: KIM TECK CHEONG BHD | C151: 2019-05-24 | D151: VL-TAAM | E151: Purchase | F151: 4442.18 | G151: TASEC | I151: EQT*190500681 | J151: TASEC | K151: 15.47 | L151: OMNIT | M151: MYR | P151: 18 | Q151: 18P240519TASECOMNIT | R151: 0
A152: 0180 | B152: KIM TECK CHEONG BHD | C152: 2019-05-24 | D152: DTKF | E152: Purchase | F152: 6492.42 | G152: TASEC | I152: EQT*190500669 | J152: TASEC | K152: 22.61 | L152: OMNIT | M152: MYR | P152: 18 | Q152: 18P240519TASECOMNIT | R152: 0
A153: 0180 | B153: KIM TECK CHEONG BHD | C153: 2019-05-24 | D153: VL-SIC | E153: Purchase | F153: 7688.38 | G153: TASEC | I153: EQT*190500680 | J153: TASEC | K153: 26.77 | L153: OMNIT | M153: MYR | P153: 18 | Q153: 18P240519TASECOMNIT | R153: 0
A154: 0180 | B154: KIM TECK CHEONG BHD | C154: 2019-05-24 | D154: VL-LWD | E154: Purchase | F154: 59798.52 | G154: TASEC | I154: EQT*190500676 | J154: TASEC | K154: 208.25 | L154: OMNIT | M154: MYR | P154: 18 | Q154: 18P240519TASECOMNIT | R154: 0
A155: 7164 | B155: KNM GROUP BHD | C155: 2019-05-24 | D155: AG-TJK1 | E155: Purchase | F155: 4640 | G155: PRIVATE PLACEMENT | I155: EQT*190500601 | J155: PRIVATE PLACEMENT | K155: 0 | L155: OMNIT | M155: MYR | P155: 19 | Q155: 19P240519PRIVATE PLACEMENTOMNIT | R155: 1
A156: 7164 | B156: KNM GROUP BHD | C156: 2019-05-24 | D156: AG-SKS | E156: Purchase | F156: 20640 | G156: PRIVATE PLACEMENT | I156: EQT*190500600 | J156: PRIVATE PLACEMENT | K156: 0 | L156: OMNIT | M156: MYR | P156: 19 | Q156: 19P240519PRIVATE PLACEMENTOMNIT | R156: 0
A157: 7164 | B157: KNM GROUP BHD | C157: 2019-05-24 | D157: LWL | E157: Purchase | F157: 22400 | G157: PRIVATE PLACEMENT | I157: EQT*190500602 | J157: PRIVATE PLACEMENT | K157: 0 | L157: OMNIT | M157: MYR | P157: 19 | Q157: 19P240519PRIVATE PLACEMENTOMNIT | R157: 0
A158: 7164 | B158: KNM GROUP BHD | C158: 2019-05-24 | D158: WFL2 | E158: Purchase | F158: 24320 | G158: PRIVATE PLACEMENT | I158: EQT*190500603 | J158: PRIVATE PLACEMENT | K158: 0 | L158: OMNIT | M158: MYR | P158: 19 | Q158: 19P240519PRIVATE PLACEMENTOMNIT | R158: 0
A159: 7164 | B159: KNM GROUP BHD | C159: 2019-05-24 | D159: VM-WAS | E159: Purchase | F159: 56000 | G159: PRIVATE PLACEMENT | I159: EQT*190500604 | J159: PRIVATE PLACEMENT | K159: 0 | L159: OMNIT | M159: MYR | P159: 19 | Q159: 19P240519PRIVATE PLACEMENTOMNIT | R159: 0
A160: 0007 | B160: PUC BHD | C160: 2019-05-24 | D160: PRSB | E160: Sales | F160: 10358.3 | G160: TASEC | I160: EQT*190500695 | J160: TASEC | K160: 36.4 | L160: OMNIT | M160: MYR | P160: 20 | Q160: 20S240519TASECOMNIT | R160: 1
A161: 0007 | B161: PUC BHD | C161: 2019-05-24 | D161: YS | E161: Sales | F161: 18326.22 | G161: TASEC | I161: EQT*190500698 | J161: TASEC | K161: 64.4 | L161: OMNIT | M161: MYR | P161: 20 | Q161: 20S240519TASECOMNIT | R161: 0
A162: 0007 | B162: PUC BHD | C162: 2019-05-24 | D162: TAYS2 | E162: Sales | F162: 23106.97 | G162: TASEC | I162: EQT*190500696 | J162: TASEC | K162: 81.2 | L162: OMNIT | M162: MYR | P162: 20 | Q162: 20S240519TASECOMNIT | R162: 0
A163: 0007 | B163: PUC BHD | C163: 2019-05-24 | D163: YSIF | E163: Sales | F163: 38246.02 | G163: TASEC | I163: EQT*190500699 | J163: TASEC | K163: 134.4 | L163: OMNIT | M163: MYR | P163: 20 | Q163: 20S240519TASECOMNIT | R163: 0
A164: 0007 | B164: PUC BHD | C164: 2019-05-24 | D164: VL-LKS | E164: Sales | F164: 77288.82 | G164: TASEC | I164: EQT*190500697 | J164: TASEC | K164: 271.6 | L164: OMNIT | M164: MYR | P164: 20 | Q164: 20S240519TASECOMNIT | R164: 0
A165: 5347 | B165: TENAGA NASIONAL BHD | C165: 2019-05-24 | D165: PRSB | E165: Purchase | F165: 3516.35 | G165: TASEC | I165: EQT*190500692 | J165: TASEC | K165: 12.25 | L165: OMNIT | M165: MYR | P165: 21 | Q165: 21P240519TASECOMNIT | R165: 1
A166: 5347 | B166: TENAGA NASIONAL BHD | C166: 2019-05-24 | D166: VL-IMJ | E166: Purchase | F166: 11721.15 | G166: TASEC | I166: EQT*190500694 | J166: TASEC | K166: 40.82 | L166: OMNIT | M166: MYR | P166: 21 | Q166: 21P240519TASECOMNIT | R166: 0
A167: 5347 | B167: TENAGA NASIONAL BHD | C167: 2019-05-24 | D167: TAYS2 | E167: Purchase | F167: 25786.53 | G167: TASEC | I167: EQT*190500693 | J167: TASEC | K167: 89.8 | L167: OMNIT | M167: MYR | P167: 21 | Q167: 21P240519TASECOMNIT | R167: 0
A168: SG2G52000004 | B168: FRASERS PROPERTY LTD | C168: 2019-05-27 | D168: WWK | E168: Sales | F168: 13558.37 | G168: TASEC | I168: EQT*190500720 | J168: TASEC | K168: 6.71 | L168: OMNIT | M168: SGD | P168: 22 | Q168: 22S270519TASECOMNIT | R168: 1
A169: SG2G52000004 | B169: FRASERS PROPERTY LTD | C169: 2019-05-27 | D169: CWK2 | E169: Sales | F169: 17897.04 | G169: TASEC | I169: EQT*190500717 | J169: TASEC | K169: 8.85 | L169: OMNIT | M169: SGD | P169: 22 | Q169: 22S270519TASECOMNIT | R169: 0
A170: SG2G52000004 | B170: FRASERS PROPERTY LTD | C170: 2019-05-27 | D170: CYT | E170: Sales | F170: 31997.74 | G170: TASEC | I170: EQT*190500718 | J170: TASEC | K170: 15.83 | L170: OMNIT | M170: SGD | P170: 22 | Q170: 22S270519TASECOMNIT | R170: 0
A171: SG2G52000004 | B171: FRASERS PROPERTY LTD | C171: 2019-05-27 | D171: WFL3 | E171: Sales | F171: 34167.09 | G171: TASEC | I171: EQT*190500719 | J171: TASEC | K171: 16.9 | L171: OMNIT | M171: SGD | P171: 22 | Q171: 22S270519TASECOMNIT | R171: 0
A172: 0151 | B172: KELINGTON GROUP BHD | C172: 2019-05-27 | D172: AG-SKS | E172: Sales | F172: 21036.1 | G172: KLCS | I172: EQT*190500721 | J172: KLCS | K172: 73.92 | L172: OMNIT | M172: MYR | P172: 23 | Q172: 23S270519KLCSOMNIT | R172: 1
A173: 0151 | B173: KELINGTON GROUP BHD | C173: 2019-05-27 | D173: WFL2 | E173: Sales | F173: 23510.94 | G173: KLCS | I173: EQT*190500723 | J173: KLCS | K173: 82.62 | L173: OMNIT | M173: MYR | P173: 23 | Q173: 23S270519KLCSOMNIT | R173: 0
A174: 0151 | B174: KELINGTON GROUP BHD | C174: 2019-05-27 | D174: VM-WAS | E174: Sales | F174: 56921.22 | G174: KLCS | I174: EQT*190500722 | J174: KLCS | K174: 200.03 | L174: OMNIT | M174: MYR | P174: 23 | Q174: 23S270519KLCSOMNIT | R174: 0
A175: GB0004082847 | B175: STANDARD CHARTERED PLC | C175: 2019-05-27 | D175: AG-TJK1 | E175: Sales | F175: 4657.22 | G175: TASEC | I175: EQT*190500715 | J175: TASEC | K175: 13.16 | L175: OMNIT | M175: HKD | P175: 24 | Q175: 24S270519TASECOMNIT | R175: 1
A176: GB0004082847 | B176: STANDARD CHARTERED PLC | C176: 2019-05-27 | D176: AG-SKS | E176: Sales | F176: 24002.61 | G176: TASEC | I176: EQT*190500714 | J176: TASEC | K176: 67.84 | L176: OMNIT | M176: HKD | P176: 24 | Q176: 24S270519TASECOMNIT | R176: 0
A177: GB0004082847 | B177: STANDARD CHARTERED PLC | C177: 2019-05-27 | D177: WFL2 | E177: Sales | F177: 25077.35 | G177: TASEC | I177: EQT*190500716 | J177: TASEC | K177: 70.88 | L177: OMNIT | M177: HKD | P177: 24 | Q177: 24S270519TASECOMNIT | R177: 0
A178: 8877 | B178: EKOVEST BHD | C178: 2019-05-28 | D178: AG-TJK1 | E178: Sales | F178: 4164 | G178: TASEC | I178: EQT*190500751 | J178: TASEC | K178: 14.63 | L178: OMNIT | M178: MYR | P178: 25 | Q178: 25S280519TASECOMNIT | R178: 1
A179: 8877 | B179: EKOVEST BHD | C179: 2019-05-28 | D179: AG-JOS | E179: Sales | F179: 4738.34 | G179: TASEC | I179: EQT*190500749 | J179: TASEC | K179: 16.65 | L179: OMNIT | M179: MYR | P179: 25 | Q179: 25S280519TASECOMNIT | R179: 0
A180: 8877 | B180: EKOVEST BHD | C180: 2019-05-28 | D180: AG-SKS | E180: Sales | F180: 17948.27 | G180: TASEC | I180: EQT*190500750 | J180: TASEC | K180: 63.07 | L180: OMNIT | M180: MYR | P180: 25 | Q180: 25S280519TASECOMNIT | R180: 0
A181: 8877 | B181: EKOVEST BHD | C181: 2019-05-28 | D181: WFL2 | E181: Sales | F181: 21250.74 | G181: TASEC | I181: EQT*190500752 | J181: TASEC | K181: 74.68 | L181: OMNIT | M181: MYR | P181: 25 | Q181: 25S280519TASECOMNIT | R181: 0
A182: 8877 | B182: EKOVEST BHD | C182: 2019-05-28 | D182: VM-WAS | E182: Sales | F182: 48819.28 | G182: TASEC | I182: EQT*190500757 | J182: TASEC | K182: 171.56 | L182: OMNIT | M182: MYR | P182: 25 | Q182: 25S280519TASECOMNIT | R182: 0
A183: 8877WB | B183: EKOVEST-WB | C183: 2019-05-28 | D183: AG-TJK1 | E183: Purchase | F183: 1154.65 | G183: TASEC | I183: EQT*190500765 | J183: TASEC | K183: 4.02 | L183: OMNIT | M183: MYR | P183: 26 | Q183: 26P280519TASECOMNIT | R183: 1
A184: 8877WB | B184: EKOVEST-WB | C184: 2019-05-28 | D184: AG-JOS | E184: Purchase | F184: 1313.92 | G184: TASEC | I184: EQT*190500763 | J184: TASEC | K184: 4.58 | L184: OMNIT | M184: MYR | P184: 26 | Q184: 26P280519TASECOMNIT | R184: 0
A185: 8877WB | B185: EKOVEST-WB | C185: 2019-05-28 | D185: AG-SKS | E185: Purchase | F185: 4976.99 | G185: TASEC | I185: EQT*190500764 | J185: TASEC | K185: 17.33 | L185: OMNIT | M185: MYR | P185: 26 | Q185: 26P280519TASECOMNIT | R185: 0
A186: 8877WB | B186: EKOVEST-WB | C186: 2019-05-28 | D186: WFL2 | E186: Purchase | F186: 5892.75 | G186: TASEC | I186: EQT*190500766 | J186: TASEC | K186: 20.52 | L186: OMNIT | M186: MYR | P186: 26 | Q186: 26P280519TASECOMNIT | R186: 0
A187: 8877WB | B187: EKOVEST-WB | C187: 2019-05-28 | D187: VM-WAS | E187: Purchase | F187: 13537.42 | G187: TASEC | I187: EQT*190500767 | J187: TASEC | K187: 47.16 | L187: OMNIT | M187: MYR | P187: 26 | Q187: 26P280519TASECOMNIT | R187: 0
A188: 1818 | B188: BURSA MALAYSIA BHD | C188: 2019-05-29 | D188: MF | E188: Purchase | F188: 11405.81 | G188: TASEC | I188: EQT*190500814 | J188: TASEC | K188: 39.72 | L188: OMNIT | M188: MYR | P188: 27 | Q188: 27P290519TASECOMNIT | R188: 1
A189: 1818 | B189: BURSA MALAYSIA BHD | C189: 2019-05-29 | D189: LFS | E189: Purchase | F189: 13807.03 | G189: TASEC | I189: EQT*190500812 | J189: TASEC | K189: 48.08 | L189: OMNIT | M189: MYR | P189: 27 | Q189: 27P290519TASECOMNIT | R189: 0
A190: 1818 | B190: BURSA MALAYSIA BHD | C190: 2019-05-29 | D190: SIA | E190: Purchase | F190: 13807.03 | G190: TASEC | I190: EQT*190500816 | J190: TASEC | K190: 48.08 | L190: OMNIT | M190: MYR | P190: 27 | Q190: 27P290519TASECOMNIT | R190: 0
A191: 1818 | B191: BURSA MALAYSIA BHD | C191: 2019-05-29 | D191: RTMOEY | E191: Purchase | F191: 23412 | G191: TASEC | I191: EQT*190500824 | J191: TASEC | K191: 81.58 | L191: OMNIT | M191: MYR | P191: 27 | Q191: 27P290519TASECOMNIT | R191: 0
A192: 1023 | B192: CIMB GROUP HOLDINGS BHD | C192: 2019-05-29 | D192: VL-CCK | E192: Purchase | F192: 19169.9 | G192: TASEC | I192: EQT*190500821 | J192: TASEC | K192: 66.76 | L192: OMNIT | M192: MYR | P192: 28 | Q192: 28P290519TASECOMNIT | R192: 1
A193: 1023 | B193: CIMB GROUP HOLDINGS BHD | C193: 2019-05-29 | D193: VL-IMJ | E193: Purchase | F193: 19688 | G193: TASEC | I193: EQT*190500822 | J193: TASEC | K193: 68.56 | L193: OMNIT | M193: MYR | P193: 28 | Q193: 28P290519TASECOMNIT | R193: 0
A194: 9261 | B194: GADANG HOLDINGS BHD | C194: 2019-05-30 | D194: VL-LNH | E194: Purchase | F194: 1540 | G194: PRIVATE PLACEMENT | I194: EQT*190500850 | J194: PRIVATE PLACEMENT | K194: 0 | L194: OMNIT | M194: MYR | P194: 29 | Q194: 29P300519PRIVATE PLACEMENTOMNIT | R194: 1
A195: 9261 | B195: GADANG HOLDINGS BHD | C195: 2019-05-30 | D195: VL-ANU | E195: Purchase | F195: 1771 | G195: PRIVATE PLACEMENT | I195: EQT*190500844 | J195: PRIVATE PLACEMENT | K195: 0 | L195: OMNIT | M195: MYR | P195: 29 | Q195: =P195&LEFT(E195,1)&TEXT(C195,"ddmmyy")&J195&L195 -> 29P300519PRIVATE PLACEMENTOMNIT | R195: 0
A196: 9261 | B196: GADANG HOLDINGS BHD | C196: 2019-05-30 | D196: VL-YCM | E196: Purchase | F196: 1848 | G196: PRIVATE PLACEMENT | I196: EQT*190500858 | J196: PRIVATE PLACEMENT | K196: 0 | L196: OMNIT | M196: MYR | P196: =IF(A196=A195,P195,P195+1) -> 29 | Q196: 29P300519PRIVATE PLACEMENTOMNIT | R196: =IF(Q196=Q195,0,1) -> 0
A197: 9261 | B197: GADANG HOLDINGS BHD | C197: 2019-05-30 | D197: VL-CSY | E197: Purchase | F197: 3157 | G197: PRIVATE PLACEMENT | I197: EQT*190500848 | J197: PRIVATE PLACEMENT | K197: 0 | L197: OMNIT | M197: MYR | P197: 29 | Q197: 29P300519PRIVATE PLACEMENTOMNIT | R197: 0
A198: 9261 | B198: GADANG HOLDINGS BHD | C198: 2019-05-30 | D198: VL-WPI | E198: Purchase | F198: 3542 | G198: PRIVATE PLACEMENT | I198: EQT*190500857 | J198: PRIVATE PLACEMENT | K198: 0 | L198: OMNIT | M198: MYR | P198: 29 | Q198: 29P300519PRIVATE PLACEMENTOMNIT | R198: 0
A199: 9261 | B199: GADANG HOLDINGS BHD | C199: 2019-05-30 | D199: VL-YHN | E199: Purchase | F199: 3773 | G199: PRIVATE PLACEMENT | I199: EQT*190500859 | J199: PRIVATE PLACEMENT | K199: 0 | L199: OMNIT | M199: MYR | P199: 29 | Q199: 29P300519PRIVATE PLACEMENTOMNIT | R199: 0
A200: 9261 | B200: GADANG HOLDINGS BHD | C200: 2019-05-30 | D200: VL-NCM | E200: Purchase | F200: 4081 | G200: PRIVATE PLACEMENT | I200: EQT*190500852 | J200: PRIVATE PLACEMENT | K200: 0 | L200: OMNIT | M200: MYR | P200: 29 | Q200: 29P300519PRIVATE PLACEMENTOMNIT | R200: 0
... 13 more rows

Sheet Data1 (hidden)
A1: Historydate | B1: FundName | C1: marketvalue | D1: UTFlag | E1: Fundgroup
A2: 2019-05-31 | B2: AG-CHAR | C2: 115.63 | D2: 0 | E2: OMNIT
A3: 2019-05-31 | B3: AG-CHM | C3: 128.24 | D3: 0 | E3: OMNIT
A4: 2019-05-31 | B4: AG-CHS | C4: 116.17 | D4: 0 | E4: OMNIT
A5: 2019-05-31 | B5: AG-CSM | C5: 102.97 | D5: 0 | E5: OMNIT
A6: 2019-05-31 | B6: AG-JOS | C6: 109462.76 | D6: 0 | E6: OMNIT
A7: 2019-05-31 | B7: AG-KJK | C7: 555158.34 | D7: 0 | E7: OMNIT
A8: 2019-05-31 | B8: AG-LHL | C8: 116.68 | D8: 0 | E8: OMNIT
A9: 2019-05-31 | B9: AG-NCH | C9: 7102.72 | D9: 0 | E9: OMNIT
A10: 2019-05-31 | B10: AG-NWS | C10: 1136.48 | D10: 0 | E10: OMNIT
A11: 2019-05-31 | B11: AG-RAZ | C11: 413.06 | D11: 0 | E11: OMNIT
A12: 2019-05-31 | B12: AG-RIHN | C12: 108.03 | D12: 0 | E12: OMNIT
A13: 2019-05-31 | B13: AG-SBL | C13: 111.89 | D13: 0 | E13: OMNIT
A14: 2019-05-31 | B14: AG-SBY | C14: 137.33 | D14: 0 | E14: OMNIT
A15: 2019-05-31 | B15: AG-SHT | C15: 165.78 | D15: 0 | E15: OMNIT
A16: 2019-05-31 | B16: AG-SKS | C16: 412685.6 | D16: 0 | E16: OMNIT
A17: 2019-05-31 | B17: AG-SLS | C17: 58777.81 | D17: 0 | E17: OMNIT
A18: 2019-05-31 | B18: AG-SMC | C18: 101991.65 | D18: 0 | E18: OMNIT
A19: 2019-05-31 | B19: AG-SSY | C19: 143.68 | D19: 0 | E19: OMNIT
A20: 2019-05-31 | B20: AG-TGN | C20: 116723.47 | D20: 0 | E20: OMNIT
A21: 2019-05-31 | B21: AG-THT | C21: 810177.22 | D21: 0 | E21: OMNIT
A22: 2019-05-31 | B22: AG-TJK1 | C22: 95132.98 | D22: 0 | E22: OMNIT
A23: 2019-05-31 | B23: AG-TKY | C23: 109.25 | D23: 0 | E23: OMNIT
A24: 2019-05-31 | B24: AG-TSF | C24: 105.71 | D24: 0 | E24: OMNIT
A25: 2019-05-31 | B25: AG-TSH | C25: 89.66 | D25: 0 | E25: OMNIT
A26: 2019-05-31 | B26: AG-YCM | C26: 58785.78 | D26: 0 | E26: OMNIT
A27: 2019-05-31 | B27: AG-YSP | C27: 229.34 | D27: 0 | E27: OMNIT
A28: 2019-05-31 | B28: AG-YTC | C28: 457432.8 | D28: 0 | E28: OMNIT
A29: 2019-05-31 | B29: AZI | C29: 1357.78 | D29: 0 | E29: OMNIT
A30: 2019-05-31 | B30: CALV | C30: 103.23 | D30: 0 | E30: OMNIT
A31: 2019-05-31 | B31: CLL | C31: 104.7 | D31: 0 | E31: OMNIT
A32: 2019-05-31 | B32: CWK2 | C32: 496072.4 | D32: 0 | E32: OMNIT
A33: 2019-05-31 | B33: CYT | C33: 615114.65 | D33: 0 | E33: OMNIT
A34: 2019-05-31 | B34: DTKF | C34: 1492173.72 | D34: 0 | E34: OMNIT
A35: 2019-05-31 | B35: DTTK | C35: 481825557 | D35: 0 | E35: OMNIT
A36: 2019-05-31 | B36: GBH | C36: 119.81 | D36: 0 | E36: OMNIT
A37: 2019-05-31 | B37: GPH | C37: 121.6 | D37: 0 | E37: OMNIT
A38: 2019-05-31 | B38: HYH | C38: 100.48 | D38: 0 | E38: OMNIT
A39: 2019-05-31 | B39: KHC | C39: 97.85 | D39: 0 | E39: OMNIT
A40: 2019-05-31 | B40: LAU | C40: 80.02 | D40: 0 | E40: OMNIT
A41: 2019-05-31 | B41: LFS | C41: 849357.85 | D41: 0 | E41: OMNIT
A42: 2019-05-31 | B42: LGY | C42: 83.78 | D42: 0 | E42: OMNIT
A43: 2019-05-31 | B43: LMH | C43: 368.22 | D43: 0 | E43: OMNIT
A44: 2019-05-31 | B44: LSK | C44: 97.85 | D44: 0 | E44: OMNIT
A45: 2019-05-31 | B45: LWC | C45: 55327.99 | D45: 0 | E45: OMNIT
A46: 2019-05-31 | B46: LWL | C46: 99881.25 | D46: 0 | E46: OMNIT
A47: 2019-05-31 | B47: MACEY1 | C47: 102646.01 | D47: 0 | E47: OMNIT
A48: 2019-05-31 | B48: MF | C48: 603360.75 | D48: 0 | E48: OMNIT
A49: 2019-05-31 | B49: PRSB | C49: 2418712.43 | D49: 0 | E49: OMNIT
A50: 2019-05-31 | B50: RB | C50: 0 | D50: 0 | E50: OMNIT
A51: 2019-05-31 | B51: RM-CAC | C51: 105.85 | D51: 0 | E51: OMNIT
A52: 2019-05-31 | B52: RM-CCH | C52: 122.19 | D52: 0 | E52: OMNIT
A53: 2019-05-31 | B53: RM-CFC | C53: 105.86 | D53: 0 | E53: OMNIT
A54: 2019-05-31 | B54: RM-CHOU | C54: 130.03 | D54: 0 | E54: OMNIT
A55: 2019-05-31 | B55: RM-CLY | C55: 690.5 | D55: 0 | E55: OMNIT
A56: 2019-05-31 | B56: RM-CMY | C56: 2669.53 | D56: 0 | E56: OMNIT
A57: 2019-05-31 | B57: RM-CNK | C57: 636.34 | D57: 0 | E57: OMNIT
A58: 2019-05-31 | B58: RM-CSM | C58: 105.86 | D58: 0 | E58: OMNIT
A59: 2019-05-31 | B59: RM-CSP | C59: 178.6 | D59: 0 | E59: OMNIT
A60: 2019-05-31 | B60: RM-CWC | C60: 110.66 | D60: 0 | E60: OMNIT
A61: 2019-05-31 | B61: RM-CWM | C61: 103.91 | D61: 0 | E61: OMNIT
A62: 2019-05-31 | B62: RM-CYL | C62: 695.27 | D62: 0 | E62: OMNIT
A63: 2019-05-31 | B63: RM-ESW | C63: 108.99 | D63: 0 | E63: OMNIT
A64: 2019-05-31 | B64: RM-FSB | C64: 244.21 | D64: 0 | E64: OMNIT
A65: 2019-05-31 | B65: RM-GUNA | C65: 258.42 | D65: 0 | E65: OMNIT
A66: 2019-05-31 | B66: RM-HKM | C66: 105.85 | D66: 0 | E66: OMNIT
A67: 2019-05-31 | B67: RM-HKT | C67: 106.14 | D67: 0 | E67: OMNIT
A68: 2019-05-31 | B68: RM-HOK | C68: 110.93 | D68: 0 | E68: OMNIT
A69: 2019-05-31 | B69: RM-IREN | C69: 106.13 | D69: 0 | E69: OMNIT
A70: 2019-05-31 | B70: RM-KSF | C70: 100.07 | D70: 0 | E70: OMNIT
A71: 2019-05-31 | B71: RM-KUMA | C71: 107.33 | D71: 0 | E71: OMNIT
A72: 2019-05-31 | B72: RM-LCM | C72: 112.38 | D72: 0 | E72: OMNIT
A73: 2019-05-31 | B73: RM-LHL | C73: 173.9 | D73: 0 | E73: OMNIT
A74: 2019-05-31 | B74: RM-LKH | C74: 103.33 | D74: 0 | E74: OMNIT
A75: 2019-05-31 | B75: RM-LKK | C75: 184.49 | D75: 0 | E75: OMNIT
A76: 2019-05-31 | B76: RM-LKS | C76: 108.02 | D76: 0 | E76: OMNIT
A77: 2019-05-31 | B77: RM-LKT | C77: 615.05 | D77: 0 | E77: OMNIT
A78: 2019-05-31 | B78: RM-LMK | C78: 108.03 | D78: 0 | E78: OMNIT
A79: 2019-05-31 | B79: RM-LPC | C79: 198.62 | D79: 0 | E79: OMNIT
A80: 2019-05-31 | B80: RM-LPT | C80: 124.9 | D80: 0 | E80: OMNIT
A81: 2019-05-31 | B81: RM-LSC | C81: 108.02 | D81: 0 | E81: OMNIT
A82: 2019-05-31 | B82: RM-LSK | C82: 105.85 | D82: 0 | E82: OMNIT
A83: 2019-05-31 | B83: RM-LYH | C83: 117.49 | D83: 0 | E83: OMNIT
A84: 2019-05-31 | B84: RM-LYL | C84: 7201.89 | D84: 0 | E84: OMNIT
A85: 2019-05-31 | B85: RM-NLH | C85: 111.55 | D85: 0 | E85: OMNIT
A86: 2019-05-31 | B86: RM-NLT | C86: 284.06 | D86: 0 | E86: OMNIT
A87: 2019-05-31 | B87: RM-NSL | C87: 246.59 | D87: 0 | E87: OMNIT
A88: 2019-05-31 | B88: RM-NZAM | C88: 172.55 | D88: 0 | E88: OMNIT
A89: 2019-05-31 | B89: RM-OKK | C89: 218.33 | D89: 0 | E89: OMNIT
A90: 2019-05-31 | B90: RM-OLH | C90: 107.09 | D90: 0 | E90: OMNIT
A91: 2019-05-31 | B91: RM-PKK | C91: 140.53 | D91: 0 | E91: OMNIT
A92: 2019-05-31 | B92: RM-PNB | C92: 107.09 | D92: 0 | E92: OMNIT
A93: 2019-05-31 | B93: RM-ROSLY | C93: 117.1 | D93: 0 | E93: OMNIT
A94: 2019-05-31 | B94: RM-SBC | C94: 61.71 | D94: 0 | E94: OMNIT
A95: 2019-05-31 | B95: RM-SMK | C95: 97431.19 | D95: 0 | E95: OMNIT
A96: 2019-05-31 | B96: RM-TCN | C96: 110.59 | D96: 0 | E96: OMNIT
A97: 2019-05-31 | B97: RM-TKF | C97: 5639.05 | D97: 0 | E97: OMNIT
A98: 2019-05-31 | B98: RM-TKS | C98: 113.12 | D98: 0 | E98: OMNIT
A99: 2019-05-31 | B99: RM-TMY | C99: 76023.22 | D99: 0 | E99: OMNIT
A100: 2019-05-31 | B100: RM-TPY | C100: 72891.76 | D100: 0 | E100: OMNIT
A101: 2019-05-31 | B101: RM-TSB | C101: 2882.3 | D101: 0 | E101: OMNIT
A102: 2019-05-31 | B102: RM-WKC | C102: 190.26 | D102: 0 | E102: OMNIT
A103: 2019-05-31 | B103: RM-WLH | C103: 107.09 | D103: 0 | E103: OMNIT
A104: 2019-05-31 | B104: RM-WNP | C104: 115.16 | D104: 0 | E104: OMNIT
A105: 2019-05-31 | B105: RM-YCC | C105: 107.11 | D105: 0 | E105: OMNIT
A106: 2019-05-31 | B106: RM-YCL | C106: 134.21 | D106: 0 | E106: OMNIT
A107: 2019-05-31 | B107: RM-YKT | C107: 107.14 | D107: 0 | E107: OMNIT
A108: 2019-05-31 | B108: RM-YLF | C108: 240.27 | D108: 0 | E108: OMNIT
A109: 2019-05-31 | B109: RM-YLY | C109: 143.43 | D109: 0 | E109: OMNIT
A110: 2019-05-31 | B110: RM-YPK | C110: 108.99 | D110: 0 | E110: OMNIT
A111: 2019-05-31 | B111: RM-YSL | C111: 327.84 | D111: 0 | E111: OMNIT
A112: 2019-05-31 | B112: RTMOEY | C112: 1719973.31 | D112: 0 | E112: OMNIT
A113: 2019-05-31 | B113: SFY | C113: -56.91 | D113: 0 | E113: OMNIT
A114: 2019-05-31 | B114: SIA | C114: 811089.88 | D114: 0 | E114: OMNIT
A115: 2019-05-31 | B115: SIA2 | C115: 260362.66 | D115: 0 | E115: OMNIT
A116: 2019-05-31 | B116: TAC-RBH | C116: 117.14 | D116: 0 | E116: OMNIT
A117: 2019-05-31 | B117: TAYS2 | C117: 5357327.14 | D117: 0 | E117: OMNIT
A118: 2019-05-31 | B118: TC-CBG | C118: 61666 | D118: 0 | E118: OMNIT
A119: 2019-05-31 | B119: TC-CKY | C119: 4836.48 | D119: 0 | E119: OMNIT
A120: 2019-05-31 | B120: TC-HWY | C120: 460501.69 | D120: 0 | E120: OMNIT
A121: 2019-05-31 | B121: TC-LBK | C121: 732.22 | D121: 0 | E121: OMNIT
A122: 2019-05-31 | B122: TC-LHG | C122: 126.13 | D122: 0 | E122: OMNIT
A123: 2019-05-31 | B123: TC-MARI | C123: 71556.23 | D123: 0 | E123: OMNIT
A124: 2019-05-31 | B124: TC-OKK | C124: 123.07 | D124: 0 | E124: OMNIT
A125: 2019-05-31 | B125: TCK | C125: 92.96 | D125: 0 | E125: OMNIT
A126: 2019-05-31 | B126: ULIN | C126: 18414.74 | D126: 0 | E126: OMNIT
A127: 2019-05-31 | B127: VL-ANU | C127: 118389.09 | D127: 0 | E127: OMNIT
A128: 2019-05-31 | B128: VL-CCK | C128: 2063965.89 | D128: 0 | E128: OMNIT
A129: 2019-05-31 | B129: VL-CFK | C129: 337583.46 | D129: 0 | E129: OMNIT
A130: 2019-05-31 | B130: VL-CMC | C130: 516697.25 | D130: 0 | E130: OMNIT
A131: 2019-05-31 | B131: VL-CSK | C131: 332553.87 | D131: 0 | E131: OMNIT
A132: 2019-05-31 | B132: VL-CSY | C132: 211623.08 | D132: 0 | E132: OMNIT
A133: 2019-05-31 | B133: VL-IMJ | C133: 2123521 | D133: 0 | E133: OMNIT
A134: 2019-05-31 | B134: VL-LKS | C134: 15288471.03 | D134: 0 | E134: OMNIT
A135: 2019-05-31 | B135: VL-LNH | C135: 99165.42 | D135: 0 | E135: OMNIT
A136: 2019-05-31 | B136: VL-LPS | C136: 3571.57 | D136: 0 | E136: OMNIT
A137: 2019-05-31 | B137: VL-LWD | C137: 1192103.86 | D137: 0 | E137: OMNIT
A138: 2019-05-31 | B138: VL-MAA | C138: 266999.27 | D138: 0 | E138: OMNIT
A139: 2019-05-31 | B139: VL-MAK | C139: 117475.69 | D139: 0 | E139: OMNIT
A140: 2019-05-31 | B140: VL-MSG | C140: 1688651.46 | D140: 0 | E140: OMNIT
A141: 2019-05-31 | B141: VL-NAN | C141: 499664.85 | D141: 0 | E141: OMNIT
A142: 2019-05-31 | B142: VL-NCM | C142: 272621.78 | D142: 0 | E142: OMNIT
A143: 2019-05-31 | B143: VL-RAD | C143: 302649.68 | D143: 0 | E143: OMNIT
A144: 2019-05-31 | B144: VL-SIC | C144: 2568687.09 | D144: 0 | E144: OMNIT
A145: 2019-05-31 | B145: VL-TAAM | C145: 1051146.61 | D145: 0 | E145: OMNIT
A146: 2019-05-31 | B146: VL-WFR | C146: 552079.11 | D146: 0 | E146: OMNIT
A147: 2019-05-31 | B147: VL-WKM | C147: 307386.67 | D147: 0 | E147: OMNIT
A148: 2019-05-31 | B148: VL-WPI | C148: 236968.91 | D148: 0 | E148: OMNIT
A149: 2019-05-31 | B149: VL-YCM | C149: 89721.29 | D149: 0 | E149: OMNIT
A150: 2019-05-31 | B150: VL-YHN | C150: 256837.82 | D150: 0 | E150: OMNIT
A151: 2019-05-31 | B151: VL-ZUL | C151: 474706.56 | D151: 0 | E151: OMNIT
A152: 2019-05-31 | B152: VM-WAS | C152: 1119075.85 | D152: 0 | E152: OMNIT
A153: 2019-05-31 | B153: WFL2 | C153: 483852.55 | D153: 0 | E153: OMNIT
A154: 2019-05-31 | B154: WFL3 | C154: 670831.98 | D154: 0 | E154: OMNIT
A155: 2019-05-31 | B155: WJM | C155: 133.56 | D155: 0 | E155: OMNIT
A156: 2019-05-31 | B156: WWK | C156: 252548.12 | D156: 0 | E156: OMNIT
A157: 2019-05-31 | B157: YS | C157: 4176108.99 | D157: 0 | E157: OMNIT
A158: 2019-05-31 | B158: YSIF | C158: 8539981.43 | D158: 0 | E158: OMNIT
A159: 2019-05-31 | B159: YST | C159: 144.21 | D159: 0 | E159: OMNIT

Sheet SData (hidden)
A1: qStockCode | B1: StockDesc | C1: TradeDate | D1: qFundCode | E1: Trans | F1: Amount | G1: qCPCode | H1: Remarks | I1: qEventTrxID | J1: UniqCode | K1: BrokerageFee | L1: qFundGrpCode | M1: SettCurrency
A2: 0186 | B2: PERAK TRANSIT BHD | C2: 2019-01-02 | D2: VL-RAD | E2: Purchase | F2: 2583.18 | G2: TASEC | I2: EQT*190100012 | J2: TASEC | K2: 9.01 | L2: OMNIT | M2: MYR | P2: 1 | Q2: =P2&LEFT(E2,1)&TEXT(C2,"ddmmyy")&J2&L2 -> 1P020119TASECOMNIT | R2: 1 | S2: =ROUND(F2*TPerc/100,2) -> 2.58 | T2: =MIN(TOmni,SUMIFS(S:S,Q:Q,Q2)*R2) -> 129.16 | U2: =MONTH(C2) -> 1
A3: 0186 | B3: PERAK TRANSIT BHD | C3: 2019-01-02 | D3: VL-IMJ | E3: Purchase | F3: 4180.04 | G3: TASEC | I3: EQT*190100010 | J3: TASEC | K3: 14.57 | L3: OMNIT | M3: MYR | P3: =IF(A3=A2,P2,P2+1) -> 1 | Q3: =P3&LEFT(E3,1)&TEXT(C3,"ddmmyy")&J3&L3 -> 1P020119TASECOMNIT | R3: =IF(Q3=Q2,0,1) -> 0 | S3: 4.18 | T3: 0 | U3: =MONTH(C3) -> 1
A4: 0186 | B4: PERAK TRANSIT BHD | C4: 2019-01-02 | D4: VL-LKS | E4: Purchase | F4: 122395.47 | G4: TASEC | I4: EQT*190100011 | J4: TASEC | K4: 426.76 | L4: OMNIT | M4: MYR | P4: =IF(A4=A3,P3,P3+1) -> 1 | Q4: 1P020119TASECOMNIT | R4: =IF(Q4=Q3,0,1) -> 0 | S4: 122.4 | T4: 0 | U4: 1
A5: 7113 | B5: TOP GLOVE CORP BHD | C5: 2019-01-03 | D5: MF | E5: Sales | F5: 8964.63 | G5: TASEC | I5: EQT*190100029 | J5: TASEC | K5: 31.53 | L5: OMNIT | M5: MYR | P5: 2 | Q5: 2S030119TASECOMNIT | R5: 1 | S5: 8.96 | T5: 62.76 | U5: 1
A6: 7113 | B6: TOP GLOVE CORP BHD | C6: 2019-01-03 | D6: SIA | E6: Sales | F6: 11205.78 | G6: TASEC | I6: EQT*190100031 | J6: TASEC | K6: 39.41 | L6: OMNIT | M6: MYR | P6: 2 | Q6: 2S030119TASECOMNIT | R6: 0 | S6: 11.21 | T6: 0 | U6: 1
A7: 7113 | B7: TOP GLOVE CORP BHD | C7: 2019-01-03 | D7: LFS | E7: Sales | F7: 11205.78 | G7: TASEC | I7: EQT*190100027 | J7: TASEC | K7: 39.41 | L7: OMNIT | M7: MYR | P7: 2 | Q7: 2S030119TASECOMNIT | R7: 0 | S7: 11.21 | T7: 0 | U7: 1
A8: 7113 | B8: TOP GLOVE CORP BHD | C8: 2019-01-03 | D8: RTMOEY | E8: Sales | F8: 31376.19 | G8: TASEC | I8: EQT*190100030 | J8: TASEC | K8: 110.35 | L8: OMNIT | M8: MYR | P8: 2 | Q8: 2S030119TASECOMNIT | R8: 0 | S8: 31.38 | T8: 0 | U8: 1
A9: SG1M77906915 | B9: ASCENDAS REAL ESTATE INV TRT | C9: 2019-01-04 | D9: SFY | E9: Sales | F9: 15699.31 | G9: TASEC | I9: EQT*190100040 | J9: TASEC | K9: 13.21 | L9: OMNIT | M9: SGD | P9: 3 | Q9: 3S040119TASECOMNIT | R9: 1 | S9: 15.7 | T9: 15.7 | U9: 1
A10: 7579 | B10: AWC BERHAD | C10: 2019-01-04 | D10: VL-YCM | E10: Purchase | F10: 1008.52 | G10: PIBB | I10: EQT*190100156 | J10: PIBB | K10: 3.52 | L10: OMNIT | M10: MYR | P10: 4 | Q10: 4P040119PIBBOMNIT | R10: 1 | S10: 1.01 | T10: 142.4 | U10: 1
A11: 7579 | B11: AWC BERHAD | C11: 2019-01-04 | D11: VL-LNH | E11: Purchase | F11: 1075.75 | G11: PIBB | I11: EQT*190100146 | J11: PIBB | K11: 3.75 | L11: OMNIT | M11: MYR | P11: 4 | Q11: 4P040119PIBBOMNIT | R11: 0 | S11: 1.08 | T11: 0 | U11: 1
A12: 7579 | B12: AWC BERHAD | C12: 2019-01-04 | D12: VL-ANU | E12: Purchase | F12: 1277.47 | G12: PIBB | I12: EQT*190100141 | J12: PIBB | K12: 4.46 | L12: OMNIT | M12: MYR | P12: 4 | Q12: 4P040119PIBBOMNIT | R12: 0 | S12: 1.28 | T12: 0 | U12: 1
A13: 7579 | B13: AWC BERHAD | C13: 2019-01-04 | D13: VL-CSY | E13: Purchase | F13: 2353.21 | G13: PIBB | I13: EQT*190100145 | J13: PIBB | K13: 8.21 | L13: OMNIT | M13: MYR | P13: 4 | Q13: 4P040119PIBBOMNIT | R13: 0 | S13: 2.35 | T13: 0 | U13: 1
A14: 7579 | B14: AWC BERHAD | C14: 2019-01-04 | D14: VL-WPI | E14: Purchase | F14: 2622.14 | G14: PIBB | I14: EQT*190100155 | J14: PIBB | K14: 9.14 | L14: OMNIT | M14: MYR | P14: 4 | Q14: 4P040119PIBBOMNIT | R14: 0 | S14: 2.62 | T14: 0 | U14: 1
A15: 7579 | B15: AWC BERHAD | C15: 2019-01-04 | D15: VL-MAA | E15: Purchase | F15: 2756.61 | G15: PIBB | I15: EQT*190100147 | J15: PIBB | K15: 9.61 | L15: OMNIT | M15: MYR | P15: 4 | Q15: 4P040119PIBBOMNIT | R15: 0 | S15: 2.76 | T15: 0 | U15: 1
A16: 7579 | B16: AWC BERHAD | C16: 2019-01-04 | D16: VL-YHN | E16: Purchase | F16: 2823.85 | G16: PIBB | I16: EQT*190100157 | J16: PIBB | K16: 9.85 | L16: OMNIT | M16: MYR | P16: 4 | Q16: 4P040119PIBBOMNIT | R16: 0 | S16: 2.82 | T16: 0 | U16: 1
A17: 7579 | B17: AWC BERHAD | C17: 2019-01-04 | D17: VL-NCM | E17: Purchase | F17: 3025.55 | G17: PIBB | I17: EQT*190100150 | J17: PIBB | K17: 10.55 | L17: OMNIT | M17: MYR | P17: 4 | Q17: 4P040119PIBBOMNIT | R17: 0 | S17: 3.03 | T17: 0 | U17: 1
A18: 7579 | B18: AWC BERHAD | C18: 2019-01-04 | D18: VL-WKM | E18: Purchase | F18: 3294.49 | G18: PIBB | I18: EQT*190100154 | J18: PIBB | K18: 11.49 | L18: OMNIT | M18: MYR | P18: 4 | Q18: 4P040119PIBBOMNIT | R18: 0 | S18: 3.29 | T18: 0 | U18: 1
A19: 7579 | B19: AWC BERHAD | C19: 2019-01-04 | D19: VL-CFK | E19: Purchase | F19: 3765.14 | G19: PIBB | I19: EQT*190100142 | J19: PIBB | K19: 13.13 | L19: OMNIT | M19: MYR | P19: 4 | Q19: 4P040119PIBBOMNIT | R19: 0 | S19: 3.77 | T19: 0 | U19: 1
A20: 7579 | B20: AWC BERHAD | C20: 2019-01-04 | D20: VL-CSK | E20: Purchase | F20: 3832.37 | G20: PIBB | I20: EQT*190100144 | J20: PIBB | K20: 13.36 | L20: OMNIT | M20: MYR | P20: 4 | Q20: 4P040119PIBBOMNIT | R20: 0 | S20: 3.83 | T20: 0 | U20: 1
A21: 7579 | B21: AWC BERHAD | C21: 2019-01-04 | D21: VL-ZUL | E21: Purchase | F21: 5244.3 | G21: PIBB | I21: EQT*190100158 | J21: PIBB | K21: 18.29 | L21: OMNIT | M21: MYR | P21: 4 | Q21: 4P040119PIBBOMNIT | R21: 0 | S21: 5.24 | T21: 0 | U21: 1
A22: 7579 | B22: AWC BERHAD | C22: 2019-01-04 | D22: VL-NAN | E22: Purchase | F22: 5647.7 | G22: PIBB | I22: EQT*190100149 | J22: PIBB | K22: 19.69 | L22: OMNIT | M22: MYR | P22: 4 | Q22: 4P040119PIBBOMNIT | R22: 0 | S22: 5.65 | T22: 0 | U22: 1
A23: 7579 | B23: AWC BERHAD | C23: 2019-01-04 | D23: VL-CMC | E23: Purchase | F23: 5714.94 | G23: PIBB | I23: EQT*190100143 | J23: PIBB | K23: 19.93 | L23: OMNIT | M23: MYR | P23: 4 | Q23: 4P040119PIBBOMNIT | R23: 0 | S23: 5.71 | T23: 0 | U23: 1
A24: 7579 | B24: AWC BERHAD | C24: 2019-01-04 | D24: VL-WFR | E24: Purchase | F24: 6320.05 | G24: PIBB | I24: EQT*190100153 | J24: PIBB | K24: 22.04 | L24: OMNIT | M24: MYR | P24: 4 | Q24: 4P040119PIBBOMNIT | R24: 0 | S24: 6.32 | T24: 0 | U24: 1
A25: 7579 | B25: AWC BERHAD | C25: 2019-01-04 | D25: VL-TAAM | E25: Purchase | F25: 11631.58 | G25: PIBB | I25: EQT*190100152 | J25: PIBB | K25: 40.56 | L25: OMNIT | M25: MYR | P25: 4 | Q25: 4P040119PIBBOMNIT | R25: 0 | S25: 11.63 | T25: 0 | U25: 1
A26: 7579 | B26: AWC BERHAD | C26: 2019-01-04 | D26: DTKF | E26: Purchase | F26: 16606.92 | G26: PIBB | I26: EQT*190100138 | J26: PIBB | K26: 57.9 | L26: OMNIT | M26: MYR | P26: 4 | Q26: 4P040119PIBBOMNIT | R26: 0 | S26: 16.61 | T26: 0 | U26: 1
A27: 7579 | B27: AWC BERHAD | C27: 2019-01-04 | D27: VL-MSG | E27: Purchase | F27: 23733.78 | G27: PIBB | I27: EQT*190100148 | J27: PIBB | K27: 82.75 | L27: OMNIT | M27: MYR | P27: 4 | Q27: 4P040119PIBBOMNIT | R27: 0 | S27: 23.73 | T27: 0 | U27: 1
A28: 7579 | B28: AWC BERHAD | C28: 2019-01-04 | D28: VL-SIC | E28: Purchase | F28: 39668.37 | G28: PIBB | I28: EQT*190100151 | J28: PIBB | K28: 138.31 | L28: OMNIT | M28: MYR | P28: 4 | Q28: 4P040119PIBBOMNIT | R28: 0 | S28: 39.67 | T28: 0 | U28: 1
A29: 7579 | B29: AWC BERHAD | C29: 2019-01-04 | D29: VL-RAD | E29: Purchase | F29: 2891.94 | G29: TASEC | I29: EQT*190100111 | J29: TASEC | K29: 10.08 | L29: OMNIT | M29: MYR | P29: 4 | Q29: 4P040119TASECOMNIT | R29: 1 | S29: 2.89 | T29: 122.34 | U29: 1
A30: 7579 | B30: AWC BERHAD | C30: 2019-01-04 | D30: VL-IMJ | E30: Purchase | F30: 10088.2 | G30: TASEC | I30: EQT*190100110 | J30: TASEC | K30: 35.18 | L30: OMNIT | M30: MYR | P30: 4 | Q30: 4P040119TASECOMNIT | R30: 0 | S30: 10.09 | T30: 0 | U30: 1
A31: 7579 | B31: AWC BERHAD | C31: 2019-01-04 | D31: PRSB | E31: Purchase | F31: 22126.76 | G31: TASEC | I31: EQT*190100108 | J31: TASEC | K31: 77.15 | L31: OMNIT | M31: MYR | P31: 4 | Q31: 4P040119TASECOMNIT | R31: 0 | S31: 22.13 | T31: 0 | U31: 1
A32: 7579 | B32: AWC BERHAD | C32: 2019-01-04 | D32: YS | E32: Purchase | F32: 38200.62 | G32: TASEC | I32: EQT*190100112 | J32: TASEC | K32: 133.2 | L32: OMNIT | M32: MYR | P32: 4 | Q32: 4P040119TASECOMNIT | R32: 0 | S32: 38.2 | T32: 0 | U32: 1
A33: 7579 | B33: AWC BERHAD | C33: 2019-01-04 | D33: TAYS2 | E33: Purchase | F33: 49028.6 | G33: TASEC | I33: EQT*190100109 | J33: TASEC | K33: 170.95 | L33: OMNIT | M33: MYR | P33: 4 | Q33: 4P040119TASECOMNIT | R33: 0 | S33: 49.03 | T33: 0 | U33: 1
A34: 0098 | B34: BAHVEST RESORCES BHD | C34: 2019-01-04 | D34: SFY | E34: Sales | F34: 13209.61 | G34: KLCS | I34: EQT*190100049 | J34: KLCS | K34: 46.41 | L34: OMNIT | M34: MYR | P34: 5 | Q34: 5S040119KLCSOMNIT | R34: 1 | S34: 13.21 | T34: 13.21 | U34: 1
A35: 0128 | B35: FRONTKEN CORP BHD | C35: 2019-01-04 | D35: VL-RAD | E35: Purchase | F35: 3713.06 | G35: TASEC | I35: EQT*190100107 | J35: TASEC | K35: 12.95 | L35: OMNIT | M35: MYR | P35: 6 | Q35: 6P040119TASECOMNIT | R35: 1 | S35: 3.71 | T35: 16.64 | U35: 1
A36: 0128 | B36: FRONTKEN CORP BHD | C36: 2019-01-04 | D36: VL-IMJ | E36: Purchase | F36: 12926.93 | G36: TASEC | I36: EQT*190100106 | J36: TASEC | K36: 45.07 | L36: OMNIT | M36: MYR | P36: 6 | Q36: 6P040119TASECOMNIT | R36: 0 | S36: 12.93 | T36: 0 | U36: 1
A37: 0185 | B37: HSS ENGINEERS BHD | C37: 2019-01-04 | D37: SFY | E37: Sales | F37: 9877.92 | G37: KLCS | I37: EQT*190100051 | J37: KLCS | K37: 40 | L37: OMNIT | M37: MYR | P37: 7 | Q37: 7S040119KLCSOMNIT | R37: 1 | S37: 9.88 | T37: 9.88 | U37: 1
A38: 0151 | B38: KELINGTON GROUP BHD | C38: 2019-01-04 | D38: VL-SIC | E38: Purchase | F38: 24147.98 | G38: HLIBB | I38: EQT*190100043 | J38: HLIBB | K38: 40 | L38: OMNIT | M38: MYR | P38: 8 | Q38: 8P040119HLIBBOMNIT | R38: 1 | S38: 24.15 | T38: 24.15 | U38: 1
A39: 0151 | B39: KELINGTON GROUP BHD | C39: 2019-01-04 | D39: VL-RAD | E39: Purchase | F39: 1546.82 | G39: TASEC | I39: EQT*190100135 | J39: TASEC | K39: 5.39 | L39: OMNIT | M39: MYR | P39: 8 | Q39: 8P040119TASECOMNIT | R39: 1 | S39: 1.55 | T39: 16.5 | U39: 1
A40: 0151 | B40: KELINGTON GROUP BHD | C40: 2019-01-04 | D40: VL-IMJ | E40: Purchase | F40: 14952.58 | G40: TASEC | I40: EQT*190100134 | J40: TASEC | K40: 52.08 | L40: OMNIT | M40: MYR | P40: 8 | Q40: 8P040119TASECOMNIT | R40: 0 | S40: 14.95 | T40: 0 | U40: 1
A41: 0151 | B41: KELINGTON GROUP BHD | C41: 2019-01-04 | D41: SFY | E41: Sales | F41: 18040.11 | G41: KLCS | I41: EQT*190100050 | J41: KLCS | K41: 63.45 | L41: OMNIT | M41: MYR | P41: 8 | Q41: 8S040119KLCSOMNIT | R41: 1 | S41: 18.04 | T41: 18.04 | U41: 1
A42: 0186 | B42: PERAK TRANSIT BHD | C42: 2019-01-04 | D42: SFY | E42: Sales | F42: 10756.76 | G42: KLCS | I42: EQT*190100052 | J42: KLCS | K42: 40 | L42: OMNIT | M42: MYR | P42: 9 | Q42: 9S040119KLCSOMNIT | R42: 1 | S42: 10.76 | T42: 10.76 | U42: 1
A43: 0196 | B43: QES GROUP BHD | C43: 2019-01-04 | D43: SFY | E43: Sales | F43: 12329.91 | G43: KLCS | I43: EQT*190100053 | J43: KLCS | K43: 43.37 | L43: OMNIT | M43: MYR | P43: 10 | Q43: 10S040119KLCSOMNIT | R43: 1 | S43: 12.33 | T43: 12.33 | U43: 1
A44: 7073 | B44: SEACERA GROUP BHD | C44: 2019-01-04 | D44: VL-YCM | E44: Sales | F44: 388.51 | G44: KLCS | I44: EQT*190100130 | J44: KLCS | K44: 1.37 | L44: OMNIT | M44: MYR | P44: 11 | Q44: 11S040119KLCSOMNIT | R44: 1 | S44: 0.39 | T44: 36.22 | U44: 1
A45: 7073 | B45: SEACERA GROUP BHD | C45: 2019-01-04 | D45: VL-LNH | E45: Sales | F45: 485.64 | G45: KLCS | I45: EQT*190100122 | J45: KLCS | K45: 1.71 | L45: OMNIT | M45: MYR | P45: 11 | Q45: 11S040119KLCSOMNIT | R45: 0 | S45: 0.49 | T45: 0 | U45: 1
A46: 7073 | B46: SEACERA GROUP BHD | C46: 2019-01-04 | D46: VL-ANU | E46: Sales | F46: 582.77 | G46: KLCS | I46: EQT*190100117 | J46: KLCS | K46: 2.05 | L46: OMNIT | M46: MYR | P46: 11 | Q46: 11S040119KLCSOMNIT | R46: 0 | S46: 0.58 | T46: 0 | U46: 1
A47: 7073 | B47: SEACERA GROUP BHD | C47: 2019-01-04 | D47: VL-CSY | E47: Sales | F47: 874.17 | G47: KLCS | I47: EQT*190100121 | J47: KLCS | K47: 3.07 | L47: OMNIT | M47: MYR | P47: 11 | Q47: 11S040119KLCSOMNIT | R47: 0 | S47: 0.87 | T47: 0 | U47: 1
A48: 7073 | B48: SEACERA GROUP BHD | C48: 2019-01-04 | D48: VL-WPI | E48: Sales | F48: 971.3 | G48: KLCS | I48: EQT*190100129 | J48: KLCS | K48: 3.41 | L48: OMNIT | M48: MYR | P48: 11 | Q48: 11S040119KLCSOMNIT | R48: 0 | S48: 0.97 | T48: 0 | U48: 1
A49: 7073 | B49: SEACERA GROUP BHD | C49: 2019-01-04 | D49: VL-YHN | E49: Sales | F49: 1068.43 | G49: KLCS | I49: EQT*190100131 | J49: KLCS | K49: 3.75 | L49: OMNIT | M49: MYR | P49: 11 | Q49: 11S040119KLCSOMNIT | R49: 0 | S49: 1.07 | T49: 0 | U49: 1
A50: 7073 | B50: SEACERA GROUP BHD | C50: 2019-01-04 | D50: VL-NCM | E50: Sales | F50: 1165.55 | G50: KLCS | I50: EQT*190100125 | J50: KLCS | K50: 4.1 | L50: OMNIT | M50: MYR | P50: 11 | Q50: 11S040119KLCSOMNIT | R50: 0 | S50: 1.17 | T50: 0 | U50: 1
A51: 7073 | B51: SEACERA GROUP BHD | C51: 2019-01-04 | D51: VL-CFK | E51: Sales | F51: 1554.07 | G51: KLCS | I51: EQT*190100118 | J51: KLCS | K51: 5.46 | L51: OMNIT | M51: MYR | P51: 11 | Q51: 11S040119KLCSOMNIT | R51: 0 | S51: 1.55 | T51: 0 | U51: 1
A52: 7073 | B52: SEACERA GROUP BHD | C52: 2019-01-04 | D52: VL-ZUL | E52: Sales | F52: 1942.58 | G52: KLCS | I52: EQT*190100132 | J52: KLCS | K52: 6.83 | L52: OMNIT | M52: MYR | P52: 11 | Q52: 11S040119KLCSOMNIT | R52: 0 | S52: 1.94 | T52: 0 | U52: 1
A53: 7073 | B53: SEACERA GROUP BHD | C53: 2019-01-04 | D53: VL-CMC | E53: Sales | F53: 2136.85 | G53: KLCS | I53: EQT*190100119 | J53: KLCS | K53: 7.51 | L53: OMNIT | M53: MYR | P53: 11 | Q53: 11S040119KLCSOMNIT | R53: 0 | S53: 2.14 | T53: 0 | U53: 1
A54: 7073 | B54: SEACERA GROUP BHD | C54: 2019-01-04 | D54: VL-MAA | E54: Sales | F54: 2136.85 | G54: KLCS | I54: EQT*190100123 | J54: KLCS | K54: 7.51 | L54: OMNIT | M54: MYR | P54: 11 | Q54: 11S040119KLCSOMNIT | R54: 0 | S54: 2.14 | T54: 0 | U54: 1
A55: 7073 | B55: SEACERA GROUP BHD | C55: 2019-01-04 | D55: VL-WFR | E55: Sales | F55: 2331.11 | G55: KLCS | I55: EQT*190100127 | J55: KLCS | K55: 8.19 | L55: OMNIT | M55: MYR | P55: 11 | Q55: 11S040119KLCSOMNIT | R55: 0 | S55: 2.33 | T55: 0 | U55: 1
A56: 7073 | B56: SEACERA GROUP BHD | C56: 2019-01-04 | D56: VL-WKM | E56: Sales | F56: 2913.88 | G56: KLCS | I56: EQT*190100128 | J56: KLCS | K56: 10.24 | L56: OMNIT | M56: MYR | P56: 11 | Q56: 11S040119KLCSOMNIT | R56: 0 | S56: 2.91 | T56: 0 | U56: 1
A57: 7073 | B57: SEACERA GROUP BHD | C57: 2019-01-04 | D57: VL-CSK | E57: Sales | F57: 3011.01 | G57: KLCS | I57: EQT*190100120 | J57: KLCS | K57: 10.58 | L57: OMNIT | M57: MYR | P57: 11 | Q57: 11S040119KLCSOMNIT | R57: 0 | S57: 3.01 | T57: 0 | U57: 1
A58: 7073 | B58: SEACERA GROUP BHD | C58: 2019-01-04 | D58: VL-TAAM | E58: Sales | F58: 4273.69 | G58: KLCS | I58: EQT*190100126 | J58: KLCS | K58: 15.02 | L58: OMNIT | M58: MYR | P58: 11 | Q58: 11S040119KLCSOMNIT | R58: 0 | S58: 4.27 | T58: 0 | U58: 1
A59: 7073 | B59: SEACERA GROUP BHD | C59: 2019-01-04 | D59: DTKF | E59: Sales | F59: 4273.69 | G59: KLCS | I59: EQT*190100114 | J59: KLCS | K59: 15.02 | L59: OMNIT | M59: MYR | P59: 11 | Q59: 11S040119KLCSOMNIT | R59: 0 | S59: 4.27 | T59: 0 | U59: 1
A60: 7073 | B60: SEACERA GROUP BHD | C60: 2019-01-04 | D60: VL-MSG | E60: Sales | F60: 6119.16 | G60: KLCS | I60: EQT*190100124 | J60: KLCS | K60: 21.5 | L60: OMNIT | M60: MYR | P60: 11 | Q60: 11S040119KLCSOMNIT | R60: 0 | S60: 6.12 | T60: 0 | U60: 1
A61: 0186 | B61: PERAK TRANSIT BHD | C61: 2019-01-07 | D61: VL-RAD | E61: Sales | F61: 3172.89 | G61: TASEC | I61: EQT*190100185 | J61: TASEC | K61: 11.15 | L61: OMNIT | M61: MYR | P61: 12 | Q61: 12S070119TASECOMNIT | R61: 1 | S61: 3.17 | T61: 146.44 | U61: 1
A62: 0186 | B62: PERAK TRANSIT BHD | C62: 2019-01-07 | D62: VL-IMJ | E62: Sales | F62: 15620.42 | G62: TASEC | I62: EQT*190100183 | J62: TASEC | K62: 54.88 | L62: OMNIT | M62: MYR | P62: 12 | Q62: 12S070119TASECOMNIT | R62: 0 | S62: 15.62 | T62: 0 | U62: 1
A63: 0186 | B63: PERAK TRANSIT BHD | C63: 2019-01-07 | D63: VL-LKS | E63: Sales | F63: 127648.09 | G63: TASEC | I63: EQT*190100184 | J63: TASEC | K63: 448.47 | L63: OMNIT | M63: MYR | P63: 12 | Q63: 12S070119TASECOMNIT | R63: 0 | S63: 127.65 | T63: 0 | U63: 1
A64: 7073 | B64: SEACERA GROUP BHD | C64: 2019-01-07 | D64: PRSB | E64: Sales | F64: 6375.68 | G64: TASEC | I64: EQT*190100186 | J64: TASEC | K64: 22.4 | L64: OMNIT | M64: MYR | P64: 13 | Q64: 13S070119TASECOMNIT | R64: 1 | S64: 6.38 | T64: 47.82 | U64: 1
A65: 7073 | B65: SEACERA GROUP BHD | C65: 2019-01-07 | D65: YS | E65: Sales | F65: 11755.16 | G65: TASEC | I65: EQT*190100188 | J65: TASEC | K65: 41.3 | L65: OMNIT | M65: MYR | P65: 13 | Q65: 13S070119TASECOMNIT | R65: 0 | S65: 11.76 | T65: 0 | U65: 1
A66: 7073 | B66: SEACERA GROUP BHD | C66: 2019-01-07 | D66: TAYS2 | E66: Sales | F66: 14743.76 | G66: TASEC | I66: EQT*190100187 | J66: TASEC | K66: 51.8 | L66: OMNIT | M66: MYR | P66: 13 | Q66: 13S070119TASECOMNIT | R66: 0 | S66: =ROUND(F66*TPerc/100,2) -> 14.74 | T66: =MIN(TOmni,SUMIFS(S:S,Q:Q,Q66)*R66) -> 0 | U66: 1
A67: 7073 | B67: SEACERA GROUP BHD | C67: 2019-01-07 | D67: YSIF | E67: Sales | F67: 14943 | G67: TASEC | I67: EQT*190100189 | J67: TASEC | K67: 52.5 | L67: OMNIT | M67: MYR | P67: 13 | Q67: =P67&LEFT(E67,1)&TEXT(C67,"ddmmyy")&J67&L67 -> 13S070119TASECOMNIT | R67: 0 | S67: 14.94 | T67: 0 | U67: =MONTH(C67) -> 1
A68: 0206 | B68: GAGASAN NADI CERGAS | C68: 2019-01-08 | D68: VL-YCM | E68: Sales | F68: 485.65 | G68: KLCS | I68: EQT*190100392 | J68: KLCS | K68: 1.71 | L68: OMNIT | M68: MYR | P68: =IF(A68=A67,P67,P67+1) -> 14 | Q68: 14S080119KLCSOMNIT | R68: =IF(Q68=Q67,0,1) -> 1 | S68: 0.49 | T68: 79.53 | U68: 1
A69: 0206 | B69: GAGASAN NADI CERGAS | C69: 2019-01-08 | D69: VL-LNH | E69: Sales | F69: 516.01 | G69: KLCS | I69: EQT*190100382 | J69: KLCS | K69: 1.81 | L69: OMNIT | M69: MYR | P69: 14 | Q69: 14S080119KLCSOMNIT | R69: 0 | S69: 0.52 | T69: 0 | U69: 1
A70: 0206 | B70: GAGASAN NADI CERGAS | C70: 2019-01-08 | D70: AG-TJK1 | E70: Sales | F70: 546.37 | G70: KLCS | I70: EQT*190100397 | J70: KLCS | K70: 1.92 | L70: OMNIT | M70: MYR | P70: 14 | Q70: 14S080119KLCSOMNIT | R70: 0 | S70: 0.55 | T70: 0 | U70: 1
A71: 0206 | B71: GAGASAN NADI CERGAS | C71: 2019-01-08 | D71: VL-ANU | E71: Sales | F71: 637.43 | G71: KLCS | I71: EQT*190100377 | J71: KLCS | K71: 2.24 | L71: OMNIT | M71: MYR | P71: 14 | Q71: 14S080119KLCSOMNIT | R71: 0 | S71: 0.64 | T71: 0 | U71: 1
A72: 0206 | B72: GAGASAN NADI CERGAS | C72: 2019-01-08 | D72: VL-CSY | E72: Sales | F72: 1123.08 | G72: KLCS | I72: EQT*190100381 | J72: KLCS | K72: 3.95 | L72: OMNIT | M72: MYR | P72: 14 | Q72: 14S080119KLCSOMNIT | R72: 0 | S72: 1.12 | T72: 0 | U72: 1
A73: 0206 | B73: GAGASAN NADI CERGAS | C73: 2019-01-08 | D73: AG-JOH | E73: Sales | F73: 1183.79 | G73: KLCS | I73: EQT*190100395 | J73: KLCS | K73: 4.16 | L73: OMNIT | M73: MYR | P73: 14 | Q73: 14S080119KLCSOMNIT | R73: 0 | S73: 1.18 | T73: 0 | U73: 1
A74: 0206 | B74: GAGASAN NADI CERGAS | C74: 2019-01-08 | D74: VL-WPI | E74: Sales | F74: 1244.49 | G74: KLCS | I74: EQT*190100391 | J74: KLCS | K74: 4.38 | L74: OMNIT | M74: MYR | P74: 14 | Q74: 14S080119KLCSOMNIT | R74: 0 | S74: 1.24 | T74: 0 | U74: 1
A75: 0206 | B75: GAGASAN NADI CERGAS | C75: 2019-01-08 | D75: VL-MAA | E75: Sales | F75: 1335.56 | G75: KLCS | I75: EQT*190100383 | J75: KLCS | K75: 4.7 | L75: OMNIT | M75: MYR | P75: 14 | Q75: 14S080119KLCSOMNIT | R75: 0 | S75: 1.34 | T75: 0 | U75: 1
A76: 0206 | B76: GAGASAN NADI CERGAS | C76: 2019-01-08 | D76: VL-YHN | E76: Sales | F76: 1365.92 | G76: KLCS | I76: EQT*190100393 | J76: KLCS | K76: 4.8 | L76: OMNIT | M76: MYR | P76: 14 | Q76: 14S080119KLCSOMNIT | R76: 0 | S76: 1.37 | T76: 0 | U76: 1
A77: 0206 | B77: GAGASAN NADI CERGAS | C77: 2019-01-08 | D77: VL-NCM | E77: Sales | F77: 1456.97 | G77: KLCS | I77: EQT*190100386 | J77: KLCS | K77: 5.12 | L77: OMNIT | M77: MYR | P77: 14 | Q77: 14S080119KLCSOMNIT | R77: 0 | S77: 1.46 | T77: 0 | U77: 1
A78: 0206 | B78: GAGASAN NADI CERGAS | C78: 2019-01-08 | D78: VL-WKM | E78: Sales | F78: 1639.1 | G78: KLCS | I78: EQT*190100390 | J78: KLCS | K78: 5.76 | L78: OMNIT | M78: MYR | P78: 14 | Q78: 14S080119KLCSOMNIT | R78: 0 | S78: 1.64 | T78: 0 | U78: 1
A79: 0206 | B79: GAGASAN NADI CERGAS | C79: 2019-01-08 | D79: VL-CSK | E79: Sales | F79: 1790.86 | G79: KLCS | I79: EQT*190100380 | J79: KLCS | K79: 6.3 | L79: OMNIT | M79: MYR | P79: 14 | Q79: 14S080119KLCSOMNIT | R79: 0 | S79: 1.79 | T79: 0 | U79: 1
A80: 0206 | B80: GAGASAN NADI CERGAS | C80: 2019-01-08 | D80: VL-CFK | E80: Sales | F80: 1821.21 | G80: KLCS | I80: EQT*190100378 | J80: KLCS | K80: 6.41 | L80: OMNIT | M80: MYR | P80: 14 | Q80: 14S080119KLCSOMNIT | R80: 0 | S80: 1.82 | T80: 0 | U80: 1
A81: 0206 | B81: GAGASAN NADI CERGAS | C81: 2019-01-08 | D81: AG-SKS | E81: Sales | F81: 2306.87 | G81: KLCS | I81: EQT*190100396 | J81: KLCS | K81: 8.11 | L81: OMNIT | M81: MYR | P81: 14 | Q81: 14S080119KLCSOMNIT | R81: 0 | S81: 2.31 | T81: 0 | U81: 1
A82: 0206 | B82: GAGASAN NADI CERGAS | C82: 2019-01-08 | D82: VL-ZUL | E82: Sales | F82: 2519.35 | G82: KLCS | I82: EQT*190100394 | J82: KLCS | K82: 8.86 | L82: OMNIT | M82: MYR | P82: 14 | Q82: 14S080119KLCSOMNIT | R82: 0 | S82: 2.52 | T82: 0 | U82: 1
A83: 0206 | B83: GAGASAN NADI CERGAS | C83: 2019-01-08 | D83: WFL2 | E83: Sales | F83: 2640.75 | G83: KLCS | I83: EQT*190100398 | J83: KLCS | K83: 9.29 | L83: OMNIT | M83: MYR | P83: 14 | Q83: 14S080119KLCSOMNIT | R83: 0 | S83: 2.64 | T83: 0 | U83: 1
A84: 0206 | B84: GAGASAN NADI CERGAS | C84: 2019-01-08 | D84: VL-NAN | E84: Sales | F84: 2731.82 | G84: KLCS | I84: EQT*190100385 | J84: KLCS | K84: 9.61 | L84: OMNIT | M84: MYR | P84: 14 | Q84: 14S080119KLCSOMNIT | R84: 0 | S84: 2.73 | T84: 0 | U84: 1
A85: 0206 | B85: GAGASAN NADI CERGAS | C85: 2019-01-08 | D85: VL-CMC | E85: Sales | F85: 2731.82 | G85: KLCS | I85: EQT*190100379 | J85: KLCS | K85: 9.61 | L85: OMNIT | M85: MYR | P85: 14 | Q85: 14S080119KLCSOMNIT | R85: 0 | S85: 2.73 | T85: 0 | U85: 1
A86: 0206 | B86: GAGASAN NADI CERGAS | C86: 2019-01-08 | D86: VL-WFR | E86: Sales | F86: 3187.12 | G86: KLCS | I86: EQT*190100389 | J86: KLCS | K86: 11.21 | L86: OMNIT | M86: MYR | P86: 14 | Q86: 14S080119KLCSOMNIT | R86: 0 | S86: 3.19 | T86: 0 | U86: 1
A87: 0206 | B87: GAGASAN NADI CERGAS | C87: 2019-01-08 | D87: VL-TAAM | E87: Sales | F87: 5463.63 | G87: KLCS | I87: EQT*190100388 | J87: KLCS | K87: 19.22 | L87: OMNIT | M87: MYR | P87: 14 | Q87: 14S080119KLCSOMNIT | R87: 0 | S87: 5.46 | T87: 0 | U87: 1
A88: 0206 | B88: GAGASAN NADI CERGAS | C88: 2019-01-08 | D88: VM-WAS | E88: Sales | F88: 6070.71 | G88: KLCS | I88: EQT*190100399 | J88: KLCS | K88: 21.35 | L88: OMNIT | M88: MYR | P88: 14 | Q88: 14S080119KLCSOMNIT | R88: 0 | S88: 6.07 | T88: 0 | U88: 1
A89: 0206 | B89: GAGASAN NADI CERGAS | C89: 2019-01-08 | D89: DTKF | E89: Sales | F89: 7891.92 | G89: KLCS | I89: EQT*190100374 | J89: KLCS | K89: 27.76 | L89: OMNIT | M89: MYR | P89: 14 | Q89: 14S080119KLCSOMNIT | R89: 0 | S89: 7.89 | T89: 0 | U89: 1
A90: 0206 | B90: GAGASAN NADI CERGAS | C90: 2019-01-08 | D90: VL-MSG | E90: Sales | F90: 10623.75 | G90: KLCS | I90: EQT*190100384 | J90: KLCS | K90: 37.36 | L90: OMNIT | M90: MYR | P90: 14 | Q90: 14S080119KLCSOMNIT | R90: 0 | S90: 10.62 | T90: 0 | U90: 1
A91: 0206 | B91: GAGASAN NADI CERGAS | C91: 2019-01-08 | D91: VL-SIC | E91: Sales | F91: 18212.14 | G91: KLCS | I91: EQT*190100387 | J91: KLCS | K91: 64.05 | L91: OMNIT | M91: MYR | P91: 14 | Q91: 14S080119KLCSOMNIT | R91: 0 | S91: 18.21 | T91: 0 | U91: 1
A92: 0206 | B92: GAGASAN NADI CERGAS | C92: 2019-01-08 | D92: SFY | E92: Sales | F92: 9806.54 | G92: PIBB | I92: EQT*190100204 | J92: PIBB | K92: 40 | L92: OMNIT | M92: MYR | P92: 14 | Q92: 14S080119PIBBOMNIT | R92: 1 | S92: 9.81 | T92: 9.81 | U92: 1
A93: 0206 | B93: GAGASAN NADI CERGAS | C93: 2019-01-08 | D93: VL-RAD | E93: Sales | F93: 9309.49 | G93: TASEC | I93: EQT*190100345 | J93: TASEC | K93: 32.72 | L93: OMNIT | M93: MYR | P93: 14 | Q93: 14S080119TASECOMNIT | R93: 1 | S93: 9.31 | T93: 200 | U93: 1
A94: 0206 | B94: GAGASAN NADI CERGAS | C94: 2019-01-08 | D94: PRSB | E94: Sales | F94: 34134.78 | G94: TASEC | I94: EQT*190100342 | J94: TASEC | K94: 119.97 | L94: OMNIT | M94: MYR | P94: 14 | Q94: 14S080119TASECOMNIT | R94: 0 | S94: 34.13 | T94: 0 | U94: 1
A95: 0206 | B95: GAGASAN NADI CERGAS | C95: 2019-01-08 | D95: YS | E95: Sales | F95: 58960.08 | G95: TASEC | I95: EQT*190100346 | J95: TASEC | K95: 207.22 | L95: OMNIT | M95: MYR | P95: 14 | Q95: 14S080119TASECOMNIT | R95: 0 | S95: 58.96 | T95: 0 | U95: 1
A96: 0206 | B96: GAGASAN NADI CERGAS | C96: 2019-01-08 | D96: TAYS2 | E96: Sales | F96: 76027.47 | G96: TASEC | I96: EQT*190100343 | J96: TASEC | K96: 267.2 | L96: OMNIT | M96: MYR | P96: 14 | Q96: 14S080119TASECOMNIT | R96: 0 | S96: 76.03 | T96: 0 | U96: 1
A97: 0206 | B97: GAGASAN NADI CERGAS | C97: 2019-01-08 | D97: YSIF | E97: Sales | F97: 177562.93 | G97: TASEC | I97: EQT*190100347 | J97: TASEC | K97: 624.05 | L97: OMNIT | M97: MYR | P97: 14 | Q97: 14S080119TASECOMNIT | R97: 0 | S97: 177.56 | T97: 0 | U97: 1
A98: 0206 | B98: GAGASAN NADI CERGAS | C98: 2019-01-08 | D98: VL-LKS | E98: Sales | F98: 231185.58 | G98: TASEC | I98: EQT*190100344 | J98: TASEC | K98: 812.51 | L98: OMNIT | M98: MYR | P98: 14 | Q98: 14S080119TASECOMNIT | R98: 0 | S98: 231.19 | T98: 0 | U98: 1
A99: 1155 | B99: MALAYAN BANKING BHD | C99: 2019-01-08 | D99: VL-SIC | E99: Sales | F99: 209184.24 | G99: CIMBSEC | I99: EQT*190100319 | J99: CIMBSEC | K99: 735.64 | L99: OMNIT | M99: MYR | P99: 15 | Q99: 15S080119CIMBSECOMNIT | R99: 1 | S99: 209.18 | T99: 200 | U99: 1
A100: 0186 | B100: PERAK TRANSIT BHD | C100: 2019-01-08 | D100: VL-LNH | E100: Sales | F100: 478.18 | G100: RHS | I100: EQT*190100329 | J100: RHS | K100: 1.68 | L100: OMNIT | M100: MYR | P100: 16 | Q100: 16S080119RHSOMNIT | R100: 1 | S100: 0.48 | T100: 35.86 | U100: 1
A101: 0186 | B101: PERAK TRANSIT BHD | C101: 2019-01-08 | D101: VL-CSY | E101: Sales | F101: 956.35 | G101: RHS | I101: EQT*190100328 | J101: RHS | K101: 3.36 | L101: OMNIT | M101: MYR | P101: 16 | Q101: 16S080119RHSOMNIT | R101: 0 | S101: 0.96 | T101: 0 | U101: 1
A102: 0186 | B102: PERAK TRANSIT BHD | C102: 2019-01-08 | D102: VL-WPI | E102: Sales | F102: 1099.81 | G102: RHS | I102: EQT*190100335 | J102: RHS | K102: 3.86 | L102: OMNIT | M102: MYR | P102: 16 | Q102: 16S080119RHSOMNIT | R102: 0 | S102: 1.1 | T102: 0 | U102: 1
A103: 0186 | B103: PERAK TRANSIT BHD | C103: 2019-01-08 | D103: VL-YHN | E103: Sales | F103: 1195.44 | G103: RHS | I103: EQT*190100336 | J103: RHS | K103: 4.2 | L103: OMNIT | M103: MYR | P103: 16 | Q103: 16S080119RHSOMNIT | R103: 0 | S103: 1.2 | T103: 0 | U103: 1
A104: 0186 | B104: PERAK TRANSIT BHD | C104: 2019-01-08 | D104: VL-NCM | E104: Sales | F104: 1291.07 | G104: RHS | I104: EQT*190100331 | J104: RHS | K104: 4.54 | L104: OMNIT | M104: MYR | P104: 16 | Q104: 16S080119RHSOMNIT | R104: 0 | S104: 1.29 | T104: 0 | U104: 1
A105: 0186 | B105: PERAK TRANSIT BHD | C105: 2019-01-08 | D105: VL-WKM | E105: Sales | F105: 1434.53 | G105: RHS | I105: EQT*190100334 | J105: RHS | K105: 5.04 | L105: OMNIT | M105: MYR | P105: 16 | Q105: 16S080119RHSOMNIT | R105: 0 | S105: 1.43 | T105: 0 | U105: 1
A106: 0186 | B106: PERAK TRANSIT BHD | C106: 2019-01-08 | D106: VL-CFK | E106: Sales | F106: 1554.07 | G106: RHS | I106: EQT*190100326 | J106: RHS | K106: 5.46 | L106: OMNIT | M106: MYR | P106: 16 | Q106: 16S080119RHSOMNIT | R106: 0 | S106: 1.55 | T106: 0 | U106: 1
A107: 0186 | B107: PERAK TRANSIT BHD | C107: 2019-01-08 | D107: VL-ZUL | E107: Sales | F107: 2271.34 | G107: RHS | I107: EQT*190100337 | J107: RHS | K107: 7.98 | L107: OMNIT | M107: MYR | P107: 16 | Q107: 16S080119RHSOMNIT | R107: 0 | S107: 2.27 | T107: 0 | U107: 1
A108: 0186 | B108: PERAK TRANSIT BHD | C108: 2019-01-08 | D108: VL-CMC | E108: Sales | F108: 2390.88 | G108: RHS | I108: EQT*190100327 | J108: RHS | K108: 8.4 | L108: OMNIT | M108: MYR | P108: 16 | Q108: 16S080119RHSOMNIT | R108: 0 | S108: 2.39 | T108: 0 | U108: 1
A109: 0186 | B109: PERAK TRANSIT BHD | C109: 2019-01-08 | D109: VL-WFR | E109: Sales | F109: 2629.97 | G109: RHS | I109: EQT*190100333 | J109: RHS | K109: 9.24 | L109: OMNIT | M109: MYR | P109: 16 | Q109: 16S080119RHSOMNIT | R109: 0 | S109: 2.63 | T109: 0 | U109: 1
A110: 0186 | B110: PERAK TRANSIT BHD | C110: 2019-01-08 | D110: VL-TAAM | E110: Sales | F110: 4781.76 | G110: RHS | I110: EQT*190100332 | J110: RHS | K110: 16.8 | L110: OMNIT | M110: MYR | P110: 16 | Q110: 16S080119RHSOMNIT | R110: 0 | S110: 4.78 | T110: 0 | U110: 1
A111: 0186 | B111: PERAK TRANSIT BHD | C111: 2019-01-08 | D111: DTKF | E111: Sales | F111: 6694.46 | G111: RHS | I111: EQT*190100325 | J111: RHS | K111: 23.52 | L111: OMNIT | M111: MYR | P111: 16 | Q111: 16S080119RHSOMNIT | R111: 0 | S111: 6.69 | T111: 0 | U111: 1
A112: 0186 | B112: PERAK TRANSIT BHD | C112: 2019-01-08 | D112: VL-MSG | E112: Sales | F112: 9085.34 | G112: RHS | I112: EQT*190100330 | J112: RHS | K112: 31.92 | L112: OMNIT | M112: MYR | P112: 16 | Q112: 16S080119RHSOMNIT | R112: 0 | S112: 9.09 | T112: 0 | U112: 1
A113: 0186 | B113: PERAK TRANSIT BHD | C113: 2019-01-08 | D113: VL-LKS | E113: Sales | F113: 22336.81 | G113: TASEC | I113: EQT*190100322 | J113: TASEC | K113: 78.48 | L113: OMNIT | M113: MYR | P113: 16 | Q113: 16S080119TASECOMNIT | R113: 1 | S113: 22.34 | T113: 200 | U113: 1
A114: 0186 | B114: PERAK TRANSIT BHD | C114: 2019-01-08 | D114: PRSB | E114: Sales | F114: 48036.16 | G114: TASEC | I114: EQT*190100320 | J114: TASEC | K114: 168.77 | L114: OMNIT | M114: MYR | P114: 16 | Q114: 16S080119TASECOMNIT | R114: 0 | S114: 48.04 | T114: 0 | U114: 1
A115: 0186 | B115: PERAK TRANSIT BHD | C115: 2019-01-08 | D115: YS | E115: Sales | F115: 96072.33 | G115: TASEC | I115: EQT*190100323 | J115: TASEC | K115: 337.54 | L115: OMNIT | M115: MYR | P115: 16 | Q115: 16S080119TASECOMNIT | R115: 0 | S115: 96.07 | T115: 0 | U115: 1
A116: 0186 | B116: PERAK TRANSIT BHD | C116: 2019-01-08 | D116: TAYS2 | E116: Sales | F116: 120090.42 | G116: TASEC | I116: EQT*190100321 | J116: TASEC | K116: 421.92 | L116: OMNIT | M116: MYR | P116: 16 | Q116: 16S080119TASECOMNIT | R116: 0 | S116: 120.09 | T116: 0 | U116: 1
A117: 0186 | B117: PERAK TRANSIT BHD | C117: 2019-01-08 | D117: YSIF | E117: Sales | F117: 169807.84 | G117: TASEC | I117: EQT*190100324 | J117: TASEC | K117: 596.6 | L117: OMNIT | M117: MYR | P117: 16 | Q117: 16S080119TASECOMNIT | R117: 0 | S117: 169.81 | T117: 0 | U117: 1
A118: 7106 | B118: SUPERMAX CORP BHD | C118: 2019-01-08 | D118: MF | E118: Sales | F118: 5068.74 | G118: TASEC | I118: EQT*190100249 | J118: TASEC | K118: 17.81 | L118: OMNIT | M118: MYR | P118: 17 | Q118: 17S080119TASECOMNIT | R118: 1 | S118: 5.07 | T118: 37.18 | U118: 1
A119: 7106 | B119: SUPERMAX CORP BHD | C119: 2019-01-08 | D119: LFS | E119: Sales | F119: 6758.32 | G119: TASEC | I119: EQT*190100247 | J119: TASEC | K119: 23.74 | L119: OMNIT | M119: MYR | P119: 17 | Q119: 17S080119TASECOMNIT | R119: 0 | S119: 6.76 | T119: 0 | U119: 1
A120: 7106 | B120: SUPERMAX CORP BHD | C120: 2019-01-08 | D120: SIA | E120: Sales | F120: 6758.32 | G120: TASEC | I120: EQT*190100251 | J120: TASEC | K120: 23.74 | L120: OMNIT | M120: MYR | P120: 17 | Q120: 17S080119TASECOMNIT | R120: 0 | S120: 6.76 | T120: 0 | U120: 1
A121: 7106 | B121: SUPERMAX CORP BHD | C121: 2019-01-08 | D121: RTMOEY | E121: Sales | F121: 18585.39 | G121: TASEC | I121: EQT*190100250 | J121: TASEC | K121: 65.3 | L121: OMNIT | M121: MYR | P121: 17 | Q121: 17S080119TASECOMNIT | R121: 0 | S121: 18.59 | T121: 0 | U121: 1
A122: AU000000CMA4 | B122: CENTURIA METROPOLITAN REIT | C122: 2019-01-09 | D122: VL-YCM | E122: Purchase | F122: 1223.53 | G122: TASEC | I122: EQT*190100576 | J122: TASEC | K122: 0.62 | L122: OMNIT | M122: AUD | P122: 18 | Q122: 18P090119TASECOMNIT | R122: 1 | S122: 1.22 | T122: 200 | U122: 1
A123: AU000000CMA4 | B123: CENTURIA METROPOLITAN REIT | C123: 2019-01-09 | D123: VL-LNH | E123: Purchase | F123: 1349.42 | G123: TASEC | I123: EQT*190100567 | J123: TASEC | K123: 0.69 | L123: OMNIT | M123: AUD | P123: 18 | Q123: 18P090119TASECOMNIT | R123: 0 | S123: 1.35 | T123: 0 | U123: 1
A124: AU000000CMA4 | B124: CENTURIA METROPOLITAN REIT | C124: 2019-01-09 | D124: VL-ANU | E124: Purchase | F124: 1622.07 | G124: TASEC | I124: EQT*190100562 | J124: TASEC | K124: 0.82 | L124: OMNIT | M124: AUD | P124: 18 | Q124: 18P090119TASECOMNIT | R124: 0 | S124: 1.62 | T124: 0 | U124: 1
A125: AU000000CMA4 | B125: CENTURIA METROPOLITAN REIT | C125: 2019-01-09 | D125: VL-CSY | E125: Purchase | F125: 2859.64 | G125: TASEC | I125: EQT*190100566 | J125: TASEC | K125: 1.45 | L125: OMNIT | M125: AUD | P125: 18 | Q125: 18P090119TASECOMNIT | R125: 0 | S125: 2.86 | T125: 0 | U125: 1
A126: AU000000CMA4 | B126: CENTURIA METROPOLITAN REIT | C126: 2019-01-09 | D126: VL-WPI | E126: Purchase | F126: 3202.21 | G126: TASEC | I126: EQT*190100575 | J126: TASEC | K126: 1.63 | L126: OMNIT | M126: AUD | P126: 18 | Q126: 18P090119TASECOMNIT | R126: 0 | S126: 3.2 | T126: 0 | U126: 1
A127: AU000000CMA4 | B127: CENTURIA METROPOLITAN REIT | C127: 2019-01-09 | D127: VL-MAA | E127: Purchase | F127: 3363.04 | G127: TASEC | I127: EQT*190100568 | J127: TASEC | K127: 1.71 | L127: OMNIT | M127: AUD | P127: 18 | Q127: 18P090119TASECOMNIT | R127: 0 | S127: 3.36 | T127: 0 | U127: 1
A128: AU000000CMA4 | B128: CENTURIA METROPOLITAN REIT | C128: 2019-01-09 | D128: VL-YHN | E128: Purchase | F128: 3488.85 | G128: TASEC | I128: EQT*190100577 | J128: TASEC | K128: 1.77 | L128: OMNIT | M128: AUD | P128: 18 | Q128: 18P090119TASECOMNIT | R128: 0 | S128: 3.49 | T128: 0 | U128: 1
A129: AU000000CMA4 | B129: CENTURIA METROPOLITAN REIT | C129: 2019-01-09 | D129: VL-NCM | E129: Purchase | F129: 3677.67 | G129: TASEC | I129: EQT*190100571 | J129: TASEC | K129: 1.87 | L129: OMNIT | M129: AUD | P129: 18 | Q129: 18P090119TASECOMNIT | R129: 0 | S129: 3.68 | T129: 0 | U129: 1
A130: AU000000CMA4 | B130: CENTURIA METROPOLITAN REIT | C130: 2019-01-09 | D130: VL-WKM | E130: Purchase | F130: 4020.24 | G130: TASEC | I130: EQT*190100574 | J130: TASEC | K130: 2.04 | L130: OMNIT | M130: AUD | P130: 18 | Q130: 18P090119TASECOMNIT | R130: 0 | S130: =ROUND(F130*TPerc/100,2) -> 4.02 | T130: =MIN(TOmni,SUMIFS(S:S,Q:Q,Q130)*R130) -> 0 | U130: 1
A131: AU000000CMA4 | B131: CENTURIA METROPOLITAN REIT | C131: 2019-01-09 | D131: AG-TJK1 | E131: Purchase | F131: 4558.63 | G131: TASEC | I131: EQT*190100582 | J131: TASEC | K131: 2.32 | L131: OMNIT | M131: AUD | P131: 18 | Q131: =P131&LEFT(E131,1)&TEXT(C131,"ddmmyy")&J131&L131 -> 18P090119TASECOMNIT | R131: 0 | S131: 4.56 | T131: 0 | U131: =MONTH(C131) -> 1
A132: AU000000CMA4 | B132: CENTURIA METROPOLITAN REIT | C132: 2019-01-09 | D132: VL-CFK | E132: Purchase | F132: 4572.62 | G132: TASEC | I132: EQT*190100563 | J132: TASEC | K132: 2.32 | L132: OMNIT | M132: AUD | P132: =IF(A132=A131,P131,P131+1) -> 18 | Q132: 18P090119TASECOMNIT | R132: =IF(Q132=Q131,0,1) -> 0 | S132: 4.57 | T132: 0 | U132: 1
A133: AU000000CMA4 | B133: CENTURIA METROPOLITAN REIT | C133: 2019-01-09 | D133: VL-CSK | E133: Purchase | F133: 4621.53 | G133: TASEC | I133: EQT*190100565 | J133: TASEC | K133: 2.35 | L133: OMNIT | M133: AUD | P133: 18 | Q133: 18P090119TASECOMNIT | R133: 0 | S133: 4.62 | T133: 0 | U133: 1
A134: AU000000CMA4 | B134: CENTURIA METROPOLITAN REIT | C134: 2019-01-09 | D134: AG-JOS | E134: Purchase | F134: 5348.69 | G134: TASEC | I134: EQT*190100580 | J134: TASEC | K134: 2.72 | L134: OMNIT | M134: AUD | P134: 18 | Q134: 18P090119TASECOMNIT | R134: 0 | S134: 5.35 | T134: 0 | U134: 1
A135: AU000000CMA4 | B135: CENTURIA METROPOLITAN REIT | C135: 2019-01-09 | D135: VL-ZUL | E135: Purchase | F135: 6404.43 | G135: TASEC | I135: EQT*190100578 | J135: TASEC | K135: 3.25 | L135: OMNIT | M135: AUD | P135: 18 | Q135: 18P090119TASECOMNIT | R135: 0 | S135: 6.4 | T135: 0 | U135: 1
A136: AU000000CMA4 | B136: CENTURIA METROPOLITAN REIT | C136: 2019-01-09 | D136: VL-NAN | E136: Purchase | F136: 6823.92 | G136: TASEC | I136: EQT*190100570 | J136: TASEC | K136: 3.47 | L136: OMNIT | M136: AUD | P136: 18 | Q136: 18P090119TASECOMNIT | R136: 0 | S136: 6.82 | T136: 0 | U136: 1
A137: AU000000CMA4 | B137: CENTURIA METROPOLITAN REIT | C137: 2019-01-09 | D137: VL-CMC | E137: Purchase | F137: 6956.77 | G137: TASEC | I137: EQT*190100564 | J137: TASEC | K137: 3.53 | L137: OMNIT | M137: AUD | P137: 18 | Q137: 18P090119TASECOMNIT | R137: 0 | S137: 6.96 | T137: 0 | U137: 1
A138: AU000000CMA4 | B138: CENTURIA METROPOLITAN REIT | C138: 2019-01-09 | D138: VL-WFR | E138: Purchase | F138: 7600.02 | G138: TASEC | I138: EQT*190100573 | J138: TASEC | K138: 3.86 | L138: OMNIT | M138: AUD | P138: 18 | Q138: 18P090119TASECOMNIT | R138: 0 | S138: 7.6 | T138: 0 | U138: 1
A139: AU000000CMA4 | B139: CENTURIA METROPOLITAN REIT | C139: 2019-01-09 | D139: AG-JOH | E139: Purchase | F139: 10068.11 | G139: TASEC | I139: EQT*190100579 | J139: TASEC | K139: 5.11 | L139: OMNIT | M139: AUD | P139: 18 | Q139: 18P090119TASECOMNIT | R139: 0 | S139: 10.07 | T139: 0 | U139: 1
A140: AU000000CMA4 | B140: CENTURIA METROPOLITAN REIT | C140: 2019-01-09 | D140: WWK | E140: Purchase | F140: 12634.08 | G140: TASEC | I140: EQT*190100586 | J140: TASEC | K140: 6.42 | L140: OMNIT | M140: AUD | P140: 18 | Q140: 18P090119TASECOMNIT | R140: 0 | S140: 12.63 | T140: 0 | U140: 1
A141: AU000000CMA4 | B141: CENTURIA METROPOLITAN REIT | C141: 2019-01-09 | D141: VL-TAAM | E141: Purchase | F141: 14137.3 | G141: TASEC | I141: EQT*190100572 | J141: TASEC | K141: 7.18 | L141: OMNIT | M141: AUD | P141: 18 | Q141: 18P090119TASECOMNIT | R141: 0 | S141: 14.14 | T141: 0 | U141: 1
A142: AU000000CMA4 | B142: CENTURIA METROPOLITAN REIT | C142: 2019-01-09 | D142: VL-RAD | E142: Purchase | F142: 14675.72 | G142: TASEC | I142: EQT*190100702 | J142: TASEC | K142: 7.46 | L142: OMNIT | M142: AUD | P142: 18 | Q142: 18P090119TASECOMNIT | R142: 0 | S142: 14.68 | T142: 0 | U142: 1
A143: AU000000CMA4 | B143: CENTURIA METROPOLITAN REIT | C143: 2019-01-09 | D143: AG-SKS | E143: Purchase | F143: 18912.67 | G143: TASEC | I143: EQT*190100581 | J143: TASEC | K143: 9.61 | L143: OMNIT | M143: AUD | P143: 18 | Q143: 18P090119TASECOMNIT | R143: 0 | S143: 18.91 | T143: 0 | U143: 1
A144: AU000000CMA4 | B144: CENTURIA METROPOLITAN REIT | C144: 2019-01-09 | D144: DTKF | E144: Purchase | F144: 20073.3 | G144: TASEC | I144: EQT*190100561 | J144: TASEC | K144: 10.2 | L144: OMNIT | M144: AUD | P144: 18 | Q144: 18P090119TASECOMNIT | R144: 0 | S144: 20.07 | T144: 0 | U144: 1
A145: AU000000CMA4 | B145: CENTURIA METROPOLITAN REIT | C145: 2019-01-09 | D145: CWK2 | E145: Purchase | F145: 24520.02 | G145: TASEC | I145: EQT*190100583 | J145: TASEC | K145: 12.45 | L145: OMNIT | M145: AUD | P145: 18 | Q145: 18P090119TASECOMNIT | R145: 0 | S145: 24.52 | T145: 0 | U145: 1
A146: AU000000CMA4 | B146: CENTURIA METROPOLITAN REIT | C146: 2019-01-09 | D146: VL-MSG | E146: Purchase | F146: 28456.38 | G146: TASEC | I146: EQT*190100569 | J146: TASEC | K146: 14.45 | L146: OMNIT | M146: AUD | P146: 18 | Q146: 18P090119TASECOMNIT | R146: 0 | S146: 28.46 | T146: 0 | U146: 1
A147: AU000000CMA4 | B147: CENTURIA METROPOLITAN REIT | C147: 2019-01-09 | D147: CYT | E147: Purchase | F147: 30197.35 | G147: TASEC | I147: EQT*190100584 | J147: TASEC | K147: 15.34 | L147: OMNIT | M147: AUD | P147: 18 | Q147: 18P090119TASECOMNIT | R147: 0 | S147: 30.2 | T147: 0 | U147: 1
A148: AU000000CMA4 | B148: CENTURIA METROPOLITAN REIT | C148: 2019-01-09 | D148: WFL3 | E148: Purchase | F148: 32525.57 | G148: TASEC | I148: EQT*190100585 | J148: TASEC | K148: 16.52 | L148: OMNIT | M148: AUD | P148: 18 | Q148: 18P090119TASECOMNIT | R148: 0 | S148: 32.53 | T148: 0 | U148: 1
A149: AU000000CMA4 | B149: CENTURIA METROPOLITAN REIT | C149: 2019-01-09 | D149: VM-WAS | E149: Purchase | F149: 49837.12 | G149: TASEC | I149: EQT*190100587 | J149: TASEC | K149: 25.31 | L149: OMNIT | M149: AUD | P149: 18 | Q149: 18P090119TASECOMNIT | R149: 0 | S149: 49.84 | T149: 0 | U149: 1
A150: AU000000CMA4 | B150: CENTURIA METROPOLITAN REIT | C150: 2019-01-09 | D150: VL-IMJ | E150: Purchase | F150: 51015.58 | G150: TASEC | I150: EQT*190100700 | J150: TASEC | K150: 25.9 | L150: OMNIT | M150: AUD | P150: 18 | Q150: 18P090119TASECOMNIT | R150: 0 | S150: 51.02 | T150: 0 | U150: 1
A151: AU000000CMA4 | B151: CENTURIA METROPOLITAN REIT | C151: 2019-01-09 | D151: VL-LKS | E151: Purchase | F151: 102729.99 | G151: TASEC | I151: EQT*190100701 | J151: TASEC | K151: 52.16 | L151: OMNIT | M151: AUD | P151: 18 | Q151: 18P090119TASECOMNIT | R151: 0 | S151: 102.73 | T151: 0 | U151: 1
A152: 3182 | B152: GENTING BHD | C152: 2019-01-09 | D152: VL-RAD | E152: Purchase | F152: 5159.51 | G152: TASEC | I152: EQT*190100626 | J152: TASEC | K152: 17.97 | L152: OMNIT | M152: MYR | P152: 19 | Q152: 19P090119TASECOMNIT | R152: 1 | S152: 5.16 | T152: 23.22 | U152: 1
A153: 3182 | B153: GENTING BHD | C153: 2019-01-09 | D153: VL-IMJ | E153: Purchase | F153: 18058.29 | G153: TASEC | I153: EQT*190100625 | J153: TASEC | K153: 62.9 | L153: OMNIT | M153: MYR | P153: 19 | Q153: 19P090119TASECOMNIT | R153: 0 | S153: 18.06 | T153: 0 | U153: 1
A154: 5168 | B154: HARTALEGA HOLDINGS BHD | C154: 2019-01-09 | D154: MF | E154: Purchase | F154: 6879.99 | G154: TASEC | I154: EQT*190100445 | J154: TASEC | K154: 23.96 | L154: OMNIT | M154: MYR | P154: 20 | Q154: 20P090119TASECOMNIT | R154: 1 | S154: 6.88 | T154: 44.99 | U154: 1
A155: 5168 | B155: HARTALEGA HOLDINGS BHD | C155: 2019-01-09 | D155: LFS | E155: Purchase | F155: 8467.69 | G155: TASEC | I155: EQT*190100443 | J155: TASEC | K155: 29.49 | L155: OMNIT | M155: MYR | P155: 20 | Q155: 20P090119TASECOMNIT | R155: 0 | S155: 8.47 | T155: 0 | U155: 1
A156: 5168 | B156: HARTALEGA HOLDINGS BHD | C156: 2019-01-09 | D156: SIA | E156: Purchase | F156: 8467.69 | G156: TASEC | I156: EQT*190100447 | J156: TASEC | K156: 29.49 | L156: OMNIT | M156: MYR | P156: 20 | Q156: 20P090119TASECOMNIT | R156: 0 | S156: 8.47 | T156: 0 | U156: 1
A157: 5168 | B157: HARTALEGA HOLDINGS BHD | C157: 2019-01-09 | D157: RTMOEY | E157: Purchase | F157: 21169.24 | G157: TASEC | I157: EQT*190100446 | J157: TASEC | K157: 73.74 | L157: OMNIT | M157: MYR | P157: 20 | Q157: 20P090119TASECOMNIT | R157: 0 | S157: 21.17 | T157: 0 | U157: 1
A158: 1651 | B158: MALAYSIAN RESOURCES CORP BHD | C158: 2019-01-09 | D158: VL-LNH | E158: Purchase | F158: 465.56 | G158: KENANGA | I158: EQT*190100640 | J158: KENANGA | K158: 1.62 | L158: OMNIT | M158: MYR | P158: 21 | Q158: 21P090119KENANGAOMNIT | R158: 1 | S158: 0.47 | T158: 54.03 | U158: 1
A159: 1651 | B159: MALAYSIAN RESOURCES CORP BHD | C159: 2019-01-09 | D159: VL-YCM | E159: Purchase | F159: 465.56 | G159: KENANGA | I159: EQT*190100649 | J159: KENANGA | K159: 1.62 | L159: OMNIT | M159: MYR | P159: 21 | Q159: 21P090119KENANGAOMNIT | R159: 0 | S159: 0.47 | T159: 0 | U159: 1
A160: 1651 | B160: MALAYSIAN RESOURCES CORP BHD | C160: 2019-01-09 | D160: VL-ANU | E160: Purchase | F160: 598.57 | G160: KENANGA | I160: EQT*190100635 | J160: KENANGA | K160: 2.08 | L160: OMNIT | M160: MYR | P160: 21 | Q160: 21P090119KENANGAOMNIT | R160: 0 | S160: 0.6 | T160: 0 | U160: 1
A161: 1651 | B161: MALAYSIAN RESOURCES CORP BHD | C161: 2019-01-09 | D161: VL-CSY | E161: Purchase | F161: 1130.64 | G161: KENANGA | I161: EQT*190100639 | J161: KENANGA | K161: 3.94 | L161: OMNIT | M161: MYR | P161: 21 | Q161: 21P090119KENANGAOMNIT | R161: 0 | S161: 1.13 | T161: 0 | U161: 1
A162: 1651 | B162: MALAYSIAN RESOURCES CORP BHD | C162: 2019-01-09 | D162: VL-MAA | E162: Purchase | F162: 1197.15 | G162: KENANGA | I162: EQT*190100641 | J162: KENANGA | K162: 4.17 | L162: OMNIT | M162: MYR | P162: 21 | Q162: 21P090119KENANGAOMNIT | R162: 0 | S162: 1.2 | T162: 0 | U162: 1
A163: 1651 | B163: MALAYSIAN RESOURCES CORP BHD | C163: 2019-01-09 | D163: VL-WPI | E163: Purchase | F163: 1263.65 | G163: KENANGA | I163: EQT*190100648 | J163: KENANGA | K163: 4.4 | L163: OMNIT | M163: MYR | P163: 21 | Q163: 21P090119KENANGAOMNIT | R163: 0 | S163: 1.26 | T163: 0 | U163: 1
A164: 1651 | B164: MALAYSIAN RESOURCES CORP BHD | C164: 2019-01-09 | D164: VL-YHN | E164: Purchase | F164: 1330.16 | G164: KENANGA | I164: EQT*190100650 | J164: KENANGA | K164: 4.63 | L164: OMNIT | M164: MYR | P164: 21 | Q164: 21P090119KENANGAOMNIT | R164: 0 | S164: 1.33 | T164: 0 | U164: 1
A165: 1651 | B165: MALAYSIAN RESOURCES CORP BHD | C165: 2019-01-09 | D165: VL-NCM | E165: Purchase | F165: 1396.67 | G165: KENANGA | I165: EQT*190100644 | J165: KENANGA | K165: 4.86 | L165: OMNIT | M165: MYR | P165: 21 | Q165: 21P090119KENANGAOMNIT | R165: 0 | S165: 1.4 | T165: 0 | U165: 1
A166: 1651 | B166: MALAYSIAN RESOURCES CORP BHD | C166: 2019-01-09 | D166: VL-WKM | E166: Purchase | F166: 1463.18 | G166: KENANGA | I166: EQT*190100647 | J166: KENANGA | K166: 5.1 | L166: OMNIT | M166: MYR | P166: 21 | Q166: 21P090119KENANGAOMNIT | R166: 0 | S166: 1.46 | T166: 0 | U166: 1
A167: 1651 | B167: MALAYSIAN RESOURCES CORP BHD | C167: 2019-01-09 | D167: VL-CFK | E167: Purchase | F167: 1795.72 | G167: KENANGA | I167: EQT*190100636 | J167: KENANGA | K167: 6.25 | L167: OMNIT | M167: MYR | P167: 21 | Q167: 21P090119KENANGAOMNIT | R167: 0 | S167: 1.8 | T167: 0 | U167: 1
A168: 1651 | B168: MALAYSIAN RESOURCES CORP BHD | C168: 2019-01-09 | D168: VL-CSK | E168: Purchase | F168: 1928.74 | G168: KENANGA | I168: EQT*190100638 | J168: KENANGA | K168: 6.72 | L168: OMNIT | M168: MYR | P168: 21 | Q168: 21P090119KENANGAOMNIT | R168: 0 | S168: 1.93 | T168: 0 | U168: 1
A169: 1651 | B169: MALAYSIAN RESOURCES CORP BHD | C169: 2019-01-09 | D169: VL-NAN | E169: Purchase | F169: 2527.3 | G169: KENANGA | I169: EQT*190100643 | J169: KENANGA | K169: 8.8 | L169: OMNIT | M169: MYR | P169: 21 | Q169: 21P090119KENANGAOMNIT | R169: 0 | S169: 2.53 | T169: 0 | U169: 1
A170: 1651 | B170: MALAYSIAN RESOURCES CORP BHD | C170: 2019-01-09 | D170: VL-ZUL | E170: Purchase | F170: 2527.3 | G170: KENANGA | I170: EQT*190100651 | J170: KENANGA | K170: 8.8 | L170: OMNIT | M170: MYR | P170: 21 | Q170: 21P090119KENANGAOMNIT | R170: 0 | S170: 2.53 | T170: 0 | U170: 1
A171: 1651 | B171: MALAYSIAN RESOURCES CORP BHD | C171: 2019-01-09 | D171: VL-CMC | E171: Purchase | F171: 2859.84 | G171: KENANGA | I171: EQT*190100637 | J171: KENANGA | K171: 9.96 | L171: OMNIT | M171: MYR | P171: 21 | Q171: 21P090119KENANGAOMNIT | R171: 0 | S171: 2.86 | T171: 0 | U171: 1
A172: 1651 | B172: MALAYSIAN RESOURCES CORP BHD | C172: 2019-01-09 | D172: VL-SIC | E172: Purchase | F172: 5719.69 | G172: KENANGA | I172: EQT*190100645 | J172: KENANGA | K172: 19.92 | L172: OMNIT | M172: MYR | P172: 21 | Q172: 21P090119KENANGAOMNIT | R172: 0 | S172: 5.72 | T172: 0 | U172: 1
A173: 1651 | B173: MALAYSIAN RESOURCES CORP BHD | C173: 2019-01-09 | D173: VL-TAAM | E173: Purchase | F173: 5786.2 | G173: KENANGA | I173: EQT*190100646 | J173: KENANGA | K173: 20.15 | L173: OMNIT | M173: MYR | P173: 21 | Q173: 21P090119KENANGAOMNIT | R173: 0 | S173: 5.79 | T173: 0 | U173: 1
A174: 1651 | B174: MALAYSIAN RESOURCES CORP BHD | C174: 2019-01-09 | D174: DTKF | E174: Purchase | F174: 8646.05 | G174: KENANGA | I174: EQT*190100634 | J174: KENANGA | K174: 30.12 | L174: OMNIT | M174: MYR | P174: 21 | Q174: 21P090119KENANGAOMNIT | R174: 0 | S174: 8.65 | T174: 0 | U174: 1
A175: 1651 | B175: MALAYSIAN RESOURCES CORP BHD | C175: 2019-01-09 | D175: VL-MSG | E175: Purchase | F175: 12902.55 | G175: KENANGA | I175: EQT*190100642 | J175: KENANGA | K175: 44.94 | L175: OMNIT | M175: MYR | P175: 21 | Q175: 21P090119KENANGAOMNIT | R175: 0 | S175: 12.9 | T175: 0 | U175: 1
A176: 1651 | B176: MALAYSIAN RESOURCES CORP BHD | C176: 2019-01-09 | D176: VL-RAD | E176: Purchase | F176: 4598.51 | G176: TASEC | I176: EQT*190100630 | J176: TASEC | K176: 16.02 | L176: OMNIT | M176: MYR | P176: 21 | Q176: 21P090119TASECOMNIT | R176: 1 | S176: 4.6 | T176: 95.97 | U176: 1
A177: 1651 | B177: MALAYSIAN RESOURCES CORP BHD | C177: 2019-01-09 | D177: PRSB | E177: Purchase | F177: 14728.56 | G177: TASEC | I177: EQT*190100627 | J177: TASEC | K177: 51.3 | L177: OMNIT | M177: MYR | P177: 21 | Q177: 21P090119TASECOMNIT | R177: 0 | S177: 14.73 | T177: 0 | U177: 1
A178: 1651 | B178: MALAYSIAN RESOURCES CORP BHD | C178: 2019-01-09 | D178: VL-IMJ | E178: Purchase | F178: 21326.44 | G178: TASEC | I178: EQT*190100629 | J178: TASEC | K178: 74.29 | L178: OMNIT | M178: MYR | P178: 21 | Q178: 21P090119TASECOMNIT | R178: 0 | S178: 21.33 | T178: 0 | U178: 1
A179: 1651 | B179: MALAYSIAN RESOURCES CORP BHD | C179: 2019-01-09 | D179: YS | E179: Purchase | F179: 23992.23 | G179: TASEC | I179: EQT*190100631 | J179: TASEC | K179: 83.57 | L179: OMNIT | M179: MYR | P179: 21 | Q179: 21P090119TASECOMNIT | R179: 0 | S179: 23.99 | T179: 0 | U179: 1
A180: 1651 | B180: MALAYSIAN RESOURCES CORP BHD | C180: 2019-01-09 | D180: TAYS2 | E180: Purchase | F180: 31323.2 | G180: TASEC | I180: EQT*190100628 | J180: TASEC | K180: 109.11 | L180: OMNIT | M180: MYR | P180: 21 | Q180: 21P090119TASECOMNIT | R180: 0 | S180: 31.32 | T180: 0 | U180: 1
A181: 7088 | B181: POH HUAT RESOURCES HLDGS BHD | C181: 2019-01-09 | D181: VL-SIC | E181: Sales | F181: 32792.91 | G181: KENANGA | I181: EQT*190100653 | J181: KENANGA | K181: 115.21 | L181: OMNIT | M181: MYR | P181: 22 | Q181: 22S090119KENANGAOMNIT | R181: 1 | S181: 32.79 | T181: 32.79 | U181: 1
A182: 5347 | B182: TENAGA NASIONAL BHD | C182: 2019-01-09 | D182: VL-LNH | E182: Sales | F182: 1393.27 | G182: PIBB | I182: EQT*190100471 | J182: PIBB | K182: 4.9 | L182: OMNIT | M182: MYR | P182: 23 | Q182: 23S090119PIBBOMNIT | R182: 1 | S182: 1.39 | T182: 103.11 | U182: 1
A183: 5347 | B183: TENAGA NASIONAL BHD | C183: 2019-01-09 | D183: VL-SIC | E183: Sales | F183: 2786.55 | G183: PIBB | I183: EQT*190100474 | J183: PIBB | K183: 9.8 | L183: OMNIT | M183: MYR | P183: 23 | Q183: 23S090119PIBBOMNIT | R183: 0 | S183: 2.79 | T183: 0 | U183: 1
A184: 5347 | B184: TENAGA NASIONAL BHD | C184: 2019-01-09 | D184: VL-CFK | E184: Sales | F184: 2786.55 | G184: PIBB | I184: EQT*190100468 | J184: PIBB | K184: 9.8 | L184: OMNIT | M184: MYR | P184: 23 | Q184: 23S090119PIBBOMNIT | R184: 0 | S184: 2.79 | T184: 0 | U184: 1
A185: 5347 | B185: TENAGA NASIONAL BHD | C185: 2019-01-09 | D185: VL-CSY | E185: Sales | F185: 4179.82 | G185: PIBB | I185: EQT*190100470 | J185: PIBB | K185: 14.7 | L185: OMNIT | M185: MYR | P185: 23 | Q185: 23S090119PIBBOMNIT | R185: 0 | S185: 4.18 | T185: 0 | U185: 1
A186: 5347 | B186: TENAGA NASIONAL BHD | C186: 2019-01-09 | D186: VL-YHN | E186: Sales | F186: 4179.82 | G186: PIBB | I186: EQT*190100477 | J186: PIBB | K186: 14.7 | L186: OMNIT | M186: MYR | P186: 23 | Q186: 23S090119PIBBOMNIT | R186: 0 | S186: 4.18 | T186: 0 | U186: 1
A187: 5347 | B187: TENAGA NASIONAL BHD | C187: 2019-01-09 | D187: VL-NCM | E187: Sales | F187: 5573.1 | G187: PIBB | I187: EQT*190100473 | J187: PIBB | K187: 19.6 | L187: OMNIT | M187: MYR | P187: 23 | Q187: 23S090119PIBBOMNIT | R187: 0 | S187: 5.57 | T187: 0 | U187: 1
A188: 5347 | B188: TENAGA NASIONAL BHD | C188: 2019-01-09 | D188: VL-WFR | E188: Sales | F188: 6966.37 | G188: PIBB | I188: EQT*190100476 | J188: PIBB | K188: 24.5 | L188: OMNIT | M188: MYR | P188: 23 | Q188: 23S090119PIBBOMNIT | R188: 0 | S188: 6.97 | T188: 0 | U188: 1
A189: 5347 | B189: TENAGA NASIONAL BHD | C189: 2019-01-09 | D189: VL-CMC | E189: Sales | F189: 8359.65 | G189: PIBB | I189: EQT*190100469 | J189: PIBB | K189: 29.4 | L189: OMNIT | M189: MYR | P189: 23 | Q189: 23S090119PIBBOMNIT | R189: 0 | S189: 8.36 | T189: 0 | U189: 1
A190: 5347 | B190: TENAGA NASIONAL BHD | C190: 2019-01-09 | D190: VL-ZUL | E190: Sales | F190: 9752.92 | G190: PIBB | I190: EQT*190100478 | J190: PIBB | K190: 34.3 | L190: OMNIT | M190: MYR | P190: 23 | Q190: 23S090119PIBBOMNIT | R190: 0 | S190: 9.75 | T190: 0 | U190: 1
A191: 5347 | B191: TENAGA NASIONAL BHD | C191: 2019-01-09 | D191: VL-MSG | E191: Sales | F191: 16719.3 | G191: PIBB | I191: EQT*190100472 | J191: PIBB | K191: 58.8 | L191: OMNIT | M191: MYR | P191: 23 | Q191: 23S090119PIBBOMNIT | R191: 0 | S191: 16.72 | T191: 0 | U191: 1
A192: 5347 | B192: TENAGA NASIONAL BHD | C192: 2019-01-09 | D192: VL-TAAM | E192: Sales | F192: 19505.84 | G192: PIBB | I192: EQT*190100475 | J192: PIBB | K192: 68.6 | L192: OMNIT | M192: MYR | P192: 23 | Q192: 23S090119PIBBOMNIT | R192: 0 | S192: 19.51 | T192: 0 | U192: 1
A193: 5347 | B193: TENAGA NASIONAL BHD | C193: 2019-01-09 | D193: DTKF | E193: Sales | F193: 20899.12 | G193: PIBB | I193: EQT*190100466 | J193: PIBB | K193: 73.5 | L193: OMNIT | M193: MYR | P193: 23 | Q193: 23S090119PIBBOMNIT | R193: 0 | S193: 20.9 | T193: 0 | U193: 1
A194: 5347 | B194: TENAGA NASIONAL BHD | C194: 2019-01-09 | D194: PRSB | E194: Sales | F194: 30691.39 | G194: TASEC | I194: EQT*190100621 | J194: TASEC | K194: 107.9 | L194: OMNIT | M194: MYR | P194: 23 | Q194: 23S090119TASECOMNIT | R194: 1 | S194: =ROUND(F194*TPerc/100,2) -> 30.69 | T194: =MIN(TOmni,SUMIFS(S:S,Q:Q,Q194)*R194) -> 200 | U194: 1
A195: 5347 | B195: TENAGA NASIONAL BHD | C195: 2019-01-09 | D195: YS | E195: Sales | F195: 72543.28 | G195: TASEC | I195: EQT*190100623 | J195: TASEC | K195: 255.05 | L195: OMNIT | M195: MYR | P195: 23 | Q195: =P195&LEFT(E195,1)&TEXT(C195,"ddmmyy")&J195&L195 -> 23S090119TASECOMNIT | R195: 0 | S195: 72.54 | T195: 0 | U195: =MONTH(C195) -> 1
A196: 5347 | B196: TENAGA NASIONAL BHD | C196: 2019-01-09 | D196: YSIF | E196: Sales | F196: 90679.1 | G196: TASEC | I196: EQT*190100624 | J196: TASEC | K196: 318.81 | L196: OMNIT | M196: MYR | P196: =IF(A196=A195,P195,P195+1) -> 23 | Q196: 23S090119TASECOMNIT | R196: =IF(Q196=Q195,0,1) -> 0 | S196: 90.68 | T196: 0 | U196: 1
A197: 5347 | B197: TENAGA NASIONAL BHD | C197: 2019-01-09 | D197: TAYS2 | E197: Sales | F197: 93469.23 | G197: TASEC | I197: EQT*190100622 | J197: TASEC | K197: 328.62 | L197: OMNIT | M197: MYR | P197: 23 | Q197: 23S090119TASECOMNIT | R197: 0 | S197: 93.47 | T197: 0 | U197: 1
A198: 7579 | B198: AWC BERHAD | C198: 2019-01-10 | D198: AG-TJK1 | E198: Purchase | F198: 4339.43 | G198: KLCS | I198: EQT*190100781 | J198: KLCS | K198: 15.13 | L198: OMNIT | M198: MYR | P198: 24 | Q198: 24P100119KLCSOMNIT | R198: 1 | S198: 4.34 | T198: 101.25 | U198: 1
A199: 7579 | B199: AWC BERHAD | C199: 2019-01-10 | D199: AG-JOH | E199: Purchase | F199: 9862.34 | G199: KLCS | I199: EQT*190100779 | J199: KLCS | K199: 34.39 | L199: OMNIT | M199: MYR | P199: 24 | Q199: 24P100119KLCSOMNIT | R199: 0 | S199: 9.86 | T199: 0 | U199: 1
A200: 7579 | B200: AWC BERHAD | C200: 2019-01-10 | D200: AG-SKS | E200: Purchase | F200: 18409.69 | G200: KLCS | I200: EQT*190100780 | J200: KLCS | K200: 64.19 | L200: OMNIT | M200: MYR | P200: 24 | Q200: 24P100119KLCSOMNIT | R200: 0 | S200: 18.41 | T200: 0 | U200: 1
... 3170 more rows

Sheet SData1 (hidden)
A1: Historydate | B1: FundName | C1: marketvalue | D1: UTFlag | E1: Fundgroup
A2: 2019-01-31 | B2: AG-CHAR | C2: 115.56 | D2: 0 | E2: OMNIT | F2: =MAX(0,ROUND(C2*CPerc*(A2-EOMONTH(A2,-1))/IF(OR(MOD(YEAR(A2),400)=0,AND(MOD(YEAR(A2),4)=0,MOD(YEAR(A2),100)<>0)),366, 365)/100,2)) -> 0 | G2: =MONTH(A2) -> 1
A3: 2019-01-31 | B3: AG-CHM | C3: 128.17 | D3: 0 | E3: OMNIT | F3: 0 | G3: =MONTH(A3) -> 1
A4: 2019-01-31 | B4: AG-CHS | C4: 116.1 | D4: 0 | E4: OMNIT | F4: 0 | G4: 1
A5: 2019-01-31 | B5: AG-CSM | C5: 102.9 | D5: 0 | E5: OMNIT | F5: 0 | G5: 1
A6: 2019-01-31 | B6: AG-JOH | C6: -1787.07 | D6: 0 | E6: OMNIT | F6: 0 | G6: 1
A7: 2019-01-31 | B7: AG-JOS | C7: 106606.08 | D7: 0 | E7: OMNIT | F7: 2.72 | G7: 1
A8: 2019-01-31 | B8: AG-KJK | C8: 535060.84 | D8: 0 | E8: OMNIT | F8: 13.63 | G8: 1
A9: 2019-01-31 | B9: AG-KPB | C9: 511554.49 | D9: 0 | E9: OMNIT | F9: 13.03 | G9: 1
A10: 2019-01-31 | B10: AG-LHL | C10: 116.61 | D10: 0 | E10: OMNIT | F10: 0 | G10: 1
A11: 2019-01-31 | B11: AG-NCH | C11: 7178.96 | D11: 0 | E11: OMNIT | F11: 0.18 | G11: 1
A12: 2019-01-31 | B12: AG-NWS | C12: 1126.03 | D12: 0 | E12: OMNIT | F12: 0.03 | G12: 1
A13: 2019-01-31 | B13: AG-RAZ | C13: 412.89 | D13: 0 | E13: OMNIT | F13: 0.01 | G13: 1
A14: 2019-01-31 | B14: AG-RIHN | C14: 107.96 | D14: 0 | E14: OMNIT | F14: 0 | G14: 1
A15: 2019-01-31 | B15: AG-SBL | C15: 111.82 | D15: 0 | E15: OMNIT | F15: 0 | G15: 1
A16: 2019-01-31 | B16: AG-SBY | C16: 137.26 | D16: 0 | E16: OMNIT | F16: 0 | G16: 1
A17: 2019-01-31 | B17: AG-SHT | C17: 165.71 | D17: 0 | E17: OMNIT | F17: 0 | G17: 1
A18: 2019-01-31 | B18: AG-SKS | C18: 380630.47 | D18: 0 | E18: OMNIT | F18: 9.7 | G18: 1
A19: 2019-01-31 | B19: AG-SLS | C19: 53964.87 | D19: 0 | E19: OMNIT | F19: 1.37 | G19: 1
A20: 2019-01-31 | B20: AG-SMC | C20: 101064.82 | D20: 0 | E20: OMNIT | F20: 2.58 | G20: 1
A21: 2019-01-31 | B21: AG-SSY | C21: 143.61 | D21: 0 | E21: OMNIT | F21: 0 | G21: 1
A22: 2019-01-31 | B22: AG-TGN | C22: 109492.64 | D22: 0 | E22: OMNIT | F22: 2.79 | G22: 1
A23: 2019-01-31 | B23: AG-THT | C23: 792639.75 | D23: 0 | E23: OMNIT | F23: 20.2 | G23: 1
A24: 2019-01-31 | B24: AG-TJK1 | C24: 89768.37 | D24: 0 | E24: OMNIT | F24: 2.29 | G24: 1
A25: 2019-01-31 | B25: AG-TKY | C25: 109.18 | D25: 0 | E25: OMNIT | F25: 0 | G25: 1
A26: 2019-01-31 | B26: AG-TSF | C26: 105.64 | D26: 0 | E26: OMNIT | F26: 0 | G26: 1
A27: 2019-01-31 | B27: AG-TSH | C27: 89.59 | D27: 0 | E27: OMNIT | F27: 0 | G27: 1
A28: 2019-01-31 | B28: AG-YCM | C28: 53972.85 | D28: 0 | E28: OMNIT | F28: 1.38 | G28: 1
A29: 2019-01-31 | B29: AG-YSP | C29: 229.24 | D29: 0 | E29: OMNIT | F29: 0.01 | G29: 1
A30: 2019-01-31 | B30: AG-YTC | C30: 428764.32 | D30: 0 | E30: OMNIT | F30: 10.92 | G30: 1
A31: 2019-01-31 | B31: AZI | C31: 1345 | D31: 0 | E31: OMNIT | F31: 0.03 | G31: 1
A32: 2019-01-31 | B32: CALV | C32: 103.16 | D32: 0 | E32: OMNIT | F32: 0 | G32: 1
A33: 2019-01-31 | B33: CLL | C33: 104.63 | D33: 0 | E33: OMNIT | F33: 0 | G33: 1
A34: 2019-01-31 | B34: CWK2 | C34: 465702.96 | D34: 0 | E34: OMNIT | F34: 11.87 | G34: 1
A35: 2019-01-31 | B35: CYT | C35: 579207.74 | D35: 0 | E35: OMNIT | F35: 14.76 | G35: 1
A36: 2019-01-31 | B36: DTKF | C36: 1341014.69 | D36: 0 | E36: OMNIT | F36: 34.17 | G36: 1
A37: 2019-01-31 | B37: DTTK | C37: 474051846.2 | D37: 0 | E37: OMNIT | F37: 12078.58 | G37: 1
A38: 2019-01-31 | B38: GBH | C38: 119.74 | D38: 0 | E38: OMNIT | F38: 0 | G38: 1
A39: 2019-01-31 | B39: GPH | C39: 121.53 | D39: 0 | E39: OMNIT | F39: 0 | G39: 1
A40: 2019-01-31 | B40: HYH | C40: 100.41 | D40: 0 | E40: OMNIT | F40: 0 | G40: 1
A41: 2019-01-31 | B41: KHC | C41: 97.78 | D41: 0 | E41: OMNIT | F41: 0 | G41: 1
A42: 2019-01-31 | B42: LAU | C42: 79.95 | D42: 0 | E42: OMNIT | F42: 0 | G42: 1
A43: 2019-01-31 | B43: LFS | C43: 834142.26 | D43: 0 | E43: OMNIT | F43: 21.25 | G43: 1
A44: 2019-01-31 | B44: LGY | C44: 83.71 | D44: 0 | E44: OMNIT | F44: 0 | G44: 1
A45: 2019-01-31 | B45: LMH | C45: 368.05 | D45: 0 | E45: OMNIT | F45: 0.01 | G45: 1
A46: 2019-01-31 | B46: LSK | C46: 97.78 | D46: 0 | E46: OMNIT | F46: 0 | G46: 1
A47: 2019-01-31 | B47: LWC | C47: 54803.02 | D47: 0 | E47: OMNIT | F47: 1.4 | G47: 1
A48: 2019-01-31 | B48: LWL | C48: 84795.56 | D48: 0 | E48: OMNIT | F48: 2.16 | G48: 1
A49: 2019-01-31 | B49: MACEY1 | C49: 104903.74 | D49: 0 | E49: OMNIT | F49: 2.67 | G49: 1
A50: 2019-01-31 | B50: MF | C50: 604731.45 | D50: 0 | E50: OMNIT | F50: 15.41 | G50: 1
A51: 2019-01-31 | B51: PRSB | C51: 2247103.19 | D51: 0 | E51: OMNIT | F51: 57.25 | G51: 1
A52: 2019-01-31 | B52: RB | C52: 0 | D52: 0 | E52: OMNIT | F52: 0 | G52: 1
A53: 2019-01-31 | B53: RM-CAC | C53: 105.78 | D53: 0 | E53: OMNIT | F53: 0 | G53: 1
A54: 2019-01-31 | B54: RM-CCH | C54: 122.12 | D54: 0 | E54: OMNIT | F54: 0 | G54: 1
A55: 2019-01-31 | B55: RM-CFC | C55: 105.79 | D55: 0 | E55: OMNIT | F55: 0 | G55: 1
A56: 2019-01-31 | B56: RM-CHOU | C56: 129.96 | D56: 0 | E56: OMNIT | F56: 0 | G56: 1
A57: 2019-01-31 | B57: RM-CLY | C57: 684.44 | D57: 0 | E57: OMNIT | F57: 0.02 | G57: 1
A58: 2019-01-31 | B58: RM-CMY | C58: 2644.23 | D58: 0 | E58: OMNIT | F58: 0.07 | G58: 1
A59: 2019-01-31 | B59: RM-CNK | C59: 630.51 | D59: 0 | E59: OMNIT | F59: 0.02 | G59: 1
A60: 2019-01-31 | B60: RM-CSM | C60: 105.79 | D60: 0 | E60: OMNIT | F60: 0 | G60: 1
A61: 2019-01-31 | B61: RM-CSP | C61: 178.53 | D61: 0 | E61: OMNIT | F61: 0 | G61: 1
A62: 2019-01-31 | B62: RM-CWC | C62: 110.59 | D62: 0 | E62: OMNIT | F62: 0 | G62: 1
A63: 2019-01-31 | B63: RM-CWM | C63: 103.84 | D63: 0 | E63: OMNIT | F63: 0 | G63: 1
A64: 2019-01-31 | B64: RM-CYL | C64: 688.61 | D64: 0 | E64: OMNIT | F64: 0.02 | G64: 1
A65: 2019-01-31 | B65: RM-ESW | C65: 108.92 | D65: 0 | E65: OMNIT | F65: 0 | G65: 1
A66: 2019-01-31 | B66: RM-FSB | C66: 244.11 | D66: 0 | E66: OMNIT | F66: =MAX(0,ROUND(C66*CPerc*(A66-EOMONTH(A66,-1))/IF(OR(MOD(YEAR(A66),400)=0,AND(MOD(YEAR(A66),4)=0,MOD(YEAR(A66),100)<>0)),366, 365)/100,2)) -> 0.01 | G66: 1
A67: 2019-01-31 | B67: RM-GUNA | C67: 258.32 | D67: 0 | E67: OMNIT | F67: 0.01 | G67: =MONTH(A67) -> 1
A68: 2019-01-31 | B68: RM-HKM | C68: 105.78 | D68: 0 | E68: OMNIT | F68: 0 | G68: 1
A69: 2019-01-31 | B69: RM-HKT | C69: 106.07 | D69: 0 | E69: OMNIT | F69: 0 | G69: 1
A70: 2019-01-31 | B70: RM-HOK | C70: 110.86 | D70: 0 | E70: OMNIT | F70: 0 | G70: 1
A71: 2019-01-31 | B71: RM-IREN | C71: 106.06 | D71: 0 | E71: OMNIT | F71: 0 | G71: 1
A72: 2019-01-31 | B72: RM-KSF | C72: 100 | D72: 0 | E72: OMNIT | F72: 0 | G72: 1
A73: 2019-01-31 | B73: RM-KUMA | C73: 107.26 | D73: 0 | E73: OMNIT | F73: 0 | G73: 1
A74: 2019-01-31 | B74: RM-LCM | C74: 112.31 | D74: 0 | E74: OMNIT | F74: 0 | G74: 1
A75: 2019-01-31 | B75: RM-LHL | C75: 173.83 | D75: 0 | E75: OMNIT | F75: 0 | G75: 1
A76: 2019-01-31 | B76: RM-LKH | C76: 103.26 | D76: 0 | E76: OMNIT | F76: 0 | G76: 1
A77: 2019-01-31 | B77: RM-LKK | C77: 184.42 | D77: 0 | E77: OMNIT | F77: 0 | G77: 1
A78: 2019-01-31 | B78: RM-LKS | C78: 107.95 | D78: 0 | E78: OMNIT | F78: 0 | G78: 1
A79: 2019-01-31 | B79: RM-LKT | C79: 609.32 | D79: 0 | E79: OMNIT | F79: 0.02 | G79: 1
A80: 2019-01-31 | B80: RM-LMK | C80: 107.96 | D80: 0 | E80: OMNIT | F80: 0 | G80: 1
A81: 2019-01-31 | B81: RM-LPC | C81: 198.5 | D81: 0 | E81: OMNIT | F81: 0.01 | G81: 1
A82: 2019-01-31 | B82: RM-LPT | C82: 124.83 | D82: 0 | E82: OMNIT | F82: 0 | G82: 1
A83: 2019-01-31 | B83: RM-LSC | C83: 107.95 | D83: 0 | E83: OMNIT | F83: 0 | G83: 1
A84: 2019-01-31 | B84: RM-LSK | C84: 105.78 | D84: 0 | E84: OMNIT | F84: 0 | G84: 1
A85: 2019-01-31 | B85: RM-LYH | C85: 117.42 | D85: 0 | E85: OMNIT | F85: 0 | G85: 1
A86: 2019-01-31 | B86: RM-LYL | C86: 6664.47 | D86: 0 | E86: OMNIT | F86: 0.17 | G86: 1
A87: 2019-01-31 | B87: RM-NLH | C87: 111.48 | D87: 0 | E87: OMNIT | F87: 0 | G87: 1
A88: 2019-01-31 | B88: RM-NLT | C88: 283.96 | D88: 0 | E88: OMNIT | F88: 0.01 | G88: 1
A89: 2019-01-31 | B89: RM-NSL | C89: 246.49 | D89: 0 | E89: OMNIT | F89: 0.01 | G89: 1
A90: 2019-01-31 | B90: RM-NZAM | C90: 172.48 | D90: 0 | E90: OMNIT | F90: 0 | G90: 1
A91: 2019-01-31 | B91: RM-OKK | C91: 218.23 | D91: 0 | E91: OMNIT | F91: 0.01 | G91: 1
A92: 2019-01-31 | B92: RM-OLH | C92: 107.02 | D92: 0 | E92: OMNIT | F92: 0 | G92: 1
A93: 2019-01-31 | B93: RM-PKK | C93: 140.46 | D93: 0 | E93: OMNIT | F93: 0 | G93: 1
A94: 2019-01-31 | B94: RM-PNB | C94: 107.02 | D94: 0 | E94: OMNIT | F94: 0 | G94: 1
A95: 2019-01-31 | B95: RM-ROSLY | C95: 117.03 | D95: 0 | E95: OMNIT | F95: 0 | G95: 1
A96: 2019-01-31 | B96: RM-SBC | C96: 61.71 | D96: 0 | E96: OMNIT | F96: 0 | G96: 1
A97: 2019-01-31 | B97: RM-SMK | C97: 89450.24 | D97: 0 | E97: OMNIT | F97: 2.28 | G97: 1
A98: 2019-01-31 | B98: RM-TCN | C98: 110.52 | D98: 0 | E98: OMNIT | F98: 0 | G98: 1
A99: 2019-01-31 | B99: RM-TKF | C99: 8365.75 | D99: 0 | E99: OMNIT | F99: 0.21 | G99: 1
A100: 2019-01-31 | B100: RM-TKS | C100: 113.05 | D100: 0 | E100: OMNIT | F100: 0 | G100: 1
A101: 2019-01-31 | B101: RM-TMY | C101: 71425.22 | D101: 0 | E101: OMNIT | F101: 1.82 | G101: 1
A102: 2019-01-31 | B102: RM-TPY | C102: 66921.28 | D102: 0 | E102: OMNIT | F102: 1.71 | G102: 1
A103: 2019-01-31 | B103: RM-TSB | C103: 2855.34 | D103: 0 | E103: OMNIT | F103: 0.07 | G103: 1
A104: 2019-01-31 | B104: RM-WKC | C104: 190.12 | D104: 0 | E104: OMNIT | F104: 0 | G104: 1
A105: 2019-01-31 | B105: RM-WLH | C105: 107.02 | D105: 0 | E105: OMNIT | F105: 0 | G105: 1
A106: 2019-01-31 | B106: RM-WNP | C106: 115.09 | D106: 0 | E106: OMNIT | F106: 0 | G106: 1
A107: 2019-01-31 | B107: RM-YCC | C107: 107.04 | D107: 0 | E107: OMNIT | F107: 0 | G107: 1
A108: 2019-01-31 | B108: RM-YCL | C108: 134.14 | D108: 0 | E108: OMNIT | F108: 0 | G108: 1
A109: 2019-01-31 | B109: RM-YKT | C109: 107.07 | D109: 0 | E109: OMNIT | F109: 0 | G109: 1
A110: 2019-01-31 | B110: RM-YLF | C110: 240.17 | D110: 0 | E110: OMNIT | F110: 0.01 | G110: 1
A111: 2019-01-31 | B111: RM-YLY | C111: 143.36 | D111: 0 | E111: OMNIT | F111: 0 | G111: 1
A112: 2019-01-31 | B112: RM-YPK | C112: 108.92 | D112: 0 | E112: OMNIT | F112: 0 | G112: 1
A113: 2019-01-31 | B113: RM-YSL | C113: 327.67 | D113: 0 | E113: OMNIT | F113: 0.01 | G113: 1
A114: 2019-01-31 | B114: RTMOEY | C114: 2002821.42 | D114: 0 | E114: OMNIT | F114: 51.03 | G114: 1
A115: 2019-01-31 | B115: SEC2 | C115: 3002262.63 | D115: 0 | E115: OMNIT2 | F115: 76.5 | G115: 1
A116: 2019-01-31 | B116: SFY | C116: 32.8 | D116: 0 | E116: OMNIT | F116: 0 | G116: 1
A117: 2019-01-31 | B117: SIA | C117: 781879.61 | D117: 0 | E117: OMNIT | F117: 19.92 | G117: 1
A118: 2019-01-31 | B118: SIA2 | C118: 265599.77 | D118: 0 | E118: OMNIT | F118: 6.77 | G118: 1
A119: 2019-01-31 | B119: TAC-RBH | C119: 117.07 | D119: 0 | E119: OMNIT | F119: 0 | G119: 1
A120: 2019-01-31 | B120: TAYS2 | C120: 4982827.44 | D120: 0 | E120: OMNIT | F120: 126.96 | G120: 1
A121: 2019-01-31 | B121: TC-CBG | C121: 61232.68 | D121: 0 | E121: OMNIT | F121: 1.56 | G121: 1
A122: 2019-01-31 | B122: TC-CKY | C122: 4847.69 | D122: 0 | E122: OMNIT | F122: 0.12 | G122: 1
A123: 2019-01-31 | B123: TC-HWY | C123: 474174.81 | D123: 0 | E123: OMNIT | F123: 12.08 | G123: 1
A124: 2019-01-31 | B124: TCK | C124: 92.89 | D124: 0 | E124: OMNIT | F124: 0 | G124: 1
A125: 2019-01-31 | B125: TC-LBK | C125: 732.52 | D125: 0 | E125: OMNIT | F125: 0.02 | G125: 1
A126: 2019-01-31 | B126: TC-LHG | C126: 126.06 | D126: 0 | E126: OMNIT | F126: 0 | G126: 1
A127: 2019-01-31 | B127: TC-MARI | C127: 69889.25 | D127: 0 | E127: OMNIT | F127: 1.78 | G127: 1
A128: 2019-01-31 | B128: TC-OKK | C128: 123 | D128: 0 | E128: OMNIT | F128: 0 | G128: 1
A129: 2019-01-31 | B129: ULIN | C129: 17738.11 | D129: 0 | E129: OMNIT | F129: 0.45 | G129: 1
A130: 2019-01-31 | B130: VL-ANU | C130: 107671.39 | D130: 0 | E130: OMNIT | F130: =MAX(0,ROUND(C130*CPerc*(A130-EOMONTH(A130,-1))/IF(OR(MOD(YEAR(A130),400)=0,AND(MOD(YEAR(A130),4)=0,MOD(YEAR(A130),100)<>0)),366, 365)/100,2)) -> 2.74 | G130: 1
A131: 2019-01-31 | B131: VL-CCK | C131: 1997806.32 | D131: 0 | E131: OMNIT | F131: 50.9 | G131: =MONTH(A131) -> 1
A132: 2019-01-31 | B132: VL-CFK | C132: 304437.62 | D132: 0 | E132: OMNIT | F132: 7.76 | G132: 1
A133: 2019-01-31 | B133: VL-CMC | C133: 461863.61 | D133: 0 | E133: OMNIT | F133: 11.77 | G133: 1
A134: 2019-01-31 | B134: VL-CSK | C134: 306310.1 | D134: 0 | E134: OMNIT | F134: 7.8 | G134: 1
A135: 2019-01-31 | B135: VL-CSY | C135: 189820.36 | D135: 0 | E135: OMNIT | F135: 4.84 | G135: 1
A136: 2019-01-31 | B136: VL-IMJ | C136: 2024536.95 | D136: 0 | E136: OMNIT | F136: 51.58 | G136: 1
A137: 2019-01-31 | B137: VL-LKS | C137: 14838430.35 | D137: 0 | E137: OMNIT | F137: 378.08 | G137: 1
A138: 2019-01-31 | B138: VL-LNH | C138: 89698.92 | D138: 0 | E138: OMNIT | F138: 2.29 | G138: 1
A139: 2019-01-31 | B139: VL-LPS | C139: 3649.2 | D139: 0 | E139: OMNIT | F139: 0.09 | G139: 1
A140: 2019-01-31 | B140: VL-LWD | C140: 1049866.16 | D140: 0 | E140: OMNIT | F140: 26.75 | G140: 1
A141: 2019-01-31 | B141: VL-MAA | C141: 226866.71 | D141: 0 | E141: OMNIT | F141: 5.78 | G141: 1
A142: 2019-01-31 | B142: VL-MAK | C142: 121471.03 | D142: 0 | E142: OMNIT | F142: 3.1 | G142: 1
A143: 2019-01-31 | B143: VL-MSG | C143: 1848987.94 | D143: 0 | E143: OMNIT | F143: 47.11 | G143: 1
A144: 2019-01-31 | B144: VL-NAN | C144: 459324.21 | D144: 0 | E144: OMNIT | F144: 11.7 | G144: 1
A145: 2019-01-31 | B145: VL-NCM | C145: 244686.27 | D145: 0 | E145: OMNIT | F145: 6.23 | G145: 1
A146: 2019-01-31 | B146: VL-RAD | C146: 289386.69 | D146: 0 | E146: OMNIT | F146: 7.37 | G146: 1
A147: 2019-01-31 | B147: VL-SIC | C147: 3215561.33 | D147: 0 | E147: OMNIT | F147: 81.93 | G147: 1
A148: 2019-01-31 | B148: VL-TAAM | C148: 943025.25 | D148: 0 | E148: OMNIT | F148: 24.03 | G148: 1
A149: 2019-01-31 | B149: VL-WFR | C149: 512416.6 | D149: 0 | E149: OMNIT | F149: 13.06 | G149: 1
A150: 2019-01-31 | B150: VL-WKM | C150: 272052.9 | D150: 0 | E150: OMNIT | F150: 6.93 | G150: 1
A151: 2019-01-31 | B151: VL-WPI | C151: 213261.66 | D151: 0 | E151: OMNIT | F151: 5.43 | G151: 1
A152: 2019-01-31 | B152: VL-YCM | C152: 81412.25 | D152: 0 | E152: OMNIT | F152: 2.07 | G152: 1
A153: 2019-01-31 | B153: VL-YHN | C153: 232419.05 | D153: 0 | E153: OMNIT | F153: 5.92 | G153: 1
A154: 2019-01-31 | B154: VL-ZUL | C154: 425711.67 | D154: 0 | E154: OMNIT | F154: 10.85 | G154: 1
A155: 2019-01-31 | B155: VM-WAS | C155: 992845.05 | D155: 0 | E155: OMNIT | F155: 25.3 | G155: 1
A156: 2019-01-31 | B156: WFL2 | C156: 439625.27 | D156: 0 | E156: OMNIT | F156: 11.2 | G156: 1
A157: 2019-01-31 | B157: WFL3 | C157: 625869.18 | D157: 0 | E157: OMNIT | F157: 15.95 | G157: 1
A158: 2019-01-31 | B158: WJM | C158: 133.49 | D158: 0 | E158: OMNIT | F158: 0 | G158: 1
A159: 2019-01-31 | B159: WWK | C159: 237353.56 | D159: 0 | E159: OMNIT | F159: 6.05 | G159: 1
A160: 2019-01-31 | B160: YS | C160: 3884228.12 | D160: 0 | E160: OMNIT | F160: 98.97 | G160: 1
A161: 2019-01-31 | B161: YSIF | C161: 8276451.2 | D161: 0 | E161: OMNIT | F161: 210.88 | G161: 1
A162: 2019-01-31 | B162: YST | C162: 144.14 | D162: 0 | E162: OMNIT | F162: 0 | G162: 1
A163: 2019-02-28 | B163: AG-CHAR | C163: 115.56 | D163: 0 | E163: OMNIT | F163: 0 | G163: 2
A164: 2019-02-28 | B164: AG-CHM | C164: 128.17 | D164: 0 | E164: OMNIT | F164: 0 | G164: 2
A165: 2019-02-28 | B165: AG-CHS | C165: 116.1 | D165: 0 | E165: OMNIT | F165: 0 | G165: 2
A166: 2019-02-28 | B166: AG-CSM | C166: 102.9 | D166: 0 | E166: OMNIT | F166: 0 | G166: 2
A167: 2019-02-28 | B167: AG-JOS | C167: 107267.21 | D167: 0 | E167: OMNIT | F167: 2.47 | G167: 2
A168: 2019-02-28 | B168: AG-KJK | C168: 541440.37 | D168: 0 | E168: OMNIT | F168: 12.46 | G168: 2
A169: 2019-02-28 | B169: AG-KPB | C169: 518290.17 | D169: 0 | E169: OMNIT | F169: 11.93 | G169: 2
A170: 2019-02-28 | B170: AG-LHL | C170: 116.61 | D170: 0 | E170: OMNIT | F170: 0 | G170: 2
A171: 2019-02-28 | B171: AG-NCH | C171: 7000.9 | D171: 0 | E171: OMNIT | F171: 0.16 | G171: 2
A172: 2019-02-28 | B172: AG-NWS | C172: 1128.52 | D172: 0 | E172: OMNIT | F172: 0.03 | G172: 2
A173: 2019-02-28 | B173: AG-RAZ | C173: 412.88 | D173: 0 | E173: OMNIT | F173: 0.01 | G173: 2
A174: 2019-02-28 | B174: AG-RIHN | C174: 107.96 | D174: 0 | E174: OMNIT | F174: 0 | G174: 2
A175: 2019-02-28 | B175: AG-SBL | C175: 111.82 | D175: 0 | E175: OMNIT | F175: 0 | G175: 2
A176: 2019-02-28 | B176: AG-SBY | C176: 137.26 | D176: 0 | E176: OMNIT | F176: 0 | G176: 2
A177: 2019-02-28 | B177: AG-SHT | C177: 165.71 | D177: 0 | E177: OMNIT | F177: 0 | G177: 2
A178: 2019-02-28 | B178: AG-SKS | C178: 389827.19 | D178: 0 | E178: OMNIT | F178: 8.97 | G178: 2
A179: 2019-02-28 | B179: AG-SLS | C179: 52335.61 | D179: 0 | E179: OMNIT | F179: 1.2 | G179: 2
A180: 2019-02-28 | B180: AG-SMC | C180: 101324.63 | D180: 0 | E180: OMNIT | F180: 2.33 | G180: 2
A181: 2019-02-28 | B181: AG-SSY | C181: 143.61 | D181: 0 | E181: OMNIT | F181: 0 | G181: 2
A182: 2019-02-28 | B182: AG-TGN | C182: 118139.08 | D182: 0 | E182: OMNIT | F182: 2.72 | G182: 2
A183: 2019-02-28 | B183: AG-THT | C183: 819169.91 | D183: 0 | E183: OMNIT | F183: 18.85 | G183: 2
A184: 2019-02-28 | B184: AG-TJK1 | C184: 89904.7 | D184: 0 | E184: OMNIT | F184: 2.07 | G184: 2
A185: 2019-02-28 | B185: AG-TKY | C185: 109.18 | D185: 0 | E185: OMNIT | F185: 0 | G185: 2
A186: 2019-02-28 | B186: AG-TSF | C186: 105.64 | D186: 0 | E186: OMNIT | F186: 0 | G186: 2
A187: 2019-02-28 | B187: AG-TSH | C187: 89.59 | D187: 0 | E187: OMNIT | F187: 0 | G187: 2
A188: 2019-02-28 | B188: AG-YCM | C188: 52343.58 | D188: 0 | E188: OMNIT | F188: 1.2 | G188: 2
A189: 2019-02-28 | B189: AG-YSP | C189: 229.23 | D189: 0 | E189: OMNIT | F189: 0.01 | G189: 2
A190: 2019-02-28 | B190: AG-YTC | C190: 446157.19 | D190: 0 | E190: OMNIT | F190: 10.27 | G190: 2
A191: 2019-02-28 | B191: AZI | C191: 1348.03 | D191: 0 | E191: OMNIT | F191: 0.03 | G191: 2
A192: 2019-02-28 | B192: CALV | C192: 103.16 | D192: 0 | E192: OMNIT | F192: 0 | G192: 2
A193: 2019-02-28 | B193: CLL | C193: 104.63 | D193: 0 | E193: OMNIT | F193: 0 | G193: 2
A194: 2019-02-28 | B194: CWK2 | C194: 466953.46 | D194: 0 | E194: OMNIT | F194: =MAX(0,ROUND(C194*CPerc*(A194-EOMONTH(A194,-1))/IF(OR(MOD(YEAR(A194),400)=0,AND(MOD(YEAR(A194),4)=0,MOD(YEAR(A194),100)<>0)),366, 365)/100,2)) -> 10.75 | G194: 2
A195: 2019-02-28 | B195: CYT | C195: 580073.07 | D195: 0 | E195: OMNIT | F195: 13.35 | G195: =MONTH(A195) -> 2
A196: 2019-02-28 | B196: DTKF | C196: 1439100.69 | D196: 0 | E196: OMNIT | F196: 33.12 | G196: 2
A197: 2019-02-28 | B197: DTTK | C197: 456016424 | D197: 0 | E197: OMNIT | F197: 10494.62 | G197: 2
A198: 2019-02-28 | B198: GBH | C198: 119.74 | D198: 0 | E198: OMNIT | F198: 0 | G198: 2
A199: 2019-02-28 | B199: GPH | C199: 121.53 | D199: 0 | E199: OMNIT | F199: 0 | G199: 2
A200: 2019-02-28 | B200: HYH | C200: 100.41 | D200: 0 | E200: OMNIT | F200: 0 | G200: 2
... 1231 more rows

Sheet TranCostJournal
A4: FundCode | B4: Asset Acc Type | C4: GL Code | D4: Debit Amount | E4: Credit Amount | F4: Description
A5: AG-JOS | B5: 000 | C5: 500000 | D5: 0 | E5: 23.54 | F5: Transaction Fee May 2019
A6: AG-JOS | B6: 000 | C6: 710117 | D6: 23.54 | E6: 0 | F6: Transaction Fee May 2019
A7: AG-SKS | B7: 000 | C7: 500000 | D7: 0 | E7: 155.97 | F7: Transaction Fee May 2019
A8: AG-SKS | B8: 000 | C8: 710117 | D8: 155.97 | E8: 0 | F8: Transaction Fee May 2019
A9: AG-TJK1 | B9: 000 | C9: 500000 | D9: 0 | E9: 36.13 | F9: Transaction Fee May 2019
A10: AG-TJK1 | B10: 000 | C10: 710117 | D10: 36.13 | E10: 0 | F10: Transaction Fee May 2019
A11: CWK2 | B11: 000 | C11: 500000 | D11: 0 | E11: 17.9 | F11: Transaction Fee May 2019
A12: CWK2 | B12: 000 | C12: 710117 | D12: 17.9 | E12: 0 | F12: Transaction Fee May 2019
A13: CYT | B13: 000 | C13: 500000 | D13: 0 | E13: 32 | F13: Transaction Fee May 2019
A14: CYT | B14: 000 | C14: 710117 | D14: 32 | E14: 0 | F14: Transaction Fee May 2019
A15: DTKF | B15: 000 | C15: 500000 | D15: 0 | E15: 108.75 | F15: Transaction Fee May 2019
A16: DTKF | B16: 000 | C16: 710117 | D16: 108.75 | E16: 0 | F16: Transaction Fee May 2019
A17: LFS | B17: 000 | C17: 500000 | D17: 0 | E17: 38.59 | F17: Transaction Fee May 2019
A18: LFS | B18: 000 | C18: 710117 | D18: 38.59 | E18: 0 | F18: Transaction Fee May 2019
A19: LWL | B19: 000 | C19: 500000 | D19: 0 | E19: 46.28 | F19: Transaction Fee May 2019
A20: LWL | B20: 000 | C20: 710117 | D20: 46.28 | E20: 0 | F20: Transaction Fee May 2019
A21: MF | B21: 000 | C21: 500000 | D21: 0 | E21: 28.63 | F21: Transaction Fee May 2019
A22: MF | B22: 000 | C22: 710117 | D22: 28.63 | E22: 0 | F22: Transaction Fee May 2019
A23: PRSB | B23: 000 | C23: 500000 | D23: 0 | E23: 54.3 | F23: Transaction Fee May 2019
A24: PRSB | B24: 000 | C24: 710117 | D24: 54.3 | E24: 0 | F24: Transaction Fee May 2019
A25: RTMOEY | B25: 000 | C25: 500000 | D25: 0 | E25: 60.79 | F25: Transaction Fee May 2019
A26: RTMOEY | B26: 000 | C26: 710117 | D26: 60.79 | E26: 0 | F26: Transaction Fee May 2019
A27: SIA | B27: 000 | C27: 500000 | D27: 0 | E27: 36.23 | F27: Transaction Fee May 2019
A28: SIA | B28: 000 | C28: 710117 | D28: 36.23 | E28: 0 | F28: Transaction Fee May 2019
A29: SIA2 | B29: 000 | C29: 500000 | D29: 0 | E29: 8.66 | F29: Transaction Fee May 2019
A30: SIA2 | B30: 000 | C30: 710117 | D30: 8.66 | E30: 0 | F30: Transaction Fee May 2019
A31: TAYS2 | B31: 000 | C31: 500000 | D31: 0 | E31: 138.93 | F31: Transaction Fee May 2019
A32: TAYS2 | B32: 000 | C32: 710117 | D32: 138.93 | E32: 0 | F32: Transaction Fee May 2019
A33: VL-ANU | B33: 000 | C33: 500000 | D33: 0 | E33: 8.8 | F33: Transaction Fee May 2019
A34: VL-ANU | B34: 000 | C34: 710117 | D34: 8.8 | E34: 0 | F34: Transaction Fee May 2019
A35: VL-CCK | B35: 000 | C35: 500000 | D35: 0 | E35: 187.05 | F35: Transaction Fee May 2019
A36: VL-CCK | B36: 000 | C36: 710117 | D36: 187.05 | E36: 0 | F36: Transaction Fee May 2019
A37: VL-CFK | B37: 000 | C37: 500000 | D37: 0 | E37: 25 | F37: Transaction Fee May 2019
A38: VL-CFK | B38: 000 | C38: 710117 | D38: 25 | E38: 0 | F38: Transaction Fee May 2019
A39: VL-CMC | B39: 000 | C39: 500000 | D39: 0 | E39: 33.35 | F39: Transaction Fee May 2019
A40: VL-CMC | B40: 000 | C40: 710117 | D40: 33.35 | E40: 0 | F40: Transaction Fee May 2019
A41: VL-CSK | B41: 000 | C41: 500000 | D41: 0 | E41: 25.27 | F41: Transaction Fee May 2019
A42: VL-CSK | B42: 000 | C42: 710117 | D42: 25.27 | E42: 0 | F42: Transaction Fee May 2019
A43: VL-CSY | B43: 000 | C43: 500000 | D43: 0 | E43: 16 | F43: Transaction Fee May 2019
A44: VL-CSY | B44: 000 | C44: 710117 | D44: 16 | E44: 0 | F44: Transaction Fee May 2019
A45: VL-IMJ | B45: 000 | C45: 500000 | D45: 0 | E45: 235.57 | F45: Transaction Fee May 2019
A46: VL-IMJ | B46: 000 | C46: 710117 | D46: 235.57 | E46: 0 | F46: Transaction Fee May 2019
A47: VL-LKS | B47: 000 | C47: 500000 | D47: 0 | E47: 476.63 | F47: Transaction Fee May 2019
A48: VL-LKS | B48: 000 | C48: 710117 | D48: 476.63 | E48: 0 | F48: Transaction Fee May 2019
A49: VL-LNH | B49: 000 | C49: 500000 | D49: 0 | E49: 7.37 | F49: Transaction Fee May 2019
A50: VL-LNH | B50: 000 | C50: 710117 | D50: 7.37 | E50: 0 | F50: Transaction Fee May 2019
A51: VL-LWD | B51: 000 | C51: 500000 | D51: 0 | E51: 206.41 | F51: Transaction Fee May 2019
A52: VL-LWD | B52: 000 | C52: 710117 | D52: 206.41 | E52: 0 | F52: Transaction Fee May 2019
A53: VL-MAA | B53: 000 | C53: 500000 | D53: 0 | E53: 17.26 | F53: Transaction Fee May 2019
A54: VL-MAA | B54: 000 | C54: 710117 | D54: 17.26 | E54: 0 | F54: Transaction Fee May 2019
A55: VL-MAK | B55: 000 | C55: 500000 | D55: 0 | E55: 0.63 | F55: Transaction Fee May 2019
A56: VL-MAK | B56: 000 | C56: 710117 | D56: 0.63 | E56: 0 | F56: Transaction Fee May 2019
A57: VL-MSG | B57: 000 | C57: 500000 | D57: 0 | E57: 56.65 | F57: Transaction Fee May 2019
A58: VL-MSG | B58: 000 | C58: 710117 | D58: 56.65 | E58: 0 | F58: Transaction Fee May 2019
A59: VL-NAN | B59: 000 | C59: 500000 | D59: 0 | E59: 37.21 | F59: Transaction Fee May 2019
A60: VL-NAN | B60: 000 | C60: 710117 | D60: 37.21 | E60: 0 | F60: Transaction Fee May 2019
A61: VL-NCM | B61: 000 | C61: 500000 | D61: 0 | E61: 20.48 | F61: Transaction Fee May 2019
A62: VL-NCM | B62: 000 | C62: 710117 | D62: 20.48 | E62: 0 | F62: Transaction Fee May 2019
A63: VL-RAD | B63: 000 | C63: 500000 | D63: 0 | E63: 27.1 | F63: Transaction Fee May 2019
A64: VL-RAD | B64: 000 | C64: 710117 | D64: 27.1 | E64: 0 | F64: Transaction Fee May 2019
A65: VL-SIC | B65: 000 | C65: 500000 | D65: 0 | E65: 194.5 | F65: Transaction Fee May 2019
A66: VL-SIC | B66: 000 | C66: 710117 | D66: 194.5 | E66: 0 | F66: Transaction Fee May 2019
A67: VL-TAAM | B67: 000 | C67: 500000 | D67: 0 | E67: 76.99 | F67: Transaction Fee May 2019
A68: VL-TAAM | B68: 000 | C68: 710117 | D68: 76.99 | E68: 0 | F68: Transaction Fee May 2019
A69: VL-WFR | B69: 000 | C69: 500000 | D69: 0 | E69: 18.05 | F69: Transaction Fee May 2019
A70: VL-WFR | B70: 000 | C70: 710117 | D70: 18.05 | E70: 0 | F70: Transaction Fee May 2019
A71: VL-WKM | B71: 000 | C71: 500000 | D71: 0 | E71: 23.44 | F71: Transaction Fee May 2019
A72: VL-WKM | B72: 000 | C72: 710117 | D72: 23.44 | E72: 0 | F72: Transaction Fee May 2019
A73: VL-WPI | B73: 000 | C73: 500000 | D73: 0 | E73: 17.59 | F73: Transaction Fee May 2019
A74: VL-WPI | B74: 000 | C74: 710117 | D74: 17.59 | E74: 0 | F74: Transaction Fee May 2019
A75: VL-YCM | B75: 000 | C75: 500000 | D75: 0 | E75: 7.46 | F75: Transaction Fee May 2019
A76: VL-YCM | B76: 000 | C76: 710117 | D76: 7.46 | E76: 0 | F76: Transaction Fee May 2019
A77: VL-YHN | B77: 000 | C77: 500000 | D77: 0 | E77: 19.03 | F77: Transaction Fee May 2019
A78: VL-YHN | B78: 000 | C78: 710117 | D78: 19.03 | E78: 0 | F78: Transaction Fee May 2019
A79: VL-ZUL | B79: 000 | C79: 500000 | D79: 0 | E79: 35.08 | F79: Transaction Fee May 2019
A80: VL-ZUL | B80: 000 | C80: 710117 | D80: 35.08 | E80: 0 | F80: Transaction Fee May 2019
A81: VM-WAS | B81: 000 | C81: 500000 | D81: 0 | E81: 357.22 | F81: Transaction Fee May 2019
A82: VM-WAS | B82: 000 | C82: 710117 | D82: 357.22 | E82: 0 | F82: Transaction Fee May 2019
A83: WFL2 | B83: 000 | C83: 500000 | D83: 0 | E83: 180.2 | F83: Transaction Fee May 2019
A84: WFL2 | B84: 000 | C84: 710117 | D84: 180.2 | E84: 0 | F84: Transaction Fee May 2019
A85: WFL3 | B85: 000 | C85: 500000 | D85: 0 | E85: 63.17 | F85: Transaction Fee May 2019
A86: WFL3 | B86: 000 | C86: 710117 | D86: 63.17 | E86: 0 | F86: Transaction Fee May 2019
A87: WWK | B87: 000 | C87: 500000 | D87: 0 | E87: 13.56 | F87: Transaction Fee May 2019
A88: WWK | B88: 000 | C88: 710117 | D88: 13.56 | E88: 0 | F88: Transaction Fee May 2019
A89: YS | B89: 000 | C89: 500000 | D89: 0 | E89: 51.87 | F89: Transaction Fee May 2019
A90: YS | B90: 000 | C90: 710117 | D90: 51.87 | E90: 0 | F90: Transaction Fee May 2019
A91: YSIF | B91: 000 | C91: 500000 | D91: 0 | E91: 88.74 | F91: Transaction Fee May 2019
A92: YSIF | B92: 000 | C92: 710117 | D92: 88.74 | E92: 0 | F92: Transaction Fee May 2019

Sheet CustFeeJournal
A4: FundCode | B4: Asset Acc Type | C4: GL Code | D4: Debit Amount | E4: Credit Amount | F4: Description
A5: AG-JOS | B5: 000 | C5: 500000 | D5: 0 | E5: 2.79 | F5: Custodian Fee May 2019
A6: AG-JOS | B6: 000 | C6: 700302 | D6: 2.79 | E6: 0 | F6: Custodian Fee May 2019
A7: AG-KJK | B7: 000 | C7: 500000 | D7: 0 | E7: 14.15 | F7: Custodian Fee May 2019
A8: AG-KJK | B8: 000 | C8: 700302 | D8: 14.15 | E8: 0 | F8: Custodian Fee May 2019
A9: AG-NCH | B9: 000 | C9: 500000 | D9: 0 | E9: 0.18 | F9: Custodian Fee May 2019
A10: AG-NCH | B10: 000 | C10: 700302 | D10: 0.18 | E10: 0 | F10: Custodian Fee May 2019
A11: AG-NWS | B11: 000 | C11: 500000 | D11: 0 | E11: 0.03 | F11: Custodian Fee May 2019
A12: AG-NWS | B12: 000 | C12: 700302 | D12: 0.03 | E12: 0 | F12: Custodian Fee May 2019
A13: AG-RAZ | B13: 000 | C13: 500000 | D13: 0 | E13: 0.01 | F13: Custodian Fee May 2019
A14: AG-RAZ | B14: 000 | C14: 700302 | D14: 0.01 | E14: 0 | F14: Custodian Fee May 2019
A15: AG-SKS | B15: 000 | C15: 500000 | D15: 0 | E15: 10.52 | F15: Custodian Fee May 2019
A16: AG-SKS | B16: 000 | C16: 700302 | D16: 10.52 | E16: 0 | F16: Custodian Fee May 2019
A17: AG-SLS | B17: 000 | C17: 500000 | D17: 0 | E17: 1.5 | F17: Custodian Fee May 2019
A18: AG-SLS | B18: 000 | C18: 700302 | D18: 1.5 | E18: 0 | F18: Custodian Fee May 2019
A19: AG-SMC | B19: 000 | C19: 500000 | D19: 0 | E19: 2.6 | F19: Custodian Fee May 2019
A20: AG-SMC | B20: 000 | C20: 700302 | D20: 2.6 | E20: 0 | F20: Custodian Fee May 2019
A21: AG-TGN | B21: 000 | C21: 500000 | D21: 0 | E21: 2.97 | F21: Custodian Fee May 2019
A22: AG-TGN | B22: 000 | C22: 700302 | D22: 2.97 | E22: 0 | F22: Custodian Fee May 2019
A23: AG-THT | B23: 000 | C23: 500000 | D23: 0 | E23: 20.64 | F23: Custodian Fee May 2019
A24: AG-THT | B24: 000 | C24: 700302 | D24: 20.64 | E24: 0 | F24: Custodian Fee May 2019
A25: AG-TJK1 | B25: 000 | C25: 500000 | D25: 0 | E25: 2.42 | F25: Custodian Fee May 2019
A26: AG-TJK1 | B26: 000 | C26: 700302 | D26: 2.42 | E26: 0 | F26: Custodian Fee May 2019
A27: AG-YCM | B27: 000 | C27: 500000 | D27: 0 | E27: 1.5 | F27: Custodian Fee May 2019
A28: AG-YCM | B28: 000 | C28: 700302 | D28: 1.5 | E28: 0 | F28: Custodian Fee May 2019
A29: AG-YSP | B29: 000 | C29: 500000 | D29: 0 | E29: 0.01 | F29: Custodian Fee May 2019
A30: AG-YSP | B30: 000 | C30: 700302 | D30: 0.01 | E30: 0 | F30: Custodian Fee May 2019
A31: AG-YTC | B31: 000 | C31: 500000 | D31: 0 | E31: 11.66 | F31: Custodian Fee May 2019
A32: AG-YTC | B32: 000 | C32: 700302 | D32: 11.66 | E32: 0 | F32: Custodian Fee May 2019
A33: AZI | B33: 000 | C33: 500000 | D33: 0 | E33: 0.03 | F33: Custodian Fee May 2019
A34: AZI | B34: 000 | C34: 700302 | D34: 0.03 | E34: 0 | F34: Custodian Fee May 2019
A35: CWK2 | B35: 000 | C35: 500000 | D35: 0 | E35: 12.64 | F35: Custodian Fee May 2019
A36: CWK2 | B36: 000 | C36: 700302 | D36: 12.64 | E36: 0 | F36: Custodian Fee May 2019
A37: CYT | B37: 000 | C37: 500000 | D37: 0 | E37: 15.67 | F37: Custodian Fee May 2019
A38: CYT | B38: 000 | C38: 700302 | D38: 15.67 | E38: 0 | F38: Custodian Fee May 2019
A39: DTKF | B39: 000 | C39: 500000 | D39: 0 | E39: 38.02 | F39: Custodian Fee May 2019
A40: DTKF | B40: 000 | C40: 700302 | D40: 38.02 | E40: 0 | F40: Custodian Fee May 2019
A41: DTTK | B41: 000 | C41: 500000 | D41: 0 | E41: 12276.65 | F41: Custodian Fee May 2019
A42: DTTK | B42: 000 | C42: 700302 | D42: 12276.65 | E42: 0 | F42: Custodian Fee May 2019
A43: LFS | B43: 000 | C43: 500000 | D43: 0 | E43: 21.64 | F43: Custodian Fee May 2019
A44: LFS | B44: 000 | C44: 700302 | D44: 21.64 | E44: 0 | F44: Custodian Fee May 2019
A45: LMH | B45: 000 | C45: 500000 | D45: 0 | E45: 0.01 | F45: Custodian Fee May 2019
A46: LMH | B46: 000 | C46: 700302 | D46: 0.01 | E46: 0 | F46: Custodian Fee May 2019
A47: LWC | B47: 000 | C47: 500000 | D47: 0 | E47: 1.41 | F47: Custodian Fee May 2019
A48: LWC | B48: 000 | C48: 700302 | D48: 1.41 | E48: 0 | F48: Custodian Fee May 2019
A49: LWL | B49: 000 | C49: 500000 | D49: 0 | E49: 2.54 | F49: Custodian Fee May 2019
A50: LWL | B50: 000 | C50: 700302 | D50: 2.54 | E50: 0 | F50: Custodian Fee May 2019
A51: MACEY1 | B51: 000 | C51: 500000 | D51: 0 | E51: 2.62 | F51: Custodian Fee May 2019
A52: MACEY1 | B52: 000 | C52: 700302 | D52: 2.62 | E52: 0 | F52: Custodian Fee May 2019
A53: MF | B53: 000 | C53: 500000 | D53: 0 | E53: 15.37 | F53: Custodian Fee May 2019
A54: MF | B54: 000 | C54: 700302 | D54: 15.37 | E54: 0 | F54: Custodian Fee May 2019
A55: PRSB | B55: 000 | C55: 500000 | D55: 0 | E55: 61.63 | F55: Custodian Fee May 2019
A56: PRSB | B56: 000 | C56: 700302 | D56: 61.63 | E56: 0 | F56: Custodian Fee May 2019
A57: RM-CLY | B57: 000 | C57: 500000 | D57: 0 | E57: 0.02 | F57: Custodian Fee May 2019
A58: RM-CLY | B58: 000 | C58: 700302 | D58: 0.02 | E58: 0 | F58: Custodian Fee May 2019
A59: RM-CMY | B59: 000 | C59: 500000 | D59: 0 | E59: 0.07 | F59: Custodian Fee May 2019
A60: RM-CMY | B60: 000 | C60: 700302 | D60: 0.07 | E60: 0 | F60: Custodian Fee May 2019
A61: RM-CNK | B61: 000 | C61: 500000 | D61: 0 | E61: 0.02 | F61: Custodian Fee May 2019
A62: RM-CNK | B62: 000 | C62: 700302 | D62: 0.02 | E62: 0 | F62: Custodian Fee May 2019
A63: RM-CYL | B63: 000 | C63: 500000 | D63: 0 | E63: 0.02 | F63: Custodian Fee May 2019
A64: RM-CYL | B64: 000 | C64: 700302 | D64: 0.02 | E64: 0 | F64: Custodian Fee May 2019
A65: RM-FSB | B65: 000 | C65: 500000 | D65: 0 | E65: 0.01 | F65: Custodian Fee May 2019
A66: RM-FSB | B66: 000 | C66: 700302 | D66: 0.01 | E66: 0 | F66: Custodian Fee May 2019
A67: RM-GUNA | B67: 000 | C67: 500000 | D67: 0 | E67: 0.01 | F67: Custodian Fee May 2019
A68: RM-GUNA | B68: 000 | C68: 700302 | D68: 0.01 | E68: 0 | F68: Custodian Fee May 2019
A69: RM-LKT | B69: 000 | C69: 500000 | D69: 0 | E69: 0.02 | F69: Custodian Fee May 2019
A70: RM-LKT | B70: 000 | C70: 700302 | D70: 0.02 | E70: 0 | F70: Custodian Fee May 2019
A71: RM-LPC | B71: 000 | C71: 500000 | D71: 0 | E71: 0.01 | F71: Custodian Fee May 2019
A72: RM-LPC | B72: 000 | C72: 700302 | D72: 0.01 | E72: 0 | F72: Custodian Fee May 2019
A73: RM-LYL | B73: 000 | C73: 500000 | D73: 0 | E73: 0.18 | F73: Custodian Fee May 2019
A74: RM-LYL | B74: 000 | C74: 700302 | D74: 0.18 | E74: 0 | F74: Custodian Fee May 2019
A75: RM-NLT | B75: 000 | C75: 500000 | D75: 0 | E75: 0.01 | F75: Custodian Fee May 2019
A76: RM-NLT | B76: 000 | C76: 700302 | D76: 0.01 | E76: 0 | F76: Custodian Fee May 2019
A77: RM-NSL | B77: 000 | C77: 500000 | D77: 0 | E77: 0.01 | F77: Custodian Fee May 2019
A78: RM-NSL | B78: 000 | C78: 700302 | D78: 0.01 | E78: 0 | F78: Custodian Fee May 2019
A79: RM-OKK | B79: 000 | C79: 500000 | D79: 0 | E79: 0.01 | F79: Custodian Fee May 2019
A80: RM-OKK | B80: 000 | C80: 700302 | D80: 0.01 | E80: 0 | F80: Custodian Fee May 2019
A81: RM-SMK | B81: 000 | C81: 500000 | D81: 0 | E81: 2.48 | F81: Custodian Fee May 2019
A82: RM-SMK | B82: 000 | C82: 700302 | D82: 2.48 | E82: 0 | F82: Custodian Fee May 2019
A83: RM-TKF | B83: 000 | C83: 500000 | D83: 0 | E83: 0.14 | F83: Custodian Fee May 2019
A84: RM-TKF | B84: 000 | C84: 700302 | D84: 0.14 | E84: 0 | F84: Custodian Fee May 2019
A85: RM-TMY | B85: 000 | C85: 500000 | D85: 0 | E85: 1.94 | F85: Custodian Fee May 2019
A86: RM-TMY | B86: 000 | C86: 700302 | D86: 1.94 | E86: 0 | F86: Custodian Fee May 2019
A87: RM-TPY | B87: 000 | C87: 500000 | D87: 0 | E87: 1.86 | F87: Custodian Fee May 2019
A88: RM-TPY | B88: 000 | C88: 700302 | D88: 1.86 | E88: 0 | F88: Custodian Fee May 2019
A89: RM-TSB | B89: 000 | C89: 500000 | D89: 0 | E89: 0.07 | F89: Custodian Fee May 2019
A90: RM-TSB | B90: 000 | C90: 700302 | D90: 0.07 | E90: 0 | F90: Custodian Fee May 2019
A91: RM-YLF | B91: 000 | C91: 500000 | D91: 0 | E91: 0.01 | F91: Custodian Fee May 2019
A92: RM-YLF | B92: 000 | C92: 700302 | D92: 0.01 | E92: 0 | F92: Custodian Fee May 2019
A93: RM-YSL | B93: 000 | C93: 500000 | D93: 0 | E93: 0.01 | F93: Custodian Fee May 2019
A94: RM-YSL | B94: 000 | C94: 700302 | D94: 0.01 | E94: 0 | F94: Custodian Fee May 2019
A95: RTMOEY | B95: 000 | C95: 500000 | D95: 0 | E95: 43.82 | F95: Custodian Fee May 2019
A96: RTMOEY | B96: 000 | C96: 700302 | D96: 43.82 | E96: 0 | F96: Custodian Fee May 2019
A97: SIA | B97: 000 | C97: 500000 | D97: 0 | E97: 20.67 | F97: Custodian Fee May 2019
A98: SIA | B98: 000 | C98: 700302 | D98: 20.67 | E98: 0 | F98: Custodian Fee May 2019
A99: SIA2 | B99: 000 | C99: 500000 | D99: 0 | E99: 6.63 | F99: Custodian Fee May 2019
A100: SIA2 | B100: 000 | C100: 700302 | D100: 6.63 | E100: 0 | F100: Custodian Fee May 2019
A101: TAYS2 | B101: 000 | C101: 500000 | D101: 0 | E101: 136.5 | F101: Custodian Fee May 2019
A102: TAYS2 | B102: 000 | C102: 700302 | D102: 136.5 | E102: 0 | F102: Custodian Fee May 2019
A103: TC-CBG | B103: 000 | C103: 500000 | D103: 0 | E103: 1.57 | F103: Custodian Fee May 2019
A104: TC-CBG | B104: 000 | C104: 700302 | D104: 1.57 | E104: 0 | F104: Custodian Fee May 2019
A105: TC-CKY | B105: 000 | C105: 500000 | D105: 0 | E105: 0.12 | F105: Custodian Fee May 2019
A106: TC-CKY | B106: 000 | C106: 700302 | D106: 0.12 | E106: 0 | F106: Custodian Fee May 2019
A107: TC-HWY | B107: 000 | C107: 500000 | D107: 0 | E107: 11.73 | F107: Custodian Fee May 2019
A108: TC-HWY | B108: 000 | C108: 700302 | D108: 11.73 | E108: 0 | F108: Custodian Fee May 2019
A109: TC-LBK | B109: 000 | C109: 500000 | D109: 0 | E109: 0.02 | F109: Custodian Fee May 2019
A110: TC-LBK | B110: 000 | C110: 700302 | D110: 0.02 | E110: 0 | F110: Custodian Fee May 2019
A111: TC-MARI | B111: 000 | C111: 500000 | D111: 0 | E111: 1.82 | F111: Custodian Fee May 2019
A112: TC-MARI | B112: 000 | C112: 700302 | D112: 1.82 | E112: 0 | F112: Custodian Fee May 2019
A113: ULIN | B113: 000 | C113: 500000 | D113: 0 | E113: 0.47 | F113: Custodian Fee May 2019
A114: ULIN | B114: 000 | C114: 700302 | D114: 0.47 | E114: 0 | F114: Custodian Fee May 2019
A115: VL-ANU | B115: 000 | C115: 500000 | D115: 0 | E115: 3.02 | F115: Custodian Fee May 2019
A116: VL-ANU | B116: 000 | C116: 700302 | D116: 3.02 | E116: 0 | F116: Custodian Fee May 2019
A117: VL-CCK | B117: 000 | C117: 500000 | D117: 0 | E117: 52.59 | F117: Custodian Fee May 2019
A118: VL-CCK | B118: 000 | C118: 700302 | D118: 52.59 | E118: 0 | F118: Custodian Fee May 2019
A119: VL-CFK | B119: 000 | C119: 500000 | D119: 0 | E119: 8.6 | F119: Custodian Fee May 2019
A120: VL-CFK | B120: 000 | C120: 700302 | D120: 8.6 | E120: 0 | F120: Custodian Fee May 2019
A121: VL-CMC | B121: 000 | C121: 500000 | D121: 0 | E121: 13.17 | F121: Custodian Fee May 2019
A122: VL-CMC | B122: 000 | C122: 700302 | D122: 13.17 | E122: 0 | F122: Custodian Fee May 2019
A123: VL-CSK | B123: 000 | C123: 500000 | D123: 0 | E123: 8.47 | F123: Custodian Fee May 2019
A124: VL-CSK | B124: 000 | C124: 700302 | D124: 8.47 | E124: 0 | F124: Custodian Fee May 2019
A125: VL-CSY | B125: 000 | C125: 500000 | D125: 0 | E125: 5.39 | F125: Custodian Fee May 2019
A126: VL-CSY | B126: 000 | C126: 700302 | D126: 5.39 | E126: 0 | F126: Custodian Fee May 2019
A127: VL-IMJ | B127: 000 | C127: 500000 | D127: 0 | E127: 54.11 | F127: Custodian Fee May 2019
A128: VL-IMJ | B128: 000 | C128: 700302 | D128: 54.11 | E128: 0 | F128: Custodian Fee May 2019
A129: VL-LKS | B129: 000 | C129: 500000 | D129: 0 | E129: 389.54 | F129: Custodian Fee May 2019
A130: VL-LKS | B130: 000 | C130: 700302 | D130: 389.54 | E130: 0 | F130: Custodian Fee May 2019
A131: VL-LNH | B131: 000 | C131: 500000 | D131: 0 | E131: 2.53 | F131: Custodian Fee May 2019
A132: VL-LNH | B132: 000 | C132: 700302 | D132: 2.53 | E132: 0 | F132: Custodian Fee May 2019
A133: VL-LPS | B133: 000 | C133: 500000 | D133: 0 | E133: 0.09 | F133: Custodian Fee May 2019
A134: VL-LPS | B134: 000 | C134: 700302 | D134: 0.09 | E134: 0 | F134: Custodian Fee May 2019
A135: VL-LWD | B135: 000 | C135: 500000 | D135: 0 | E135: 30.37 | F135: Custodian Fee May 2019
A136: VL-LWD | B136: 000 | C136: 700302 | D136: 30.37 | E136: 0 | F136: Custodian Fee May 2019
A137: VL-MAA | B137: 000 | C137: 500000 | D137: 0 | E137: 6.8 | F137: Custodian Fee May 2019
A138: VL-MAA | B138: 000 | C138: 700302 | D138: 6.8 | E138: 0 | F138: Custodian Fee May 2019
A139: VL-MAK | B139: 000 | C139: 500000 | D139: 0 | E139: 2.99 | F139: Custodian Fee May 2019
A140: VL-MAK | B140: 000 | C140: 700302 | D140: 2.99 | E140: 0 | F140: Custodian Fee May 2019
A141: VL-MSG | B141: 000 | C141: 500000 | D141: 0 | E141: 43.03 | F141: Custodian Fee May 2019
A142: VL-MSG | B142: 000 | C142: 700302 | D142: 43.03 | E142: 0 | F142: Custodian Fee May 2019
A143: VL-NAN | B143: 000 | C143: 500000 | D143: 0 | E143: 12.73 | F143: Custodian Fee May 2019
A144: VL-NAN | B144: 000 | C144: 700302 | D144: 12.73 | E144: 0 | F144: Custodian Fee May 2019
A145: VL-NCM | B145: 000 | C145: 500000 | D145: 0 | E145: 6.95 | F145: Custodian Fee May 2019
A146: VL-NCM | B146: 000 | C146: 700302 | D146: 6.95 | E146: 0 | F146: Custodian Fee May 2019
A147: VL-RAD | B147: 000 | C147: 500000 | D147: 0 | E147: 7.71 | F147: Custodian Fee May 2019
A148: VL-RAD | B148: 000 | C148: 700302 | D148: 7.71 | E148: 0 | F148: Custodian Fee May 2019
A149: VL-SIC | B149: 000 | C149: 500000 | D149: 0 | E149: 65.45 | F149: Custodian Fee May 2019
A150: VL-SIC | B150: 000 | C150: 700302 | D150: 65.45 | E150: 0 | F150: Custodian Fee May 2019
A151: VL-TAAM | B151: 000 | C151: 500000 | D151: 0 | E151: 26.78 | F151: Custodian Fee May 2019
A152: VL-TAAM | B152: 000 | C152: 700302 | D152: 26.78 | E152: 0 | F152: Custodian Fee May 2019
A153: VL-WFR | B153: 000 | C153: 500000 | D153: 0 | E153: 14.07 | F153: Custodian Fee May 2019
A154: VL-WFR | B154: 000 | C154: 700302 | D154: 14.07 | E154: 0 | F154: Custodian Fee May 2019
A155: VL-WKM | B155: 000 | C155: 500000 | D155: 0 | E155: 7.83 | F155: Custodian Fee May 2019
A156: VL-WKM | B156: 000 | C156: 700302 | D156: 7.83 | E156: 0 | F156: Custodian Fee May 2019
A157: VL-WPI | B157: 000 | C157: 500000 | D157: 0 | E157: 6.04 | F157: Custodian Fee May 2019
A158: VL-WPI | B158: 000 | C158: 700302 | D158: 6.04 | E158: 0 | F158: Custodian Fee May 2019
A159: VL-YCM | B159: 000 | C159: 500000 | D159: 0 | E159: 2.29 | F159: Custodian Fee May 2019
A160: VL-YCM | B160: 000 | C160: 700302 | D160: 2.29 | E160: 0 | F160: Custodian Fee May 2019
A161: VL-YHN | B161: 000 | C161: 500000 | D161: 0 | E161: 6.54 | F161: Custodian Fee May 2019
A162: VL-YHN | B162: 000 | C162: 700302 | D162: 6.54 | E162: 0 | F162: Custodian Fee May 2019
A163: VL-ZUL | B163: 000 | C163: 500000 | D163: 0 | E163: 12.1 | F163: Custodian Fee May 2019
A164: VL-ZUL | B164: 000 | C164: 700302 | D164: 12.1 | E164: 0 | F164: Custodian Fee May 2019
A165: VM-WAS | B165: 000 | C165: 500000 | D165: 0 | E165: 28.51 | F165: Custodian Fee May 2019
A166: VM-WAS | B166: 000 | C166: 700302 | D166: 28.51 | E166: 0 | F166: Custodian Fee May 2019
A167: WFL2 | B167: 000 | C167: 500000 | D167: 0 | E167: 12.33 | F167: Custodian Fee May 2019
A168: WFL2 | B168: 000 | C168: 700302 | D168: 12.33 | E168: 0 | F168: Custodian Fee May 2019
A169: WFL3 | B169: 000 | C169: 500000 | D169: 0 | E169: 17.09 | F169: Custodian Fee May 2019
A170: WFL3 | B170: 000 | C170: 700302 | D170: 17.09 | E170: 0 | F170: Custodian Fee May 2019
A171: WWK | B171: 000 | C171: 500000 | D171: 0 | E171: 6.43 | F171: Custodian Fee May 2019
A172: WWK | B172: 000 | C172: 700302 | D172: 6.43 | E172: 0 | F172: Custodian Fee May 2019
A173: YS | B173: 000 | C173: 500000 | D173: 0 | E173: 106.4 | F173: Custodian Fee May 2019
A174: YS | B174: 000 | C174: 700302 | D174: 106.4 | E174: 0 | F174: Custodian Fee May 2019
A175: YSIF | B175: 000 | C175: 500000 | D175: 0 | E175: 217.59 | F175: Custodian Fee May 2019
A176: YSIF | B176: 000 | C176: 700302 | D176: 217.59 | E176: 0 | F176: Custodian Fee May 2019

Sheet Summary
N1: Appendix B
A2: TA INVESMENT MANAGEMENT BERHAD
A3: PRIVATE MANDATE FUND - TRANSACTION AND CUSTODIAN FEE FOR THE MONTH OF MAY 2019
B5: OMNIBUS-TEMPATAN | C5: OMNIBUS-SEC | D5: TOTAL (RM)
A6: TRANSACTION FEE | B6: 3314.38 | C6: 48.42 | D6: =SUM(B6:C6) -> 3362.8
A7: CUSTODIAN FEE | B7: 13927 | C7: 81.21 | D7: =SUM(B7:C7) -> 14008.21
A8: TOTAL (RM) | B8: =SUM(B6:B7) -> 17241.38 | C8: =SUM(C6:C7) -> 129.63 | D8: =SUM(B8:C8) -> 17371.01
B11: JANUARY | C11: FEBRUARY | D11: MARCH | E11: APRIL | F11: MAY | G11: JUNE | H11: JULY | I11: AUGUST | J11: SEPTEMBER | K11: OCTOBER | L11: NOVEMBER | M11: DECEMBER | N11: TOTAL
A12: TRANSACTION FEE | B12: 8700.69 | C12: 5541.01 | D12: 6279.9 | E12: 8107.94 | F12: 3362.8 | G12: 2594.16 | H12: 3944.6 | I12: 4296.85 | J12: 2489.31 | K12: 736.42 | L12: 0 | M12: 0 | N12: =SUM(B12:M12) -> 46053.68
A13: CUSTODIAN FEE | B13: 13768.54 | C13: 12068.97 | D13: 13179.52 | E13: 13421 | F13: 14008.21 | G13: 13848.95 | H13: 13464.34 | I13: 13311.64 | J13: 12833.13 | K13: 0 | L13: 0 | M13: 0 | N13: =SUM(B13:M13) -> 119904.3
A14: TOTAL (RM) | B14: =SUM(B12:B13) -> 22469.23 | C14: =SUM(C12:C13) -> 17609.98 | D14: 19459.42 | E14: 21528.94 | F14: 17371.01 | G14: 16443.11 | H14: 17408.94 | I14: 17608.49 | J14: 15322.44 | K14: 736.42 | L14: 0 | M14: 0 | N14: =SUM(B14:M14) -> 165957.98
A19: Prepared by, | C19: Prepared By, | E19: Verified By, | G19: Approved By,
A22: ………………… | C22: ……………………….. | E22: ……………………………. | G22: ………………………….
